Workbook

Sheet ETAPA 10
A1: Obs.: 1. Selecione o nome de um Piloto, 2. Com a tecla Ctrl pressionada, Selecione o seu nome e 3. Clique sobre o Gráfico (Habilite a macro) Para as demais comparações Selecione o nome do Piloto e Clique sobre o Gráfico | G1: PILOTO | H1: =L$48 -> Felipe Curi | I1: =M$48 -> Bruno Nosse | J1: =A2 -> Léo Oliveira | M1: 00:00:01
A2: Léo Oliveira | G2: MÉDIA | H2: =AVERAGE(L$49:L$102) -> 00:00:59.700 | I2: =AVERAGE(M$49:M$102) -> 00:00:59.886 | J2: =AVERAGE(N$49:N$102) -> 00:00:59.803 | M2: =M1 -> 00:00:01
A3: Felipe Curi | G3: MAXIMA | H3: =LARGE(L$49:L$102,1) -> 00:01:03.087 | I3: =LARGE(M$49:M$102,1) -> 00:01:07.033 | J3: =LARGE(N$49:N$102,1) -> 00:01:05.397
A4: Bruno Nosse | G4: MÍNIMA | H4: =SMALL(L$49:L$102,1) -> 00:00:58.749 | I4: =SMALL(M$49:M$102,1) -> 00:00:58.771 | J4: =SMALL(N$49:N$102,1) -> 00:00:58.756
A5: Christian Guedes | G5: Desvio Padrão | H5: =_xlfn.STDEV.S(L$50:L$127) -> 00:00:10.452 | I5: =_xlfn.STDEV.S(M$50:M$127) -> 00:00:10.522 | J5: =_xlfn.STDEV.S(N$50:N$127) -> 00:00:10.491
A6: Fernando Mota | G6: TEMPO TOTAL | H6: =SUM(L$49:L$102,1) -> 1.020729074 | I6: =SUM(M$49:M$102,1) -> 1.020793669 | J6: =SUM(N$49:N$102,1) -> 1.020764931
A7: Gui Figueiredo
A8: Wesley Canuto
A9: Guilherme Alves
A10: Frederico Papatella
A11: Lucio Chequer
A12: Samuel Farley
A13: Jarbas Reis | J13: =SMALL(H4:J4,1)-K13 -> 00:00:58.499 | K13: 00:00:00.250
A14: Bruno Camargos | J14: =LARGE(H3:J3,1)+K13 -> 00:01:07.283
A15: Diego Rodrigues
A16: Rafael Miranda
A17: Anderson Teixeira
A18: Alexandre Melillo
A19: Matheus Azevedo
A20: PetrÔnio Junior
A21: Celso Dantas
A22: Thiago Azevedo
A23: Henry Douglas
A24: Matheus Rocha
A25: Raphael Reis
A26: Levindo Neto
A27: Renato Martins
A28: Saulo Chagas
A29: Guilherme Camarano
A30: Jean Paul
A31: Lucas Rabelo
L48: Felipe Curi | M48: Bruno Nosse | N48: Léo Oliveira
K49: NÚMERO VOLTAS | L49: Felipe Curi | M49: Bruno Nosse | N49: Léo Oliveira
A50: ETAPA | B50: PILOTO | C50: NÚMERO VOLTAS | D50: KART | E50: Volta Tm | F50: velocidade Media | K50: 1 | L50: 00:01:03.087 | M50: 00:01:07.033 | N50: 00:01:05.397
A51: 10 | B51: Léo Oliveira | C51: 30 | D51: 18 | E51: 00:01:05.397 | F51: 54,28km/h | K51: 2 | L51: 00:01:02.293 | M51: 00:01:02.145 | N51: 00:01:01.594
A52: 10 | B52: Léo Oliveira | C52: 30 | D52: 18 | E52: 00:01:01.594 | F52: 57,63km/h | K52: 3 | L52: 00:01:01.209 | M52: 00:01:01.037 | N52: 00:00:59.773
A53: 10 | B53: Léo Oliveira | C53: 30 | D53: 18 | E53: 00:00:59.773 | F53: 59,38km/h | K53: 4 | L53: 00:00:59.837 | M53: 00:01:00.458 | N53: 00:01:00.818
A54: 10 | B54: Léo Oliveira | C54: 30 | D54: 18 | E54: 00:01:00.818 | F54: 58,36km/h | K54: 5 | L54: 00:01:00.717 | M54: 00:01:00.996 | N54: 00:01:00.400
A55: 10 | B55: Léo Oliveira | C55: 30 | D55: 18 | E55: 00:01:00.400 | F55: 58,77km/h | K55: 6 | L55: 00:00:59.955 | M55: 00:01:01.087 | N55: 00:00:59.967
A56: 10 | B56: Léo Oliveira | C56: 30 | D56: 18 | E56: 00:00:59.967 | F56: 59,19km/h | K56: 7 | L56: 00:00:59.838 | M56: 00:00:59.802 | N56: 00:00:59.937
A57: 10 | B57: Léo Oliveira | C57: 30 | D57: 18 | E57: 00:00:59.937 | F57: 59,22km/h | K57: 8 | L57: 00:00:59.882 | M57: 00:01:00.094 | N57: 00:00:59.712
A58: 10 | B58: Léo Oliveira | C58: 30 | D58: 18 | E58: 00:00:59.712 | F58: 59,45km/h | K58: 9 | L58: 00:00:59.548 | M58: 00:00:59.827 | N58: 00:00:59.536
A59: 10 | B59: Léo Oliveira | C59: 30 | D59: 18 | E59: 00:00:59.536 | F59: 59,62km/h | K59: 10 | L59: 00:00:59.429 | M59: 00:00:59.432 | N59: 00:00:59.556
A60: 10 | B60: Léo Oliveira | C60: 30 | D60: 18 | E60: 00:00:59.556 | F60: 59,6km/h | K60: 11 | L60: 00:00:59.516 | M60: 00:00:59.360 | N60: 00:00:59.540
A61: 10 | B61: Léo Oliveira | C61: 30 | D61: 18 | E61: 00:00:59.540 | F61: 59,62km/h | K61: 12 | L61: 00:00:59.279 | M61: 00:00:59.505 | N61: 00:00:59.473
A62: 10 | B62: Léo Oliveira | C62: 30 | D62: 18 | E62: 00:00:59.473 | F62: 59,68km/h | K62: 13 | L62: 00:00:59.206 | M62: 00:00:59.544 | N62: 00:00:59.656
A63: 10 | B63: Léo Oliveira | C63: 30 | D63: 18 | E63: 00:00:59.656 | F63: 59,5km/h | K63: 14 | L63: 00:00:59.312 | M63: 00:00:59.242 | N63: 00:00:59.526
A64: 10 | B64: Léo Oliveira | C64: 30 | D64: 18 | E64: 00:00:59.526 | F64: 59,63km/h | K64: 15 | L64: 00:00:59.292 | M64: 00:00:58.965 | N64: 00:01:00.061
A65: 10 | B65: Léo Oliveira | C65: 30 | D65: 18 | E65: 00:01:00.061 | F65: 59,1km/h | K65: 16 | L65: 00:00:59.326 | M65: 00:00:59.125 | N65: 00:00:59.498
A66: 10 | B66: Léo Oliveira | C66: 30 | D66: 18 | E66: 00:00:59.498 | F66: 59,66km/h | K66: 17 | L66: 00:00:58.945 | M66: 00:00:59.094 | N66: 00:00:59.314
A67: 10 | B67: Léo Oliveira | C67: 30 | D67: 18 | E67: 00:00:59.314 | F67: 59,84km/h | K67: 18 | L67: 00:00:58.948 | M67: 00:00:58.825 | N67: 00:00:58.960
A68: 10 | B68: Léo Oliveira | C68: 30 | D68: 18 | E68: 00:00:58.960 | F68: 60,2km/h | K68: 19 | L68: 00:00:58.846 | M68: 00:00:59.191 | N68: 00:00:58.840
A69: 10 | B69: Léo Oliveira | C69: 30 | D69: 18 | E69: 00:00:58.840 | F69: 60,33km/h | K69: 20 | L69: 00:00:58.974 | M69: 00:00:58.771 | N69: 00:00:58.989
A70: 10 | B70: Léo Oliveira | C70: 30 | D70: 18 | E70: 00:00:58.989 | F70: 60,17km/h | K70: 21 | L70: 00:00:59.313 | M70: 00:00:59.203 | N70: 00:00:59.806
A71: 10 | B71: Léo Oliveira | C71: 30 | D71: 18 | E71: 00:00:59.806 | F71: 59,35km/h | K71: 22 | L71: 00:00:59.023 | M71: 00:00:59.011 | N71: 00:00:58.996
A72: 10 | B72: Léo Oliveira | C72: 30 | D72: 18 | E72: 00:00:58.996 | F72: 60,17km/h | K72: 23 | L72: 00:00:59.249 | M72: 00:00:59.225 | N72: 00:00:59.162
A73: 10 | B73: Léo Oliveira | C73: 30 | D73: 18 | E73: 00:00:59.162 | F73: 60km/h | K73: 24 | L73: 00:00:59.509 | M73: 00:00:59.192 | N73: 00:00:59.117
A74: 10 | B74: Léo Oliveira | C74: 30 | D74: 18 | E74: 00:00:59.117 | F74: 60,04km/h | K74: 25 | L74: 00:00:58.749 | M74: 00:00:58.775 | N74: 00:00:58.756
A75: 10 | B75: Léo Oliveira | C75: 30 | D75: 18 | E75: 00:00:58.756 | F75: 60,41km/h | K75: 26 | L75: 00:00:59.413 | M75: 00:00:59.027 | N75: 00:00:58.872
A76: 10 | B76: Léo Oliveira | C76: 30 | D76: 18 | E76: 00:00:58.872 | F76: 60,29km/h | K76: 27 | L76: 00:00:58.918 | M76: 00:00:58.921 | N76: 00:00:59.189
A77: 10 | B77: Léo Oliveira | C77: 30 | D77: 18 | E77: 00:00:59.189 | F77: 59,97km/h | K77: 28 | L77: 00:01:00.475 | M77: 00:01:00.342 | N77: 00:01:00.440
A78: 10 | B78: Léo Oliveira | C78: 30 | D78: 18 | E78: 00:01:00.440 | F78: 58,73km/h | K78: 29 | L78: 00:00:59.459 | M78: 00:00:59.899 | N78: 00:00:59.745
A79: 10 | B79: Léo Oliveira | C79: 30 | D79: 18 | E79: 00:00:59.745 | F79: 59,41km/h | K79: 30 | L79: 00:00:59.445 | M79: 00:00:59.445 | N79: 00:00:59.460
A80: 10 | B80: Léo Oliveira | C80: 30 | D80: 18 | E80: 00:00:59.460 | F80: 59,7km/h | K80: 31
A81: 10 | B81: Felipe Curi | C81: 30 | D81: 39 | E81: 00:01:03.087 | F81: 56,27km/h | K81: 32
A82: 10 | B82: Felipe Curi | C82: 30 | D82: 39 | E82: 00:01:02.293 | F82: 56,98km/h | K82: 33
A83: 10 | B83: Felipe Curi | C83: 30 | D83: 39 | E83: 00:01:01.209 | F83: 57,99km/h | K83: 34
A84: 10 | B84: Felipe Curi | C84: 30 | D84: 39 | E84: 00:00:59.837 | F84: 59,32km/h | K84: 35
A85: 10 | B85: Felipe Curi | C85: 30 | D85: 39 | E85: 00:01:00.717 | F85: 58,46km/h | K85: 36
A86: 10 | B86: Felipe Curi | C86: 30 | D86: 39 | E86: 00:00:59.955 | F86: 59,2km/h | K86: 37
A87: 10 | B87: Felipe Curi | C87: 30 | D87: 39 | E87: 00:00:59.838 | F87: 59,32km/h | K87: 38
A88: 10 | B88: Felipe Curi | C88: 30 | D88: 39 | E88: 00:00:59.882 | F88: 59,28km/h | K88: 39
A89: 10 | B89: Felipe Curi | C89: 30 | D89: 39 | E89: 00:00:59.548 | F89: 59,61km/h | K89: 40
A90: 10 | B90: Felipe Curi | C90: 30 | D90: 39 | E90: 00:00:59.429 | F90: 59,73km/h | K90: 41
A91: 10 | B91: Felipe Curi | C91: 30 | D91: 39 | E91: 00:00:59.516 | F91: 59,64km/h | K91: 42
A92: 10 | B92: Felipe Curi | C92: 30 | D92: 39 | E92: 00:00:59.279 | F92: 59,88km/h | K92: 43
A93: 10 | B93: Felipe Curi | C93: 30 | D93: 39 | E93: 00:00:59.206 | F93: 59,95km/h | K93: 44
A94: 10 | B94: Felipe Curi | C94: 30 | D94: 39 | E94: 00:00:59.312 | F94: 59,85km/h | K94: 45
A95: 10 | B95: Felipe Curi | C95: 30 | D95: 39 | E95: 00:00:59.292 | F95: 59,87km/h | K95: 46
A96: 10 | B96: Felipe Curi | C96: 30 | D96: 39 | E96: 00:00:59.326 | F96: 59,83km/h | K96: 47
A97: 10 | B97: Felipe Curi | C97: 30 | D97: 39 | E97: 00:00:58.945 | F97: 60,22km/h | K97: 48
A98: 10 | B98: Felipe Curi | C98: 30 | D98: 39 | E98: 00:00:58.948 | F98: 60,22km/h | K98: 49
A99: 10 | B99: Felipe Curi | C99: 30 | D99: 39 | E99: 00:00:58.846 | F99: 60,32km/h | K99: 50
A100: 10 | B100: Felipe Curi | C100: 30 | D100: 39 | E100: 00:00:58.974 | F100: 60,19km/h | K100: 51
A101: 10 | B101: Felipe Curi | C101: 30 | D101: 39 | E101: 00:00:59.313 | F101: 59,85km/h | K101: 52
A102: 10 | B102: Felipe Curi | C102: 30 | D102: 39 | E102: 00:00:59.023 | F102: 60,14km/h | K102: 53
A103: 10 | B103: Felipe Curi | C103: 30 | D103: 39 | E103: 00:00:59.249 | F103: 59,91km/h | K103: 54
A104: 10 | B104: Felipe Curi | C104: 30 | D104: 39 | E104: 00:00:59.509 | F104: 59,65km/h | K104: 55
A105: 10 | B105: Felipe Curi | C105: 30 | D105: 39 | E105: 00:00:58.749 | F105: 60,42km/h | K105: 56
A106: 10 | B106: Felipe Curi | C106: 30 | D106: 39 | E106: 00:00:59.413 | F106: 59,74km/h | K106: 57
A107: 10 | B107: Felipe Curi | C107: 30 | D107: 39 | E107: 00:00:58.918 | F107: 60,25km/h | K107: 58
A108: 10 | B108: Felipe Curi | C108: 30 | D108: 39 | E108: 00:01:00.475 | F108: 58,7km/h | K108: 59
A109: 10 | B109: Felipe Curi | C109: 30 | D109: 39 | E109: 00:00:59.459 | F109: 59,7km/h | K109: 60
A110: 10 | B110: Felipe Curi | C110: 30 | D110: 39 | E110: 00:00:59.445 | F110: 59,71km/h
A111: 10 | B111: Bruno Nosse | C111: 30 | D111: 38 | E111: 00:01:07.033 | F111: 52,95km/h
A112: 10 | B112: Bruno Nosse | C112: 30 | D112: 38 | E112: 00:01:02.145 | F112: 57,12km/h
A113: 10 | B113: Bruno Nosse | C113: 30 | D113: 38 | E113: 00:01:01.037 | F113: 58,15km/h | L113: =_xlfn.STDEV.S(L50:L76) -> 00:00:01.028 | M113: =_xlfn.STDEV.S(M50:M76) -> 00:00:01.660 | N113: =_xlfn.STDEV.S(N50:N76) -> 00:00:01.285
A114: 10 | B114: Bruno Nosse | C114: 30 | D114: 38 | E114: 00:01:00.458 | F114: 58,71km/h | L114: =MAX(L50:L76) -> 00:01:03.087 | M114: =MAX(M50:M76) -> 00:01:07.033 | N114: 00:01:05.397
A115: 10 | B115: Bruno Nosse | C115: 30 | D115: 38 | E115: 00:01:00.996 | F115: 58,19km/h
A116: 10 | B116: Bruno Nosse | C116: 30 | D116: 38 | E116: 00:01:01.087 | F116: 58,11km/h
A117: 10 | B117: Bruno Nosse | C117: 30 | D117: 38 | E117: 00:00:59.802 | F117: 59,36km/h
A118: 10 | B118: Bruno Nosse | C118: 30 | D118: 38 | E118: 00:01:00.094 | F118: 59,07km/h
A119: 10 | B119: Bruno Nosse | C119: 30 | D119: 38 | E119: 00:00:59.827 | F119: 59,33km/h
A120: 10 | B120: Bruno Nosse | C120: 30 | D120: 38 | E120: 00:00:59.432 | F120: 59,73km/h
A121: 10 | B121: Bruno Nosse | C121: 30 | D121: 38 | E121: 00:00:59.360 | F121: 59,8km/h
A122: 10 | B122: Bruno Nosse | C122: 30 | D122: 38 | E122: 00:00:59.505 | F122: 59,65km/h
A123: 10 | B123: Bruno Nosse | C123: 30 | D123: 38 | E123: 00:00:59.544 | F123: 59,61km/h
A124: 10 | B124: Bruno Nosse | C124: 30 | D124: 38 | E124: 00:00:59.242 | F124: 59,92km/h
A125: 10 | B125: Bruno Nosse | C125: 30 | D125: 38 | E125: 00:00:58.965 | F125: 60,2km/h
A126: 10 | B126: Bruno Nosse | C126: 30 | D126: 38 | E126: 00:00:59.125 | F126: 60,04km/h
A127: 10 | B127: Bruno Nosse | C127: 30 | D127: 38 | E127: 00:00:59.094 | F127: 60,07km/h
A128: 10 | B128: Bruno Nosse | C128: 30 | D128: 38 | E128: 00:00:58.825 | F128: 60,34km/h
A129: 10 | B129: Bruno Nosse | C129: 30 | D129: 38 | E129: 00:00:59.191 | F129: 59,97km/h
A130: 10 | B130: Bruno Nosse | C130: 30 | D130: 38 | E130: 00:00:58.771 | F130: 60,4km/h
A131: 10 | B131: Bruno Nosse | C131: 30 | D131: 38 | E131: 00:00:59.203 | F131: 59,96km/h
A132: 10 | B132: Bruno Nosse | C132: 30 | D132: 38 | E132: 00:00:59.011 | F132: 60,15km/h
A133: 10 | B133: Bruno Nosse | C133: 30 | D133: 38 | E133: 00:00:59.225 | F133: 59,93km/h
A134: 10 | B134: Bruno Nosse | C134: 30 | D134: 38 | E134: 00:00:59.192 | F134: 59,97km/h
A135: 10 | B135: Bruno Nosse | C135: 30 | D135: 38 | E135: 00:00:58.775 | F135: 60,39km/h
A136: 10 | B136: Bruno Nosse | C136: 30 | D136: 38 | E136: 00:00:59.027 | F136: 60,14km/h
A137: 10 | B137: Bruno Nosse | C137: 30 | D137: 38 | E137: 00:00:58.921 | F137: 60,24km/h
A138: 10 | B138: Bruno Nosse | C138: 30 | D138: 38 | E138: 00:01:00.342 | F138: 58,82km/h
A139: 10 | B139: Bruno Nosse | C139: 30 | D139: 38 | E139: 00:00:59.899 | F139: 59,26km/h
A140: 10 | B140: Bruno Nosse | C140: 30 | D140: 38 | E140: 00:00:59.445 | F140: 59,71km/h
A141: 10 | B141: Christian Guedes | C141: 30 | D141: 35 | E141: 00:01:06.983 | F141: 52,99km/h
A142: 10 | B142: Christian Guedes | C142: 30 | D142: 35 | E142: 00:01:02.663 | F142: 56,65km/h
A143: 10 | B143: Christian Guedes | C143: 30 | D143: 35 | E143: 00:01:01.878 | F143: 57,36km/h
A144: 10 | B144: Christian Guedes | C144: 30 | D144: 35 | E144: 00:00:59.921 | F144: 59,24km/h
A145: 10 | B145: Christian Guedes | C145: 30 | D145: 35 | E145: 00:01:00.864 | F145: 58,32km/h
A146: 10 | B146: Christian Guedes | C146: 30 | D146: 35 | E146: 00:01:00.714 | F146: 58,46km/h
A147: 10 | B147: Christian Guedes | C147: 30 | D147: 35 | E147: 00:00:59.647 | F147: 59,51km/h
A148: 10 | B148: Christian Guedes | C148: 30 | D148: 35 | E148: 00:01:00.747 | F148: 58,43km/h
A149: 10 | B149: Christian Guedes | C149: 30 | D149: 35 | E149: 00:00:59.764 | F149: 59,39km/h
A150: 10 | B150: Christian Guedes | C150: 30 | D150: 35 | E150: 00:00:59.666 | F150: 59,49km/h
A151: 10 | B151: Christian Guedes | C151: 30 | D151: 35 | E151: 00:00:59.373 | F151: 59,78km/h
A152: 10 | B152: Christian Guedes | C152: 30 | D152: 35 | E152: 00:00:59.564 | F152: 59,59km/h
A153: 10 | B153: Christian Guedes | C153: 30 | D153: 35 | E153: 00:00:59.503 | F153: 59,65km/h
A154: 10 | B154: Christian Guedes | C154: 30 | D154: 35 | E154: 00:00:59.316 | F154: 59,84km/h
A155: 10 | B155: Christian Guedes | C155: 30 | D155: 35 | E155: 00:00:59.201 | F155: 59,96km/h
A156: 10 | B156: Christian Guedes | C156: 30 | D156: 35 | E156: 00:00:59.812 | F156: 59,35km/h
A157: 10 | B157: Christian Guedes | C157: 30 | D157: 35 | E157: 00:00:59.534 | F157: 59,62km/h
A158: 10 | B158: Christian Guedes | C158: 30 | D158: 35 | E158: 00:00:59.380 | F158: 59,78km/h
A159: 10 | B159: Christian Guedes | C159: 30 | D159: 35 | E159: 00:00:59.491 | F159: 59,67km/h
A160: 10 | B160: Christian Guedes | C160: 30 | D160: 35 | E160: 00:00:59.447 | F160: 59,71km/h
A161: 10 | B161: Christian Guedes | C161: 30 | D161: 35 | E161: 00:00:59.538 | F161: 59,62km/h
A162: 10 | B162: Christian Guedes | C162: 30 | D162: 35 | E162: 00:00:59.456 | F162: 59,7km/h
A163: 10 | B163: Christian Guedes | C163: 30 | D163: 35 | E163: 00:00:59.547 | F163: 59,61km/h
A164: 10 | B164: Christian Guedes | C164: 30 | D164: 35 | E164: 00:00:59.649 | F164: 59,51km/h
A165: 10 | B165: Christian Guedes | C165: 30 | D165: 35 | E165: 00:00:59.550 | F165: 59,61km/h
A166: 10 | B166: Christian Guedes | C166: 30 | D166: 35 | E166: 00:00:59.951 | F166: 59,21km/h
A167: 10 | B167: Christian Guedes | C167: 30 | D167: 35 | E167: 00:00:59.505 | F167: 59,65km/h
A168: 10 | B168: Christian Guedes | C168: 30 | D168: 35 | E168: 00:00:59.607 | F168: 59,55km/h
A169: 10 | B169: Christian Guedes | C169: 30 | D169: 35 | E169: 00:00:59.606 | F169: 59,55km/h
A170: 10 | B170: Christian Guedes | C170: 30 | D170: 35 | E170: 00:00:59.389 | F170: 59,77km/h
A171: 10 | B171: Fernando Mota | C171: 30 | D171: 5 | E171: 00:01:03.164 | F171: 56,2km/h
A172: 10 | B172: Fernando Mota | C172: 30 | D172: 5 | E172: 00:01:01.884 | F172: 57,36km/h
A173: 10 | B173: Fernando Mota | C173: 30 | D173: 5 | E173: 00:01:02.183 | F173: 57,08km/h
A174: 10 | B174: Fernando Mota | C174: 30 | D174: 5 | E174: 00:01:01.128 | F174: 58,07km/h
A175: 10 | B175: Fernando Mota | C175: 30 | D175: 5 | E175: 00:01:00.070 | F175: 59,09km/h
A176: 10 | B176: Fernando Mota | C176: 30 | D176: 5 | E176: 00:01:00.264 | F176: 58,9km/h
A177: 10 | B177: Fernando Mota | C177: 30 | D177: 5 | E177: 00:00:59.678 | F177: 59,48km/h
A178: 10 | B178: Fernando Mota | C178: 30 | D178: 5 | E178: 00:01:01.345 | F178: 57,86km/h
A179: 10 | B179: Fernando Mota | C179: 30 | D179: 5 | E179: 00:01:00.035 | F179: 59,13km/h
A180: 10 | B180: Fernando Mota | C180: 30 | D180: 5 | E180: 00:01:00.326 | F180: 58,84km/h
A181: 10 | B181: Fernando Mota | C181: 30 | D181: 5 | E181: 00:00:59.815 | F181: 59,34km/h
A182: 10 | B182: Fernando Mota | C182: 30 | D182: 5 | E182: 00:00:59.633 | F182: 59,52km/h
A183: 10 | B183: Fernando Mota | C183: 30 | D183: 5 | E183: 00:00:59.971 | F183: 59,19km/h
A184: 10 | B184: Fernando Mota | C184: 30 | D184: 5 | E184: 00:00:59.783 | F184: 59,37km/h
A185: 10 | B185: Fernando Mota | C185: 30 | D185: 5 | E185: 00:00:59.637 | F185: 59,52km/h
A186: 10 | B186: Fernando Mota | C186: 30 | D186: 5 | E186: 00:00:59.795 | F186: 59,36km/h
A187: 10 | B187: Fernando Mota | C187: 30 | D187: 5 | E187: 00:00:59.647 | F187: 59,51km/h
A188: 10 | B188: Fernando Mota | C188: 30 | D188: 5 | E188: 00:00:59.672 | F188: 59,49km/h
A189: 10 | B189: Fernando Mota | C189: 30 | D189: 5 | E189: 00:01:00.110 | F189: 59,05km/h
A190: 10 | B190: Fernando Mota | C190: 30 | D190: 5 | E190: 00:01:00.217 | F190: 58,95km/h
A191: 10 | B191: Fernando Mota | C191: 30 | D191: 5 | E191: 00:00:59.712 | F191: 59,45km/h
A192: 10 | B192: Fernando Mota | C192: 30 | D192: 5 | E192: 00:00:59.758 | F192: 59,4km/h
A193: 10 | B193: Fernando Mota | C193: 30 | D193: 5 | E193: 00:00:59.896 | F193: 59,26km/h
A194: 10 | B194: Fernando Mota | C194: 30 | D194: 5 | E194: 00:00:59.826 | F194: 59,33km/h
A195: 10 | B195: Fernando Mota | C195: 30 | D195: 5 | E195: 00:00:59.835 | F195: 59,32km/h
A196: 10 | B196: Fernando Mota | C196: 30 | D196: 5 | E196: 00:00:59.679 | F196: 59,48km/h
A197: 10 | B197: Fernando Mota | C197: 30 | D197: 5 | E197: 00:00:59.853 | F197: 59,31km/h
A198: 10 | B198: Fernando Mota | C198: 30 | D198: 5 | E198: 00:00:59.877 | F198: 59,28km/h
A199: 10 | B199: Fernando Mota | C199: 30 | D199: 5 | E199: 00:00:59.900 | F199: 59,26km/h
A200: 10 | B200: Fernando Mota | C200: 30 | D200: 5 | E200: 00:00:59.824 | F200: 59,33km/h
A201: 10 | B201: Gui Figueiredo | C201: 30 | D201: 26 | E201: 00:01:05.915 | F201: 53,85km/h
A202: 10 | B202: Gui Figueiredo | C202: 30 | D202: 26 | E202: 00:01:02.042 | F202: 57,21km/h
A203: 10 | B203: Gui Figueiredo | C203: 30 | D203: 26 | E203: 00:01:00.687 | F203: 58,49km/h
A204: 10 | B204: Gui Figueiredo | C204: 30 | D204: 26 | E204: 00:01:00.448 | F204: 58,72km/h
A205: 10 | B205: Gui Figueiredo | C205: 30 | D205: 26 | E205: 00:01:00.998 | F205: 58,19km/h
A206: 10 | B206: Gui Figueiredo | C206: 30 | D206: 26 | E206: 00:01:00.556 | F206: 58,62km/h
A207: 10 | B207: Gui Figueiredo | C207: 30 | D207: 26 | E207: 00:01:00.183 | F207: 58,98km/h
A208: 10 | B208: Gui Figueiredo | C208: 30 | D208: 26 | E208: 00:01:00.265 | F208: 58,9km/h
A209: 10 | B209: Gui Figueiredo | C209: 30 | D209: 26 | E209: 00:00:59.806 | F209: 59,35km/h
A210: 10 | B210: Gui Figueiredo | C210: 30 | D210: 26 | E210: 00:00:59.437 | F210: 59,72km/h
A211: 10 | B211: Gui Figueiredo | C211: 30 | D211: 26 | E211: 00:00:59.363 | F211: 59,79km/h
A212: 10 | B212: Gui Figueiredo | C212: 30 | D212: 26 | E212: 00:00:59.506 | F212: 59,65km/h
A213: 10 | B213: Gui Figueiredo | C213: 30 | D213: 26 | E213: 00:00:59.561 | F213: 59,6km/h
A214: 10 | B214: Gui Figueiredo | C214: 30 | D214: 26 | E214: 00:01:00.482 | F214: 58,69km/h
A215: 10 | B215: Gui Figueiredo | C215: 30 | D215: 26 | E215: 00:01:00.741 | F215: 58,44km/h
A216: 10 | B216: Gui Figueiredo | C216: 30 | D216: 26 | E216: 00:01:00.164 | F216: 59km/h
... 638 more rows

Sheet ETAPA 09
A1: Obs.: 1. Selecione o nome de um Piloto, 2. Com a tecla Ctrl pressionada, Selecione o seu nome e 3. Clique sobre o Gráfico (Habilite a macro) Para as demais comparações Selecione o nome do Piloto e Clique sobre o Gráfico | G1: PILOTO | H1: =L$48 -> Gui Figueiredo | I1: =M$48 -> PetrÔnio Junior | J1: =A2 -> Léo Oliveira | M1: 00:00:01
A2: Léo Oliveira | G2: MÉDIA | H2: =AVERAGE(L$49:L$102) -> 00:01:05.290 | I2: =AVERAGE(M$49:M$102) -> 00:01:05.504 | J2: =AVERAGE(N$49:N$102) -> 00:01:05.276 | M2: =M1 -> 00:00:01
A3: Gui Figueiredo | G3: MAXIMA | H3: =LARGE(L$49:L$102,1) -> 00:01:10.038 | I3: =LARGE(M$49:M$102,1) -> 00:01:08.766 | J3: =LARGE(N$49:N$102,1) -> 00:01:09.311
A4: PetrÔnio Junior | G4: MÍNIMA | H4: =SMALL(L$49:L$102,1) -> 00:01:04.095 | I4: =SMALL(M$49:M$102,1) -> 00:01:04.252 | J4: =SMALL(N$49:N$102,1) -> 00:01:04.221
A5: Matheus Azevedo | G5: Desvio Padrão | H5: =_xlfn.STDEV.S(L$50:L$127) -> 00:00:01.362 | I5: =_xlfn.STDEV.S(M$50:M$127) -> 00:00:01.295 | J5: =_xlfn.STDEV.S(N$50:N$127) -> 00:00:01.214
A6: Rafael Miranda | G6: TEMPO TOTAL | H6: =SUM(L$49:L$102,1) -> 1.02115875 | I6: =SUM(M$49:M$102,1) -> 1.021228137 | J6: =SUM(N$49:N$102,1) -> 1.021154178
A7: Raphael Reis
A8: Christian Guedes
A9: Matheus Rocha
A10: Guilherme Alves
A11: Felipe Curi
A12: Frederico Papatella
A13: Bruno Nosse | J13: =SMALL(H4:J4,1)-K13 -> 00:01:03.845 | K13: 00:00:00.250
A14: Wesley Canuto | J14: =LARGE(H3:J3,1)+K13 -> 00:01:10.288
A15: Alexandre Melillo
A16: Lucas Rabelo
A17: Jarbas Reis
A18: Lucio Chequer
A19: Henry Douglas
A20: Alan Moreira
A21: Renato Martins
A22: Celso Dantas
A23: Levindo Neto
A24: Thiago Azevedo
A25: Thiago Santos
A26: Samuel Farley
A27: RENAN MAGALHAES
A28: Guilherme Camarano
A29: Jean Paul
L48: Gui Figueiredo | M48: PetrÔnio Junior | N48: Léo Oliveira | O48: Rafael Miranda | P48: Raphael Reis | Q48: Christian Guedes
K49: NÚMERO VOLTAS | L49: Gui Figueiredo | M49: PetrÔnio Junior | N49: Léo Oliveira
A50: ETAPA | B50: PILOTO | C50: NÚMERO VOLTAS | D50: KART | E50: Volta Tm | F50: velocidade Media | K50: 1 | L50: 00:01:10.038 | M50: 00:01:08.766 | N50: 00:01:09.311
A51: 9 | B51: Léo Oliveira | C51: 28 | D51: 40 | E51: 00:01:09.311 | F51: 54,54km/h | K51: 2 | L51: 00:01:08.036 | M51: 00:01:07.351 | N51: 00:01:07.575
A52: 9 | B52: Léo Oliveira | C52: 28 | D52: 40 | E52: 00:01:07.575 | F52: 55,94km/h | K52: 3 | L52: 00:01:07.180 | M52: 00:01:07.397 | N52: 00:01:07.316
A53: 9 | B53: Léo Oliveira | C53: 28 | D53: 40 | E53: 00:01:07.316 | F53: 56,15km/h | K53: 4 | L53: 00:01:06.225 | M53: 00:01:08.046 | N53: 00:01:06.202
A54: 9 | B54: Léo Oliveira | C54: 28 | D54: 40 | E54: 00:01:06.202 | F54: 57,1km/h | K54: 5 | L54: 00:01:06.041 | M54: 00:01:05.106 | N54: 00:01:05.421
A55: 9 | B55: Léo Oliveira | C55: 28 | D55: 40 | E55: 00:01:05.421 | F55: 57,78km/h | K55: 6 | L55: 00:01:05.807 | M55: 00:01:06.279 | N55: 00:01:05.909
A56: 9 | B56: Léo Oliveira | C56: 28 | D56: 40 | E56: 00:01:05.909 | F56: 57,35km/h | K56: 7 | L56: 00:01:05.397 | M56: 00:01:06.753 | N56: 00:01:04.467
A57: 9 | B57: Léo Oliveira | C57: 28 | D57: 40 | E57: 00:01:04.467 | F57: 58,63km/h | K57: 8 | L57: 00:01:04.842 | M57: 00:01:05.372 | N57: 00:01:05.700
A58: 9 | B58: Léo Oliveira | C58: 28 | D58: 40 | E58: 00:01:05.700 | F58: 57,53km/h | K58: 9 | L58: 00:01:04.350 | M58: 00:01:06.595 | N58: 00:01:04.556
A59: 9 | B59: Léo Oliveira | C59: 28 | D59: 40 | E59: 00:01:04.556 | F59: 58,55km/h | K59: 10 | L59: 00:01:04.095 | M59: 00:01:07.596 | N59: 00:01:04.690
A60: 9 | B60: Léo Oliveira | C60: 28 | D60: 40 | E60: 00:01:04.690 | F60: 58,43km/h | K60: 11 | L60: 00:01:05.182 | M60: 00:01:05.041 | N60: 00:01:04.585
A61: 9 | B61: Léo Oliveira | C61: 28 | D61: 40 | E61: 00:01:04.585 | F61: 58,53km/h | K61: 12 | L61: 00:01:04.547 | M61: 00:01:05.146 | N61: 00:01:04.826
A62: 9 | B62: Léo Oliveira | C62: 28 | D62: 40 | E62: 00:01:04.826 | F62: 58,31km/h | K62: 13 | L62: 00:01:04.814 | M62: 00:01:05.324 | N62: 00:01:04.807
A63: 9 | B63: Léo Oliveira | C63: 28 | D63: 40 | E63: 00:01:04.807 | F63: 58,33km/h | K63: 14 | L63: 00:01:04.177 | M63: 00:01:05.168 | N63: 00:01:04.806
A64: 9 | B64: Léo Oliveira | C64: 28 | D64: 40 | E64: 00:01:04.806 | F64: 58,33km/h | K64: 15 | L64: 00:01:04.377 | M64: 00:01:05.179 | N64: 00:01:04.450
A65: 9 | B65: Léo Oliveira | C65: 28 | D65: 40 | E65: 00:01:04.450 | F65: 58,65km/h | K65: 16 | L65: 00:01:04.798 | M65: 00:01:04.588 | N65: 00:01:04.745
A66: 9 | B66: Léo Oliveira | C66: 28 | D66: 40 | E66: 00:01:04.745 | F66: 58,38km/h | K66: 17 | L66: 00:01:04.526 | M66: 00:01:04.796 | N66: 00:01:04.622
A67: 9 | B67: Léo Oliveira | C67: 28 | D67: 40 | E67: 00:01:04.622 | F67: 58,49km/h | K67: 18 | L67: 00:01:04.505 | M67: 00:01:04.688 | N67: 00:01:04.557
A68: 9 | B68: Léo Oliveira | C68: 28 | D68: 40 | E68: 00:01:04.557 | F68: 58,55km/h | K68: 19 | L68: 00:01:04.734 | M68: 00:01:04.525 | N68: 00:01:05.068
A69: 9 | B69: Léo Oliveira | C69: 28 | D69: 40 | E69: 00:01:05.068 | F69: 58,09km/h | K69: 20 | L69: 00:01:04.479 | M69: 00:01:04.298 | N69: 00:01:04.547
A70: 9 | B70: Léo Oliveira | C70: 28 | D70: 40 | E70: 00:01:04.547 | F70: 58,56km/h | K70: 21 | L70: 00:01:04.195 | M70: 00:01:04.265 | N70: 00:01:04.221
A71: 9 | B71: Léo Oliveira | C71: 28 | D71: 40 | E71: 00:01:04.221 | F71: 58,86km/h | K71: 22 | L71: 00:01:04.220 | M71: 00:01:04.625 | N71: 00:01:04.263
A72: 9 | B72: Léo Oliveira | C72: 28 | D72: 40 | E72: 00:01:04.263 | F72: 58,82km/h | K72: 23 | L72: 00:01:04.278 | M72: 00:01:04.449 | N72: 00:01:04.441
A73: 9 | B73: Léo Oliveira | C73: 28 | D73: 40 | E73: 00:01:04.441 | F73: 58,66km/h | K73: 24 | L73: 00:01:04.578 | M73: 00:01:04.709 | N73: 00:01:04.309
A74: 9 | B74: Léo Oliveira | C74: 28 | D74: 40 | E74: 00:01:04.309 | F74: 58,78km/h | K74: 25 | L74: 00:01:05.239 | M74: 00:01:04.496 | N74: 00:01:05.129
A75: 9 | B75: Léo Oliveira | C75: 28 | D75: 40 | E75: 00:01:05.129 | F75: 58,04km/h | K75: 26 | L75: 00:01:05.002 | M75: 00:01:04.366 | N75: 00:01:04.705
A76: 9 | B76: Léo Oliveira | C76: 28 | D76: 40 | E76: 00:01:04.705 | F76: 58,42km/h | K76: 27 | L76: 00:01:06.995 | M76: 00:01:04.252 | N76: 00:01:07.111
A77: 9 | B77: Léo Oliveira | C77: 28 | D77: 40 | E77: 00:01:07.111 | F77: 56,32km/h | K77: 28 | L77: 00:01:05.459 | M77: 00:01:04.935 | N77: 00:01:05.382
A78: 9 | B78: Léo Oliveira | C78: 28 | D78: 40 | E78: 00:01:05.382 | F78: 57,81km/h | K78: 29
A79: 9 | B79: Gui Figueiredo | C79: 28 | D79: 9 | E79: 00:01:10.038 | F79: 53,97km/h | K79: 30
A80: 9 | B80: Gui Figueiredo | C80: 28 | D80: 9 | E80: 00:01:08.036 | F80: 55,56km/h | K80: 31
A81: 9 | B81: Gui Figueiredo | C81: 28 | D81: 9 | E81: 00:01:07.180 | F81: 56,27km/h | K81: 32
A82: 9 | B82: Gui Figueiredo | C82: 28 | D82: 9 | E82: 00:01:06.225 | F82: 57,08km/h | K82: 33
A83: 9 | B83: Gui Figueiredo | C83: 28 | D83: 9 | E83: 00:01:06.041 | F83: 57,24km/h | K83: 34
A84: 9 | B84: Gui Figueiredo | C84: 28 | D84: 9 | E84: 00:01:05.807 | F84: 57,44km/h | K84: 35
A85: 9 | B85: Gui Figueiredo | C85: 28 | D85: 9 | E85: 00:01:05.397 | F85: 57,8km/h | K85: 36
A86: 9 | B86: Gui Figueiredo | C86: 28 | D86: 9 | E86: 00:01:04.842 | F86: 58,3km/h | K86: 37
A87: 9 | B87: Gui Figueiredo | C87: 28 | D87: 9 | E87: 00:01:04.350 | F87: 58,74km/h | K87: 38
A88: 9 | B88: Gui Figueiredo | C88: 28 | D88: 9 | E88: 00:01:04.095 | F88: 58,97km/h | K88: 39
A89: 9 | B89: Gui Figueiredo | C89: 28 | D89: 9 | E89: 00:01:05.182 | F89: 57,99km/h | K89: 40
A90: 9 | B90: Gui Figueiredo | C90: 28 | D90: 9 | E90: 00:01:04.547 | F90: 58,56km/h | K90: 41
A91: 9 | B91: Gui Figueiredo | C91: 28 | D91: 9 | E91: 00:01:04.814 | F91: 58,32km/h | K91: 42
A92: 9 | B92: Gui Figueiredo | C92: 28 | D92: 9 | E92: 00:01:04.177 | F92: 58,9km/h | K92: 43
A93: 9 | B93: Gui Figueiredo | C93: 28 | D93: 9 | E93: 00:01:04.377 | F93: 58,72km/h | K93: 44
A94: 9 | B94: Gui Figueiredo | C94: 28 | D94: 9 | E94: 00:01:04.798 | F94: 58,34km/h | K94: 45
A95: 9 | B95: Gui Figueiredo | C95: 28 | D95: 9 | E95: 00:01:04.526 | F95: 58,58km/h | K95: 46
A96: 9 | B96: Gui Figueiredo | C96: 28 | D96: 9 | E96: 00:01:04.505 | F96: 58,6km/h | K96: 47
A97: 9 | B97: Gui Figueiredo | C97: 28 | D97: 9 | E97: 00:01:04.734 | F97: 58,39km/h | K97: 48
A98: 9 | B98: Gui Figueiredo | C98: 28 | D98: 9 | E98: 00:01:04.479 | F98: 58,62km/h | K98: 49
A99: 9 | B99: Gui Figueiredo | C99: 28 | D99: 9 | E99: 00:01:04.195 | F99: 58,88km/h | K99: 50
A100: 9 | B100: Gui Figueiredo | C100: 28 | D100: 9 | E100: 00:01:04.220 | F100: 58,86km/h | K100: 51
A101: 9 | B101: Gui Figueiredo | C101: 28 | D101: 9 | E101: 00:01:04.278 | F101: 58,81km/h | K101: 52
A102: 9 | B102: Gui Figueiredo | C102: 28 | D102: 9 | E102: 00:01:04.578 | F102: 58,53km/h | K102: 53
A103: 9 | B103: Gui Figueiredo | C103: 28 | D103: 9 | E103: 00:01:05.239 | F103: 57,94km/h | K103: 54
A104: 9 | B104: Gui Figueiredo | C104: 28 | D104: 9 | E104: 00:01:05.002 | F104: 58,15km/h | K104: 55
A105: 9 | B105: Gui Figueiredo | C105: 28 | D105: 9 | E105: 00:01:06.995 | F105: 56,42km/h | K105: 56
A106: 9 | B106: Gui Figueiredo | C106: 28 | D106: 9 | E106: 00:01:05.459 | F106: 57,75km/h | K106: 57
A107: 9 | B107: PetrÔnio Junior | C107: 28 | D107: 30 | E107: 00:01:08.766 | F107: 54,97km/h | K107: 58
A108: 9 | B108: PetrÔnio Junior | C108: 28 | D108: 30 | E108: 00:01:07.351 | F108: 56,12km/h | K108: 59
A109: 9 | B109: PetrÔnio Junior | C109: 28 | D109: 30 | E109: 00:01:07.397 | F109: 56,09km/h | K109: 60
A110: 9 | B110: PetrÔnio Junior | C110: 28 | D110: 30 | E110: 00:01:08.046 | F110: 55,55km/h
A111: 9 | B111: PetrÔnio Junior | C111: 28 | D111: 30 | E111: 00:01:05.106 | F111: 58,06km/h
A112: 9 | B112: PetrÔnio Junior | C112: 28 | D112: 30 | E112: 00:01:06.279 | F112: 57,03km/h
A113: 9 | B113: PetrÔnio Junior | C113: 28 | D113: 30 | E113: 00:01:06.753 | F113: 56,63km/h
A114: 9 | B114: PetrÔnio Junior | C114: 28 | D114: 30 | E114: 00:01:05.372 | F114: 57,82km/h
A115: 9 | B115: PetrÔnio Junior | C115: 28 | D115: 30 | E115: 00:01:06.595 | F115: 56,76km/h
A116: 9 | B116: PetrÔnio Junior | C116: 28 | D116: 30 | E116: 00:01:07.596 | F116: 55,92km/h
A117: 9 | B117: PetrÔnio Junior | C117: 28 | D117: 30 | E117: 00:01:05.041 | F117: 58,12km/h
A118: 9 | B118: PetrÔnio Junior | C118: 28 | D118: 30 | E118: 00:01:05.146 | F118: 58,02km/h
A119: 9 | B119: PetrÔnio Junior | C119: 28 | D119: 30 | E119: 00:01:05.324 | F119: 57,87km/h
A120: 9 | B120: PetrÔnio Junior | C120: 28 | D120: 30 | E120: 00:01:05.168 | F120: 58km/h
A121: 9 | B121: PetrÔnio Junior | C121: 28 | D121: 30 | E121: 00:01:05.179 | F121: 57,99km/h
A122: 9 | B122: PetrÔnio Junior | C122: 28 | D122: 30 | E122: 00:01:04.588 | F122: 58,52km/h
A123: 9 | B123: PetrÔnio Junior | C123: 28 | D123: 30 | E123: 00:01:04.796 | F123: 58,34km/h
A124: 9 | B124: PetrÔnio Junior | C124: 28 | D124: 30 | E124: 00:01:04.688 | F124: 58,43km/h
A125: 9 | B125: PetrÔnio Junior | C125: 28 | D125: 30 | E125: 00:01:04.525 | F125: 58,58km/h
A126: 9 | B126: PetrÔnio Junior | C126: 28 | D126: 30 | E126: 00:01:04.298 | F126: 58,79km/h
A127: 9 | B127: PetrÔnio Junior | C127: 28 | D127: 30 | E127: 00:01:04.265 | F127: 58,82km/h
A128: 9 | B128: PetrÔnio Junior | C128: 28 | D128: 30 | E128: 00:01:04.625 | F128: 58,49km/h
A129: 9 | B129: PetrÔnio Junior | C129: 28 | D129: 30 | E129: 00:01:04.449 | F129: 58,65km/h
A130: 9 | B130: PetrÔnio Junior | C130: 28 | D130: 30 | E130: 00:01:04.709 | F130: 58,42km/h
A131: 9 | B131: PetrÔnio Junior | C131: 28 | D131: 30 | E131: 00:01:04.496 | F131: 58,61km/h
A132: 9 | B132: PetrÔnio Junior | C132: 28 | D132: 30 | E132: 00:01:04.366 | F132: 58,73km/h
A133: 9 | B133: PetrÔnio Junior | C133: 28 | D133: 30 | E133: 00:01:04.252 | F133: 58,83km/h
A134: 9 | B134: PetrÔnio Junior | C134: 28 | D134: 30 | E134: 00:01:04.935 | F134: 58,21km/h
A135: 9 | B135: Matheus Azevedo | C135: 28 | D135: 11 | E135: 00:01:09.688 | F135: 54,24km/h
A136: 9 | B136: Matheus Azevedo | C136: 28 | D136: 11 | E136: 00:01:07.442 | F136: 56,05km/h
A137: 9 | B137: Matheus Azevedo | C137: 28 | D137: 11 | E137: 00:01:06.725 | F137: 56,65km/h
A138: 9 | B138: Matheus Azevedo | C138: 28 | D138: 11 | E138: 00:01:06.032 | F138: 57,24km/h
A139: 9 | B139: Matheus Azevedo | C139: 28 | D139: 11 | E139: 00:01:06.227 | F139: 57,08km/h
A140: 9 | B140: Matheus Azevedo | C140: 28 | D140: 11 | E140: 00:01:05.742 | F140: 57,5km/h
A141: 9 | B141: Matheus Azevedo | C141: 28 | D141: 11 | E141: 00:01:05.749 | F141: 57,49km/h
A142: 9 | B142: Matheus Azevedo | C142: 28 | D142: 11 | E142: 00:01:05.699 | F142: 57,54km/h
A143: 9 | B143: Matheus Azevedo | C143: 28 | D143: 11 | E143: 00:01:05.567 | F143: 57,65km/h
A144: 9 | B144: Matheus Azevedo | C144: 28 | D144: 11 | E144: 00:01:05.367 | F144: 57,83km/h
A145: 9 | B145: Matheus Azevedo | C145: 28 | D145: 11 | E145: 00:01:05.594 | F145: 57,63km/h
A146: 9 | B146: Matheus Azevedo | C146: 28 | D146: 11 | E146: 00:01:05.470 | F146: 57,74km/h
A147: 9 | B147: Matheus Azevedo | C147: 28 | D147: 11 | E147: 00:01:05.273 | F147: 57,91km/h
A148: 9 | B148: Matheus Azevedo | C148: 28 | D148: 11 | E148: 00:01:05.550 | F148: 57,67km/h
A149: 9 | B149: Matheus Azevedo | C149: 28 | D149: 11 | E149: 00:01:05.182 | F149: 57,99km/h
A150: 9 | B150: Matheus Azevedo | C150: 28 | D150: 11 | E150: 00:01:05.572 | F150: 57,65km/h
A151: 9 | B151: Matheus Azevedo | C151: 28 | D151: 11 | E151: 00:01:05.002 | F151: 58,15km/h
A152: 9 | B152: Matheus Azevedo | C152: 28 | D152: 11 | E152: 00:01:04.920 | F152: 58,23km/h
A153: 9 | B153: Matheus Azevedo | C153: 28 | D153: 11 | E153: 00:01:05.398 | F153: 57,8km/h
A154: 9 | B154: Matheus Azevedo | C154: 28 | D154: 11 | E154: 00:01:04.768 | F154: 58,36km/h
A155: 9 | B155: Matheus Azevedo | C155: 28 | D155: 11 | E155: 00:01:05.312 | F155: 57,88km/h
A156: 9 | B156: Matheus Azevedo | C156: 28 | D156: 11 | E156: 00:01:05.532 | F156: 57,68km/h
A157: 9 | B157: Matheus Azevedo | C157: 28 | D157: 11 | E157: 00:01:05.576 | F157: 57,64km/h
A158: 9 | B158: Matheus Azevedo | C158: 28 | D158: 11 | E158: 00:01:05.725 | F158: 57,51km/h
A159: 9 | B159: Matheus Azevedo | C159: 28 | D159: 11 | E159: 00:01:05.225 | F159: 57,95km/h
A160: 9 | B160: Matheus Azevedo | C160: 28 | D160: 11 | E160: 00:01:05.103 | F160: 58,06km/h
A161: 9 | B161: Matheus Azevedo | C161: 28 | D161: 11 | E161: 00:01:05.045 | F161: 58,11km/h
A162: 9 | B162: Matheus Azevedo | C162: 28 | D162: 11 | E162: 00:01:06.479 | F162: 56,86km/h
A163: 9 | B163: Rafael Miranda | C163: 28 | D163: 22 | E163: 00:01:09.752 | F163: 54,19km/h
A164: 9 | B164: Rafael Miranda | C164: 28 | D164: 22 | E164: 00:01:07.540 | F164: 55,97km/h
A165: 9 | B165: Rafael Miranda | C165: 28 | D165: 22 | E165: 00:01:06.742 | F165: 56,64km/h
A166: 9 | B166: Rafael Miranda | C166: 28 | D166: 22 | E166: 00:01:06.831 | F166: 56,56km/h
A167: 9 | B167: Rafael Miranda | C167: 28 | D167: 22 | E167: 00:01:06.059 | F167: 57,22km/h
A168: 9 | B168: Rafael Miranda | C168: 28 | D168: 22 | E168: 00:01:06.156 | F168: 57,14km/h
A169: 9 | B169: Rafael Miranda | C169: 28 | D169: 22 | E169: 00:01:06.321 | F169: 57km/h
A170: 9 | B170: Rafael Miranda | C170: 28 | D170: 22 | E170: 00:01:05.562 | F170: 57,66km/h
A171: 9 | B171: Rafael Miranda | C171: 28 | D171: 22 | E171: 00:01:05.212 | F171: 57,96km/h
A172: 9 | B172: Rafael Miranda | C172: 28 | D172: 22 | E172: 00:01:05.142 | F172: 58,03km/h
A173: 9 | B173: Rafael Miranda | C173: 28 | D173: 22 | E173: 00:01:05.170 | F173: 58km/h
A174: 9 | B174: Rafael Miranda | C174: 28 | D174: 22 | E174: 00:01:05.420 | F174: 57,78km/h
A175: 9 | B175: Rafael Miranda | C175: 28 | D175: 22 | E175: 00:01:04.828 | F175: 58,31km/h
A176: 9 | B176: Rafael Miranda | C176: 28 | D176: 22 | E176: 00:01:05.435 | F176: 57,77km/h
A177: 9 | B177: Rafael Miranda | C177: 28 | D177: 22 | E177: 00:01:04.885 | F177: 58,26km/h
A178: 9 | B178: Rafael Miranda | C178: 28 | D178: 22 | E178: 00:01:04.788 | F178: 58,34km/h
A179: 9 | B179: Rafael Miranda | C179: 28 | D179: 22 | E179: 00:01:05.283 | F179: 57,9km/h
A180: 9 | B180: Rafael Miranda | C180: 28 | D180: 22 | E180: 00:01:05.096 | F180: 58,07km/h
A181: 9 | B181: Rafael Miranda | C181: 28 | D181: 22 | E181: 00:01:05.075 | F181: 58,09km/h
A182: 9 | B182: Rafael Miranda | C182: 28 | D182: 22 | E182: 00:01:04.987 | F182: 58,17km/h
A183: 9 | B183: Rafael Miranda | C183: 28 | D183: 22 | E183: 00:01:04.939 | F183: 58,21km/h
A184: 9 | B184: Rafael Miranda | C184: 28 | D184: 22 | E184: 00:01:05.036 | F184: 58,12km/h
A185: 9 | B185: Rafael Miranda | C185: 28 | D185: 22 | E185: 00:01:05.250 | F185: 57,93km/h
A186: 9 | B186: Rafael Miranda | C186: 28 | D186: 22 | E186: 00:01:04.916 | F186: 58,23km/h
A187: 9 | B187: Rafael Miranda | C187: 28 | D187: 22 | E187: 00:01:04.996 | F187: 58,16km/h
A188: 9 | B188: Rafael Miranda | C188: 28 | D188: 22 | E188: 00:01:04.810 | F188: 58,32km/h
A189: 9 | B189: Rafael Miranda | C189: 28 | D189: 22 | E189: 00:01:04.925 | F189: 58,22km/h
A190: 9 | B190: Rafael Miranda | C190: 28 | D190: 22 | E190: 00:01:06.267 | F190: 57,04km/h
A191: 9 | B191: Raphael Reis | C191: 28 | D191: 32 | E191: 00:01:09.364 | F191: 54,5km/h
A192: 9 | B192: Raphael Reis | C192: 28 | D192: 32 | E192: 00:01:07.616 | F192: 55,9km/h
A193: 9 | B193: Raphael Reis | C193: 28 | D193: 32 | E193: 00:01:06.501 | F193: 56,84km/h
A194: 9 | B194: Raphael Reis | C194: 28 | D194: 32 | E194: 00:01:07.120 | F194: 56,32km/h
A195: 9 | B195: Raphael Reis | C195: 28 | D195: 32 | E195: 00:01:06.198 | F195: 57,1km/h
A196: 9 | B196: Raphael Reis | C196: 28 | D196: 32 | E196: 00:01:05.679 | F196: 57,55km/h
A197: 9 | B197: Raphael Reis | C197: 28 | D197: 32 | E197: 00:01:05.270 | F197: 57,91km/h
A198: 9 | B198: Raphael Reis | C198: 28 | D198: 32 | E198: 00:01:05.366 | F198: 57,83km/h
A199: 9 | B199: Raphael Reis | C199: 28 | D199: 32 | E199: 00:01:05.248 | F199: 57,93km/h
A200: 9 | B200: Raphael Reis | C200: 28 | D200: 32 | E200: 00:01:05.270 | F200: 57,91km/h
A201: 9 | B201: Raphael Reis | C201: 28 | D201: 32 | E201: 00:01:05.795 | F201: 57,45km/h
A202: 9 | B202: Raphael Reis | C202: 28 | D202: 32 | E202: 00:01:05.405 | F202: 57,79km/h
A203: 9 | B203: Raphael Reis | C203: 28 | D203: 32 | E203: 00:01:06.616 | F203: 56,74km/h
A204: 9 | B204: Raphael Reis | C204: 28 | D204: 32 | E204: 00:01:05.390 | F204: 57,81km/h
A205: 9 | B205: Raphael Reis | C205: 28 | D205: 32 | E205: 00:01:05.356 | F205: 57,84km/h
A206: 9 | B206: Raphael Reis | C206: 28 | D206: 32 | E206: 00:01:05.252 | F206: 57,93km/h
A207: 9 | B207: Raphael Reis | C207: 28 | D207: 32 | E207: 00:01:06.080 | F207: 57,2km/h
A208: 9 | B208: Raphael Reis | C208: 28 | D208: 32 | E208: 00:01:04.967 | F208: 58,18km/h
A209: 9 | B209: Raphael Reis | C209: 28 | D209: 32 | E209: 00:01:04.980 | F209: 58,17km/h
A210: 9 | B210: Raphael Reis | C210: 28 | D210: 32 | E210: 00:01:05.010 | F210: 58,14km/h
A211: 9 | B211: Raphael Reis | C211: 28 | D211: 32 | E211: 00:01:05.071 | F211: 58,09km/h
A212: 9 | B212: Raphael Reis | C212: 28 | D212: 32 | E212: 00:01:05.181 | F212: 57,99km/h
A213: 9 | B213: Raphael Reis | C213: 28 | D213: 32 | E213: 00:01:04.834 | F213: 58,3km/h
A214: 9 | B214: Raphael Reis | C214: 28 | D214: 32 | E214: 00:01:05.145 | F214: 58,02km/h
A215: 9 | B215: Raphael Reis | C215: 28 | D215: 32 | E215: 00:01:05.015 | F215: 58,14km/h
A216: 9 | B216: Raphael Reis | C216: 28 | D216: 32 | E216: 00:01:04.830 | F216: 58,31km/h
A217: 9 | B217: Raphael Reis | C217: 28 | D217: 32 | E217: 00:01:04.833 | F217: 58,3km/h
A218: 9 | B218: Raphael Reis | C218: 28 | D218: 32 | E218: 00:01:06.493 | F218: 56,85km/h
... 606 more rows

Sheet ETAPA 08
A1: Obs.: 1. Selecione o nome de um Piloto, 2. Com a tecla Ctrl pressionada, Selecione o seu nome e 3. Clique sobre o Gráfico (Habilite a macro) Para as demais comparações Selecione o nome do Piloto e Clique sobre o Gráfico | G1: PILOTO | H1: =L$48 -> Lucas Rabelo | I1: =M$48 -> Gui Figueiredo | J1: =A2 -> Guilherme Camarano | M1: 00:00:01
A2: Guilherme Camarano | G2: MÉDIA | H2: =AVERAGE(L$49:L$102) -> 00:01:04.126 | I2: =AVERAGE(M$49:M$102) -> 00:01:04.418 | J2: =AVERAGE(N$49:N$102) -> 00:01:04.163 | M2: =M1 -> 00:00:01
A3: Lucas Rabelo | G3: MAXIMA | H3: =LARGE(L$49:L$102,1) -> 00:01:09.594 | I3: =LARGE(M$49:M$102,1) -> 00:01:09.765 | J3: =LARGE(N$49:N$102,1) -> 00:01:08.384
A4: Gui Figueiredo | G4: MÍNIMA | H4: =SMALL(L$49:L$102,1) -> 00:01:03.211 | I4: =SMALL(M$49:M$102,1) -> 00:01:03.286 | J4: =SMALL(N$49:N$102,1) -> 00:01:03.596
A5: Lucio Chequer | G5: Desvio Padrão | H5: =_xlfn.STDEV.S(L$50:L$127) -> 00:00:01.614 | I5: =_xlfn.STDEV.S(M$50:M$127) -> 00:00:01.692 | J5: =_xlfn.STDEV.S(N$50:N$127) -> 00:00:01.194
A6: Léo Oliveira | G6: TEMPO TOTAL | H6: =SUM(L$49:L$102,1) -> 1.019297153 | I6: =SUM(M$49:M$102,1) -> 1.019385 | J6: =SUM(N$49:N$102,1) -> 1.019308403
A7: Rafael Miranda
A8: GABRIEL BOTELHO
A9: Frederico Papatella
A10: Bruno Nosse
A11: Wesley Canuto
A12: Christian Guedes
A13: Guilherme Alves | J13: =SMALL(H4:J4,1)-K13 -> 00:01:02.961 | K13: 00:00:00.250
A14: Matheus Rocha | J14: =LARGE(H3:J3,1)+K13 -> 00:01:10.015
A15: Matheus Azevedo
A16: Aparecido Arantes
A17: Samuel Farley
A18: Alan Moreira
A19: Raphael Reis
A20: Diego Rodrigues
A21: Jean Paul
A22: Celso Dantas
A23: Alexandre Melillo
A24: Henry Douglas
A25: Gustavo Barros
A26: Renato Martins
A27: Levindo Neto
A28: Anderson Teixeira
A29: PetrÔnio Junior
A30: Jarbas Reis
L48: Lucas Rabelo | M48: Gui Figueiredo | N48: Guilherme Camarano
K49: NÚMERO VOLTAS | L49: Lucas Rabelo | M49: Gui Figueiredo | N49: Guilherme Camarano
A50: ETAPA | B50: PILOTO | C50: NÚMERO VOLTAS | D50: KART | E50: Volta Tm | F50: velocidade Media | K50: 1 | L50: 00:01:09.594 | M50: 00:01:09.765 | N50: 00:01:08.384
A51: 8 | B51: Guilherme Camarano | C51: 27 | D51: 4 | E51: 00:01:08.384 | F51: 56,96km/h | K51: 3 | L51: 00:01:06.057 | M51: 00:01:07.595 | N51: 00:01:04.664
A52: 8 | B52: Guilherme Camarano | C52: 27 | D52: 4 | E52: 00:01:04.664 | F52: 60,24km/h | K52: 4 | L52: 00:01:05.009 | M52: 00:01:05.156 | N52: 00:01:04.430
A53: 8 | B53: Guilherme Camarano | C53: 27 | D53: 4 | E53: 00:01:04.430 | F53: 60,46km/h | K53: 5 | L53: 00:01:03.923 | M53: 00:01:04.612 | N53: 00:01:04.205
A54: 8 | B54: Guilherme Camarano | C54: 27 | D54: 4 | E54: 00:01:04.205 | F54: 60,67km/h | K54: 6 | L54: 00:01:04.288 | M54: 00:01:05.135 | N54: 00:01:04.074
A55: 8 | B55: Guilherme Camarano | C55: 27 | D55: 4 | E55: 00:01:04.074 | F55: 60,79km/h | K55: 7 | L55: 00:01:04.222 | M55: 00:01:04.251 | N55: 00:01:04.191
A56: 8 | B56: Guilherme Camarano | C56: 27 | D56: 4 | E56: 00:01:04.191 | F56: 60,68km/h | K56: 8 | L56: 00:01:04.047 | M56: 00:01:03.760 | N56: 00:01:04.311
A57: 8 | B57: Guilherme Camarano | C57: 27 | D57: 4 | E57: 00:01:04.311 | F57: 60,57km/h | K57: 9 | L57: 00:01:04.022 | M57: 00:01:04.254 | N57: 00:01:04.064
A58: 8 | B58: Guilherme Camarano | C58: 27 | D58: 4 | E58: 00:01:04.064 | F58: 60,8km/h | K58: 10 | L58: 00:01:03.964 | M58: 00:01:04.279 | N58: 00:01:03.952
A59: 8 | B59: Guilherme Camarano | C59: 27 | D59: 4 | E59: 00:01:03.952 | F59: 60,91km/h | K59: 11 | L59: 00:01:03.769 | M59: 00:01:03.706 | N59: 00:01:03.934
A60: 8 | B60: Guilherme Camarano | C60: 27 | D60: 4 | E60: 00:01:03.934 | F60: 60,93km/h | K60: 12 | L60: 00:01:03.988 | M60: 00:01:03.995 | N60: 00:01:04.068
A61: 8 | B61: Guilherme Camarano | C61: 27 | D61: 4 | E61: 00:01:04.068 | F61: 60,8km/h | K61: 13 | L61: 00:01:03.950 | M61: 00:01:03.897 | N61: 00:01:03.917
A62: 8 | B62: Guilherme Camarano | C62: 27 | D62: 4 | E62: 00:01:03.917 | F62: 60,94km/h | K62: 14 | L62: 00:01:03.872 | M62: 00:01:03.947 | N62: 00:01:03.923
A63: 8 | B63: Guilherme Camarano | C63: 27 | D63: 4 | E63: 00:01:03.923 | F63: 60,94km/h | K63: 15 | L63: 00:01:03.824 | M63: 00:01:03.820 | N63: 00:01:03.881
A64: 8 | B64: Guilherme Camarano | C64: 27 | D64: 4 | E64: 00:01:03.881 | F64: 60,98km/h | K64: 16 | L64: 00:01:03.559 | M64: 00:01:03.633 | N64: 00:01:03.784
A65: 8 | B65: Guilherme Camarano | C65: 27 | D65: 4 | E65: 00:01:03.784 | F65: 61,07km/h | K65: 17 | L65: 00:01:03.806 | M65: 00:01:03.787 | N65: 00:01:03.829
A66: 8 | B66: Guilherme Camarano | C66: 27 | D66: 4 | E66: 00:01:03.829 | F66: 61,03km/h | K66: 18 | L66: 00:01:03.745 | M66: 00:01:03.634 | N66: 00:01:03.738
A67: 8 | B67: Guilherme Camarano | C67: 27 | D67: 4 | E67: 00:01:03.738 | F67: 61,11km/h | K67: 19 | L67: 00:01:03.754 | M67: 00:01:03.837 | N67: 00:01:03.689
A68: 8 | B68: Guilherme Camarano | C68: 27 | D68: 4 | E68: 00:01:03.689 | F68: 61,16km/h | K68: 20 | L68: 00:01:03.591 | M68: 00:01:03.747 | N68: 00:01:03.898
A69: 8 | B69: Guilherme Camarano | C69: 27 | D69: 4 | E69: 00:01:03.898 | F69: 60,96km/h | K69: 21 | L69: 00:01:03.388 | M69: 00:01:03.286 | N69: 00:01:03.596
A70: 8 | B70: Guilherme Camarano | C70: 27 | D70: 4 | E70: 00:01:03.596 | F70: 61,25km/h | K70: 22 | L70: 00:01:03.567 | M70: 00:01:03.916 | N70: 00:01:04.060
A71: 8 | B71: Guilherme Camarano | C71: 27 | D71: 4 | E71: 00:01:04.060 | F71: 60,81km/h | K71: 23 | L71: 00:01:03.211 | M71: 00:01:03.917 | N71: 00:01:03.872
A72: 8 | B72: Guilherme Camarano | C72: 27 | D72: 4 | E72: 00:01:03.872 | F72: 60,98km/h | K72: 24 | L72: 00:01:03.493 | M72: 00:01:03.824 | N72: 00:01:03.854
A73: 8 | B73: Guilherme Camarano | C73: 27 | D73: 4 | E73: 00:01:03.854 | F73: 61km/h | K73: 25 | L73: 00:01:03.566 | M73: 00:01:04.810 | N73: 00:01:03.829
A74: 8 | B74: Guilherme Camarano | C74: 27 | D74: 4 | E74: 00:01:03.829 | F74: 61,03km/h | K74: 26 | L74: 00:01:03.577 | M74: 00:01:04.466 | N74: 00:01:03.929
A75: 8 | B75: Guilherme Camarano | C75: 27 | D75: 4 | E75: 00:01:03.929 | F75: 60,93km/h | K75: 27 | L75: 00:01:03.488 | M75: 00:01:03.835 | N75: 00:01:04.170
A76: 8 | B76: Guilherme Camarano | C76: 27 | D76: 4 | E76: 00:01:04.170 | F76: 60,7km/h | K76: 28
A77: 8 | B77: Lucas Rabelo | C77: 27 | D77: 7 | E77: 00:01:09.594 | F77: 55,97km/h | K77: 30
A78: 8 | B78: Lucas Rabelo | C78: 27 | D78: 7 | E78: 00:01:06.057 | F78: 58,97km/h | K78: 31
A79: 8 | B79: Lucas Rabelo | C79: 27 | D79: 7 | E79: 00:01:05.009 | F79: 59,92km/h | K79: 32
A80: 8 | B80: Lucas Rabelo | C80: 27 | D80: 7 | E80: 00:01:03.923 | F80: 60,94km/h | K80: 33
A81: 8 | B81: Lucas Rabelo | C81: 27 | D81: 7 | E81: 00:01:04.288 | F81: 60,59km/h | K81: 34
A82: 8 | B82: Lucas Rabelo | C82: 27 | D82: 7 | E82: 00:01:04.222 | F82: 60,65km/h | K82: 35
A83: 8 | B83: Lucas Rabelo | C83: 27 | D83: 7 | E83: 00:01:04.047 | F83: 60,82km/h | K83: 36
A84: 8 | B84: Lucas Rabelo | C84: 27 | D84: 7 | E84: 00:01:04.022 | F84: 60,84km/h | K84: 37
A85: 8 | B85: Lucas Rabelo | C85: 27 | D85: 7 | E85: 00:01:03.964 | F85: 60,9km/h | K85: 38
A86: 8 | B86: Lucas Rabelo | C86: 27 | D86: 7 | E86: 00:01:03.769 | F86: 61,08km/h | K86: 39
A87: 8 | B87: Lucas Rabelo | C87: 27 | D87: 7 | E87: 00:01:03.988 | F87: 60,87km/h | K87: 40
A88: 8 | B88: Lucas Rabelo | C88: 27 | D88: 7 | E88: 00:01:03.950 | F88: 60,91km/h | K88: 41
A89: 8 | B89: Lucas Rabelo | C89: 27 | D89: 7 | E89: 00:01:03.872 | F89: 60,98km/h | K89: 42
A90: 8 | B90: Lucas Rabelo | C90: 27 | D90: 7 | E90: 00:01:03.824 | F90: 61,03km/h | K90: 43
A91: 8 | B91: Lucas Rabelo | C91: 27 | D91: 7 | E91: 00:01:03.559 | F91: 61,28km/h | K91: 44
A92: 8 | B92: Lucas Rabelo | C92: 27 | D92: 7 | E92: 00:01:03.806 | F92: 61,05km/h | K92: 45
A93: 8 | B93: Lucas Rabelo | C93: 27 | D93: 7 | E93: 00:01:03.745 | F93: 61,11km/h | K93: 46
A94: 8 | B94: Lucas Rabelo | C94: 27 | D94: 7 | E94: 00:01:03.754 | F94: 61,1km/h | K94: 47
A95: 8 | B95: Lucas Rabelo | C95: 27 | D95: 7 | E95: 00:01:03.591 | F95: 61,25km/h | K95: 48
A96: 8 | B96: Lucas Rabelo | C96: 27 | D96: 7 | E96: 00:01:03.388 | F96: 61,45km/h | K96: 49
A97: 8 | B97: Lucas Rabelo | C97: 27 | D97: 7 | E97: 00:01:03.567 | F97: 61,28km/h | K97: 50
A98: 8 | B98: Lucas Rabelo | C98: 27 | D98: 7 | E98: 00:01:03.211 | F98: 61,62km/h | K98: 51
A99: 8 | B99: Lucas Rabelo | C99: 27 | D99: 7 | E99: 00:01:03.493 | F99: 61,35km/h | K99: 52
A100: 8 | B100: Lucas Rabelo | C100: 27 | D100: 7 | E100: 00:01:03.566 | F100: 61,28km/h | K100: 53
A101: 8 | B101: Lucas Rabelo | C101: 27 | D101: 7 | E101: 00:01:03.577 | F101: 61,27km/h | K101: 54
A102: 8 | B102: Lucas Rabelo | C102: 27 | D102: 7 | E102: 00:01:03.488 | F102: 61,35km/h | K102: 55
A103: 8 | B103: Gui Figueiredo | C103: 27 | D103: 22 | E103: 00:01:09.765 | F103: 55,83km/h | K103: 57
A104: 8 | B104: Gui Figueiredo | C104: 27 | D104: 22 | E104: 00:01:07.595 | F104: 57,63km/h | K104: 58
A105: 8 | B105: Gui Figueiredo | C105: 27 | D105: 22 | E105: 00:01:05.156 | F105: 59,78km/h | K105: 59
A106: 8 | B106: Gui Figueiredo | C106: 27 | D106: 22 | E106: 00:01:04.612 | F106: 60,29km/h | K106: 60
A107: 8 | B107: Gui Figueiredo | C107: 27 | D107: 22 | E107: 00:01:05.135 | F107: 59,8km/h | K107: 61
A108: 8 | B108: Gui Figueiredo | C108: 27 | D108: 22 | E108: 00:01:04.251 | F108: 60,62km/h | K108: 62
A109: 8 | B109: Gui Figueiredo | C109: 27 | D109: 22 | E109: 00:01:03.760 | F109: 61,09km/h | K109: 63
A110: 8 | B110: Gui Figueiredo | C110: 27 | D110: 22 | E110: 00:01:04.254 | F110: 60,62km/h
A111: 8 | B111: Gui Figueiredo | C111: 27 | D111: 22 | E111: 00:01:04.279 | F111: 60,6km/h
A112: 8 | B112: Gui Figueiredo | C112: 27 | D112: 22 | E112: 00:01:03.706 | F112: 61,14km/h
A113: 8 | B113: Gui Figueiredo | C113: 27 | D113: 22 | E113: 00:01:03.995 | F113: 60,87km/h
A114: 8 | B114: Gui Figueiredo | C114: 27 | D114: 22 | E114: 00:01:03.897 | F114: 60,96km/h | L114: =MAX(L50:L76) -> 00:01:09.594 | M114: =MAX(M50:M76) -> 00:01:09.765 | N114: 00:01:08.384
A115: 8 | B115: Gui Figueiredo | C115: 27 | D115: 22 | E115: 00:01:03.947 | F115: 60,91km/h
A116: 8 | B116: Gui Figueiredo | C116: 27 | D116: 22 | E116: 00:01:03.820 | F116: 61,03km/h
A117: 8 | B117: Gui Figueiredo | C117: 27 | D117: 22 | E117: 00:01:03.633 | F117: 61,21km/h
A118: 8 | B118: Gui Figueiredo | C118: 27 | D118: 22 | E118: 00:01:03.787 | F118: 61,07km/h
A119: 8 | B119: Gui Figueiredo | C119: 27 | D119: 22 | E119: 00:01:03.634 | F119: 61,21km/h
A120: 8 | B120: Gui Figueiredo | C120: 27 | D120: 22 | E120: 00:01:03.837 | F120: 61,02km/h
A121: 8 | B121: Gui Figueiredo | C121: 27 | D121: 22 | E121: 00:01:03.747 | F121: 61,1km/h
A122: 8 | B122: Gui Figueiredo | C122: 27 | D122: 22 | E122: 00:01:03.286 | F122: 61,55km/h
A123: 8 | B123: Gui Figueiredo | C123: 27 | D123: 22 | E123: 00:01:03.916 | F123: 60,94km/h
A124: 8 | B124: Gui Figueiredo | C124: 27 | D124: 22 | E124: 00:01:03.917 | F124: 60,94km/h
A125: 8 | B125: Gui Figueiredo | C125: 27 | D125: 22 | E125: 00:01:03.824 | F125: 61,03km/h
A126: 8 | B126: Gui Figueiredo | C126: 27 | D126: 22 | E126: 00:01:04.810 | F126: 60,1km/h
A127: 8 | B127: Gui Figueiredo | C127: 27 | D127: 22 | E127: 00:01:04.466 | F127: 60,42km/h
A128: 8 | B128: Gui Figueiredo | C128: 27 | D128: 22 | E128: 00:01:03.835 | F128: 61,02km/h
A129: 8 | B129: Lucio Chequer | C129: 27 | D129: 39 | E129: 00:01:08.139 | F129: 57,17km/h
A130: 8 | B130: Lucio Chequer | C130: 27 | D130: 39 | E130: 00:01:07.458 | F130: 57,74km/h
A131: 8 | B131: Lucio Chequer | C131: 27 | D131: 39 | E131: 00:01:05.007 | F131: 59,92km/h
A132: 8 | B132: Lucio Chequer | C132: 27 | D132: 39 | E132: 00:01:04.640 | F132: 60,26km/h
A133: 8 | B133: Lucio Chequer | C133: 27 | D133: 39 | E133: 00:01:05.089 | F133: 59,84km/h
A134: 8 | B134: Lucio Chequer | C134: 27 | D134: 39 | E134: 00:01:04.296 | F134: 60,58km/h
A135: 8 | B135: Lucio Chequer | C135: 27 | D135: 39 | E135: 00:01:03.763 | F135: 61,09km/h
A136: 8 | B136: Lucio Chequer | C136: 27 | D136: 39 | E136: 00:01:04.248 | F136: 60,63km/h
A137: 8 | B137: Lucio Chequer | C137: 27 | D137: 39 | E137: 00:01:04.239 | F137: 60,64km/h
A138: 8 | B138: Lucio Chequer | C138: 27 | D138: 39 | E138: 00:01:03.728 | F138: 61,12km/h
A139: 8 | B139: Lucio Chequer | C139: 27 | D139: 39 | E139: 00:01:04.022 | F139: 60,84km/h
A140: 8 | B140: Lucio Chequer | C140: 27 | D140: 39 | E140: 00:01:03.893 | F140: 60,96km/h
A141: 8 | B141: Lucio Chequer | C141: 27 | D141: 39 | E141: 00:01:03.922 | F141: 60,94km/h
A142: 8 | B142: Lucio Chequer | C142: 27 | D142: 39 | E142: 00:01:03.855 | F142: 61km/h
A143: 8 | B143: Lucio Chequer | C143: 27 | D143: 39 | E143: 00:01:03.628 | F143: 61,22km/h
A144: 8 | B144: Lucio Chequer | C144: 27 | D144: 39 | E144: 00:01:03.738 | F144: 61,11km/h
A145: 8 | B145: Lucio Chequer | C145: 27 | D145: 39 | E145: 00:01:03.687 | F145: 61,16km/h
A146: 8 | B146: Lucio Chequer | C146: 27 | D146: 39 | E146: 00:01:03.802 | F146: 61,05km/h
A147: 8 | B147: Lucio Chequer | C147: 27 | D147: 39 | E147: 00:01:03.757 | F147: 61,09km/h
A148: 8 | B148: Lucio Chequer | C148: 27 | D148: 39 | E148: 00:01:03.650 | F148: 61,2km/h
A149: 8 | B149: Lucio Chequer | C149: 27 | D149: 39 | E149: 00:01:03.873 | F149: 60,98km/h
A150: 8 | B150: Lucio Chequer | C150: 27 | D150: 39 | E150: 00:01:03.949 | F150: 60,91km/h
A151: 8 | B151: Lucio Chequer | C151: 27 | D151: 39 | E151: 00:01:03.817 | F151: 61,04km/h
A152: 8 | B152: Lucio Chequer | C152: 27 | D152: 39 | E152: 00:01:04.799 | F152: 60,11km/h
A153: 8 | B153: Lucio Chequer | C153: 27 | D153: 39 | E153: 00:01:04.486 | F153: 60,4km/h
A154: 8 | B154: Lucio Chequer | C154: 27 | D154: 39 | E154: 00:01:03.836 | F154: 61,02km/h
A155: 8 | B155: Léo Oliveira | C155: 27 | D155: 14 | E155: 00:01:08.695 | F155: 56,7km/h
A156: 8 | B156: Léo Oliveira | C156: 27 | D156: 14 | E156: 00:01:06.697 | F156: 58,4km/h
A157: 8 | B157: Léo Oliveira | C157: 27 | D157: 14 | E157: 00:01:06.448 | F157: 58,62km/h
A158: 8 | B158: Léo Oliveira | C158: 27 | D158: 14 | E158: 00:01:05.349 | F158: 59,61km/h
A159: 8 | B159: Léo Oliveira | C159: 27 | D159: 14 | E159: 00:01:05.035 | F159: 59,89km/h
A160: 8 | B160: Léo Oliveira | C160: 27 | D160: 14 | E160: 00:01:05.451 | F160: 59,51km/h
A161: 8 | B161: Léo Oliveira | C161: 27 | D161: 14 | E161: 00:01:04.943 | F161: 59,98km/h
A162: 8 | B162: Léo Oliveira | C162: 27 | D162: 14 | E162: 00:01:04.726 | F162: 60,18km/h
A163: 8 | B163: Léo Oliveira | C163: 27 | D163: 14 | E163: 00:01:04.363 | F163: 60,52km/h
A164: 8 | B164: Léo Oliveira | C164: 27 | D164: 14 | E164: 00:01:04.523 | F164: 60,37km/h
A165: 8 | B165: Léo Oliveira | C165: 27 | D165: 14 | E165: 00:01:04.277 | F165: 60,6km/h
A166: 8 | B166: Léo Oliveira | C166: 27 | D166: 14 | E166: 00:01:04.045 | F166: 60,82km/h
A167: 8 | B167: Léo Oliveira | C167: 27 | D167: 14 | E167: 00:01:04.181 | F167: 60,69km/h
A168: 8 | B168: Léo Oliveira | C168: 27 | D168: 14 | E168: 00:01:04.197 | F168: 60,68km/h
A169: 8 | B169: Léo Oliveira | C169: 27 | D169: 14 | E169: 00:01:04.687 | F169: 60,22km/h
A170: 8 | B170: Léo Oliveira | C170: 27 | D170: 14 | E170: 00:01:04.559 | F170: 60,34km/h
A171: 8 | B171: Léo Oliveira | C171: 27 | D171: 14 | E171: 00:01:04.559 | F171: 60,34km/h
A172: 8 | B172: Léo Oliveira | C172: 27 | D172: 14 | E172: 00:01:04.663 | F172: 60,24km/h
A173: 8 | B173: Léo Oliveira | C173: 27 | D173: 14 | E173: 00:01:04.360 | F173: 60,52km/h
A174: 8 | B174: Léo Oliveira | C174: 27 | D174: 14 | E174: 00:01:04.578 | F174: 60,32km/h
A175: 8 | B175: Léo Oliveira | C175: 27 | D175: 14 | E175: 00:01:04.316 | F175: 60,56km/h
A176: 8 | B176: Léo Oliveira | C176: 27 | D176: 14 | E176: 00:01:04.399 | F176: 60,49km/h
A177: 8 | B177: Léo Oliveira | C177: 27 | D177: 14 | E177: 00:01:04.457 | F177: 60,43km/h
A178: 8 | B178: Léo Oliveira | C178: 27 | D178: 14 | E178: 00:01:04.638 | F178: 60,26km/h
A179: 8 | B179: Léo Oliveira | C179: 27 | D179: 14 | E179: 00:01:04.309 | F179: 60,57km/h
A180: 8 | B180: Léo Oliveira | C180: 27 | D180: 14 | E180: 00:01:04.495 | F180: 60,4km/h
A181: 8 | B181: Rafael Miranda | C181: 27 | D181: 15 | E181: 00:01:08.732 | F181: 56,67km/h
A182: 8 | B182: Rafael Miranda | C182: 27 | D182: 15 | E182: 00:01:07.530 | F182: 57,68km/h
A183: 8 | B183: Rafael Miranda | C183: 27 | D183: 15 | E183: 00:01:06.727 | F183: 58,38km/h
A184: 8 | B184: Rafael Miranda | C184: 27 | D184: 15 | E184: 00:01:07.495 | F184: 57,71km/h
A185: 8 | B185: Rafael Miranda | C185: 27 | D185: 15 | E185: 00:01:05.375 | F185: 59,58km/h
A186: 8 | B186: Rafael Miranda | C186: 27 | D186: 15 | E186: 00:01:04.736 | F186: 60,17km/h
A187: 8 | B187: Rafael Miranda | C187: 27 | D187: 15 | E187: 00:01:04.277 | F187: 60,6km/h
A188: 8 | B188: Rafael Miranda | C188: 27 | D188: 15 | E188: 00:01:05.068 | F188: 59,86km/h
A189: 8 | B189: Rafael Miranda | C189: 27 | D189: 15 | E189: 00:01:05.141 | F189: 59,8km/h
A190: 8 | B190: Rafael Miranda | C190: 27 | D190: 15 | E190: 00:01:04.395 | F190: 60,49km/h
A191: 8 | B191: Rafael Miranda | C191: 27 | D191: 15 | E191: 00:01:04.224 | F191: 60,65km/h
A192: 8 | B192: Rafael Miranda | C192: 27 | D192: 15 | E192: 00:01:04.100 | F192: 60,77km/h
A193: 8 | B193: Rafael Miranda | C193: 27 | D193: 15 | E193: 00:01:04.127 | F193: 60,74km/h
A194: 8 | B194: Rafael Miranda | C194: 27 | D194: 15 | E194: 00:01:04.082 | F194: 60,78km/h
A195: 8 | B195: Rafael Miranda | C195: 27 | D195: 15 | E195: 00:01:05.087 | F195: 59,85km/h
A196: 8 | B196: Rafael Miranda | C196: 27 | D196: 15 | E196: 00:01:04.794 | F196: 60,12km/h
A197: 8 | B197: Rafael Miranda | C197: 27 | D197: 15 | E197: 00:01:04.278 | F197: 60,6km/h
A198: 8 | B198: Rafael Miranda | C198: 27 | D198: 15 | E198: 00:01:03.973 | F198: 60,89km/h
A199: 8 | B199: Rafael Miranda | C199: 27 | D199: 15 | E199: 00:01:03.981 | F199: 60,88km/h
A200: 8 | B200: Rafael Miranda | C200: 27 | D200: 15 | E200: 00:01:04.088 | F200: 60,78km/h
A201: 8 | B201: Rafael Miranda | C201: 27 | D201: 15 | E201: 00:01:04.057 | F201: 60,81km/h
A202: 8 | B202: Rafael Miranda | C202: 27 | D202: 15 | E202: 00:01:04.313 | F202: 60,57km/h
A203: 8 | B203: Rafael Miranda | C203: 27 | D203: 15 | E203: 00:01:05.043 | F203: 59,89km/h
A204: 8 | B204: Rafael Miranda | C204: 27 | D204: 15 | E204: 00:01:04.186 | F204: 60,69km/h
A205: 8 | B205: Rafael Miranda | C205: 27 | D205: 15 | E205: 00:01:04.111 | F205: 60,76km/h
A206: 8 | B206: Rafael Miranda | C206: 27 | D206: 15 | E206: 00:01:04.180 | F206: 60,69km/h
A207: 8 | B207: GABRIEL BOTELHO | C207: 27 | D207: 45 | E207: 00:01:07.307 | F207: 57,87km/h
A208: 8 | B208: GABRIEL BOTELHO | C208: 27 | D208: 45 | E208: 00:01:07.037 | F208: 58,11km/h
A209: 8 | B209: GABRIEL BOTELHO | C209: 27 | D209: 45 | E209: 00:01:06.498 | F209: 58,58km/h
A210: 8 | B210: GABRIEL BOTELHO | C210: 27 | D210: 45 | E210: 00:01:06.288 | F210: 58,76km/h
A211: 8 | B211: GABRIEL BOTELHO | C211: 27 | D211: 45 | E211: 00:01:05.166 | F211: 59,77km/h
A212: 8 | B212: GABRIEL BOTELHO | C212: 27 | D212: 45 | E212: 00:01:04.857 | F212: 60,06km/h
A213: 8 | B213: GABRIEL BOTELHO | C213: 27 | D213: 45 | E213: 00:01:05.235 | F213: 59,71km/h
A214: 8 | B214: GABRIEL BOTELHO | C214: 27 | D214: 45 | E214: 00:01:04.815 | F214: 60,1km/h
A215: 8 | B215: GABRIEL BOTELHO | C215: 27 | D215: 45 | E215: 00:01:04.720 | F215: 60,19km/h
A216: 8 | B216: GABRIEL BOTELHO | C216: 27 | D216: 45 | E216: 00:01:04.460 | F216: 60,43km/h
A217: 8 | B217: GABRIEL BOTELHO | C217: 27 | D217: 45 | E217: 00:01:04.460 | F217: 60,43km/h
... 582 more rows

Sheet ETAPA 07
A1: Obs.: 1. Selecione o nome de um Piloto, 2. Com a tecla Ctrl pressionada, Selecione o seu nome e 3. Clique sobre o Gráfico (Habilite a macro) Para as demais comparações Selecione o nome do Piloto e Clique sobre o Gráfico | G1: PILOTO | H1: =L$48 -> Diego Rodrigues | I1: =M$48 -> Alexandre Melillo | J1: =A2 -> Christian Guedes | M1: 00:00:01
A2: Christian Guedes | G2: MÉDIA | H2: =AVERAGE(L$49:L$105) -> 00:01:15.219 | I2: =AVERAGE(M$49:M$105) -> 00:01:15.689 | J2: =AVERAGE(N$49:N$105) -> 00:01:14.793 | M2: =M1 -> 00:00:01
A3: Diego Rodrigues | G3: MAXIMA | H3: =LARGE(L$49:L$105,1) -> 00:01:20.807 | I3: =LARGE(M$49:M$105,1) -> 00:01:21.726 | J3: =LARGE(N$49:N$105,1) -> 00:01:21.114
A4: Alexandre Melillo | G4: MÍNIMA | H4: =SMALL(L$49:L$105,1) -> 00:01:13.940 | I4: =SMALL(M$49:M$105,1) -> 00:01:14.217 | J4: =SMALL(N$49:N$105,1) -> 00:01:13.190
A5: Rafael Miranda | G5: Desvio Padrão | H5: =_xlfn.STDEV.S(L$50:L$130) -> 00:00:14.325 | I5: =_xlfn.STDEV.S(M$50:M$130) -> 00:00:14.414 | J5: =_xlfn.STDEV.S(N$50:N$130) -> 00:00:14.235
A6: Saulo Chagas | G6: TEMPO TOTAL | H6: =SUM(L$49:L$105,1) -> 1.021764664 | I6: =SUM(M$49:M$105,1) -> 1.021900822 | J6: =SUM(N$49:N$105,1) -> 1.021641632
A7: Felipe Curi
A8: Raphael Reis
A9: Matheus Azevedo
A10: Fernando Mota
A11: Bruno Nosse
A12: Jarbas Reis
A13: Guilherme Alves | J13: =SMALL(H4:J4,1)-K13 -> 00:01:12.940 | K13: 00:00:00.250
A14: Anderson Teixeira | J14: =LARGE(H3:J3,1)+K13 -> 00:01:21.976
A15: Gui Figueiredo
A16: Wesley Canuto
A17: Guilherme Camarano
A18: Renato Martins
A19: Lucio Chequer
A20: Samuel Farley
A21: Jean Paul
A22: Aparecido Arantes
A23: Bruno Camargos
A24: Frederico Papatella
A25: Celso Dantas
A26: Levindo Neto
A27: Lucas Rabelo
A28: Henry Douglas
A29: Matheus Rocha
L48: Diego Rodrigues | M48: Alexandre Melillo | N48: Christian Guedes
K49: NÚMERO VOLTAS | L49: Diego Rodrigues | M49: Alexandre Melillo | N49: Christian Guedes
A50: ETAPA | B50: PILOTO | C50: NÚMERO VOLTAS | D50: KART | E50: Volta Tm | F50: velocidade Media | K50: 1 | L50: 00:01:20.807 | M50: 00:01:21.726 | N50: 00:01:19.940
A51: 7 | B51: Christian Guedes | C51: 25 | D51: 9 | E51: 00:01:19.940 | F51: 54,04km/h | K51: 2 | L51: 00:01:19.043 | M51: 00:01:19.571 | N51: 00:01:21.114
A52: 7 | B52: Christian Guedes | C52: 25 | D52: 9 | E52: 00:01:21.114 | F52: 53,26km/h | K52: 3 | L52: 00:01:16.331 | M52: 00:01:16.019 | N52: 00:01:16.978
A53: 7 | B53: Christian Guedes | C53: 25 | D53: 9 | E53: 00:01:16.978 | F53: 56,12km/h | K53: 4 | L53: 00:01:17.251 | M53: 00:01:17.173 | N53: 00:01:16.072
A54: 7 | B54: Christian Guedes | C54: 25 | D54: 9 | E54: 00:01:16.072 | F54: 56,79km/h | K54: 5 | L54: 00:01:16.690 | M54: 00:01:17.792 | N54: 00:01:17.136
A55: 7 | B55: Christian Guedes | C55: 25 | D55: 9 | E55: 00:01:17.136 | F55: 56km/h | K55: 6 | L55: 00:01:15.295 | M55: 00:01:15.310 | N55: 00:01:15.672
A56: 7 | B56: Christian Guedes | C56: 25 | D56: 9 | E56: 00:01:15.672 | F56: 57,09km/h | K56: 7 | L56: 00:01:14.615 | M56: 00:01:14.786 | N56: 00:01:14.469
A57: 7 | B57: Christian Guedes | C57: 25 | D57: 9 | E57: 00:01:14.469 | F57: 58,01km/h | K57: 8 | L57: 00:01:14.813 | M57: 00:01:14.458 | N57: 00:01:14.364
A58: 7 | B58: Christian Guedes | C58: 25 | D58: 9 | E58: 00:01:14.364 | F58: 58,09km/h | K58: 9 | L58: 00:01:14.371 | M58: 00:01:14.459 | N58: 00:01:14.043
A59: 7 | B59: Christian Guedes | C59: 25 | D59: 9 | E59: 00:01:14.043 | F59: 58,34km/h | K59: 10 | L59: 00:01:14.207 | M59: 00:01:15.122 | N59: 00:01:14.153
A60: 7 | B60: Christian Guedes | C60: 25 | D60: 9 | E60: 00:01:14.153 | F60: 58,26km/h | K60: 11 | L60: 00:01:16.161 | M60: 00:01:15.110 | N60: 00:01:15.382
A61: 7 | B61: Christian Guedes | C61: 25 | D61: 9 | E61: 00:01:15.382 | F61: 57,31km/h | K61: 12 | L61: 00:01:15.066 | M61: 00:01:16.081 | N61: 00:01:14.616
A62: 7 | B62: Christian Guedes | C62: 25 | D62: 9 | E62: 00:01:14.616 | F62: 57,9km/h | K62: 13 | L62: 00:01:14.430 | M62: 00:01:15.106 | N62: 00:01:13.994
A63: 7 | B63: Christian Guedes | C63: 25 | D63: 9 | E63: 00:01:13.994 | F63: 58,38km/h | K63: 14 | L63: 00:01:13.940 | M63: 00:01:14.317 | N63: 00:01:13.617
A64: 7 | B64: Christian Guedes | C64: 25 | D64: 9 | E64: 00:01:13.617 | F64: 58,68km/h | K64: 15 | L64: 00:01:14.024 | M64: 00:01:16.368 | N64: 00:01:13.190
A65: 7 | B65: Christian Guedes | C65: 25 | D65: 9 | E65: 00:01:13.190 | F65: 59,02km/h | K65: 16 | L65: 00:01:14.274 | M65: 00:01:14.848 | N65: 00:01:13.954
A66: 7 | B66: Christian Guedes | C66: 25 | D66: 9 | E66: 00:01:13.954 | F66: 58,41km/h | K66: 17 | L66: 00:01:14.120 | M66: 00:01:15.075 | N66: 00:01:13.244
A67: 7 | B67: Christian Guedes | C67: 25 | D67: 9 | E67: 00:01:13.244 | F67: 58,98km/h | K67: 18 | L67: 00:01:14.338 | M67: 00:01:14.446 | N67: 00:01:13.241
A68: 7 | B68: Christian Guedes | C68: 25 | D68: 9 | E68: 00:01:13.241 | F68: 58,98km/h | K68: 19 | L68: 00:01:14.219 | M68: 00:01:14.389 | N68: 00:01:13.410
A69: 7 | B69: Christian Guedes | C69: 25 | D69: 9 | E69: 00:01:13.410 | F69: 58,85km/h | K69: 20 | L69: 00:01:14.193 | M69: 00:01:14.395 | N69: 00:01:14.025
A70: 7 | B70: Christian Guedes | C70: 25 | D70: 9 | E70: 00:01:14.025 | F70: 58,36km/h | K70: 21 | L70: 00:01:14.587 | M70: 00:01:14.217 | N70: 00:01:13.206
A71: 7 | B71: Christian Guedes | C71: 25 | D71: 9 | E71: 00:01:13.206 | F71: 59,01km/h | K71: 22 | L71: 00:01:14.287 | M71: 00:01:14.531 | N71: 00:01:13.690
A72: 7 | B72: Christian Guedes | C72: 25 | D72: 9 | E72: 00:01:13.690 | F72: 58,62km/h | K72: 23 | L72: 00:01:14.339 | M72: 00:01:14.602 | N72: 00:01:13.271
A73: 7 | B73: Christian Guedes | C73: 25 | D73: 9 | E73: 00:01:13.271 | F73: 58,96km/h | K73: 24 | L73: 00:01:14.444 | M73: 00:01:15.028 | N73: 00:01:13.723
A74: 7 | B74: Christian Guedes | C74: 25 | D74: 9 | E74: 00:01:13.723 | F74: 58,6km/h | K74: 25 | L74: 00:01:14.622 | M74: 00:01:17.302 | N74: 00:01:13.333
A75: 7 | B75: Christian Guedes | C75: 25 | D75: 9 | E75: 00:01:13.333 | F75: 58,91km/h | K75: 26
A76: 7 | B76: Diego Rodrigues | C76: 25 | D76: 13 | E76: 00:01:20.807 | F76: 53,46km/h | K76: 27
A77: 7 | B77: Diego Rodrigues | C77: 25 | D77: 13 | E77: 00:01:19.043 | F77: 54,65km/h | K77: 28
A78: 7 | B78: Diego Rodrigues | C78: 25 | D78: 13 | E78: 00:01:16.331 | F78: 56,6km/h | K78: 29
A79: 7 | B79: Diego Rodrigues | C79: 25 | D79: 13 | E79: 00:01:17.251 | F79: 55,92km/h | K79: 30
A80: 7 | B80: Diego Rodrigues | C80: 25 | D80: 13 | E80: 00:01:16.690 | F80: 56,33km/h | K80: 31
A81: 7 | B81: Diego Rodrigues | C81: 25 | D81: 13 | E81: 00:01:15.295 | F81: 57,37km/h | K81: 32
A82: 7 | B82: Diego Rodrigues | C82: 25 | D82: 13 | E82: 00:01:14.615 | F82: 57,9km/h | K82: 33
A83: 7 | B83: Diego Rodrigues | C83: 25 | D83: 13 | E83: 00:01:14.813 | F83: 57,74km/h | K83: 34
A84: 7 | B84: Diego Rodrigues | C84: 25 | D84: 13 | E84: 00:01:14.371 | F84: 58,09km/h | K84: 35
A85: 7 | B85: Diego Rodrigues | C85: 25 | D85: 13 | E85: 00:01:14.207 | F85: 58,22km/h | K85: 36
A86: 7 | B86: Diego Rodrigues | C86: 25 | D86: 13 | E86: 00:01:16.161 | F86: 56,72km/h | K86: 37
A87: 7 | B87: Diego Rodrigues | C87: 25 | D87: 13 | E87: 00:01:15.066 | F87: 57,55km/h | K87: 38
A88: 7 | B88: Diego Rodrigues | C88: 25 | D88: 13 | E88: 00:01:14.430 | F88: 58,04km/h | K88: 39
A89: 7 | B89: Diego Rodrigues | C89: 25 | D89: 13 | E89: 00:01:13.940 | F89: 58,43km/h | K89: 40
A90: 7 | B90: Diego Rodrigues | C90: 25 | D90: 13 | E90: 00:01:14.024 | F90: 58,36km/h | K90: 41
A91: 7 | B91: Diego Rodrigues | C91: 25 | D91: 13 | E91: 00:01:14.274 | F91: 58,16km/h | K91: 42
A92: 7 | B92: Diego Rodrigues | C92: 25 | D92: 13 | E92: 00:01:14.120 | F92: 58,28km/h | K92: 43
A93: 7 | B93: Diego Rodrigues | C93: 25 | D93: 13 | E93: 00:01:14.338 | F93: 58,11km/h | K93: 44
A94: 7 | B94: Diego Rodrigues | C94: 25 | D94: 13 | E94: 00:01:14.219 | F94: 58,21km/h | K94: 45
A95: 7 | B95: Diego Rodrigues | C95: 25 | D95: 13 | E95: 00:01:14.193 | F95: 58,23km/h | K95: 46
A96: 7 | B96: Diego Rodrigues | C96: 25 | D96: 13 | E96: 00:01:14.587 | F96: 57,92km/h | K96: 47
A97: 7 | B97: Diego Rodrigues | C97: 25 | D97: 13 | E97: 00:01:14.287 | F97: 58,15km/h | K97: 48
A98: 7 | B98: Diego Rodrigues | C98: 25 | D98: 13 | E98: 00:01:14.339 | F98: 58,11km/h | K98: 49
A99: 7 | B99: Diego Rodrigues | C99: 25 | D99: 13 | E99: 00:01:14.444 | F99: 58,03km/h | K99: 50
A100: 7 | B100: Diego Rodrigues | C100: 25 | D100: 13 | E100: 00:01:14.622 | F100: 57,89km/h | K100: 51
A101: 7 | B101: Alexandre Melillo | C101: 25 | D101: 3 | E101: 00:01:21.726 | F101: 52,86km/h | K101: 52
A102: 7 | B102: Alexandre Melillo | C102: 25 | D102: 3 | E102: 00:01:19.571 | F102: 54,29km/h | K102: 53
A103: 7 | B103: Alexandre Melillo | C103: 25 | D103: 3 | E103: 00:01:16.019 | F103: 56,83km/h | K103: 54
A104: 7 | B104: Alexandre Melillo | C104: 25 | D104: 3 | E104: 00:01:17.173 | F104: 55,98km/h | K104: 55
A105: 7 | B105: Alexandre Melillo | C105: 25 | D105: 3 | E105: 00:01:17.792 | F105: 55,53km/h | K105: 56
A106: 7 | B106: Alexandre Melillo | C106: 25 | D106: 3 | E106: 00:01:15.310 | F106: 57,36km/h | K106: 57
A107: 7 | B107: Alexandre Melillo | C107: 25 | D107: 3 | E107: 00:01:14.786 | F107: 57,76km/h | K107: 58
A108: 7 | B108: Alexandre Melillo | C108: 25 | D108: 3 | E108: 00:01:14.458 | F108: 58,02km/h | K108: 59
A109: 7 | B109: Alexandre Melillo | C109: 25 | D109: 3 | E109: 00:01:14.459 | F109: 58,02km/h | K109: 60
A110: 7 | B110: Alexandre Melillo | C110: 25 | D110: 3 | E110: 00:01:15.122 | F110: 57,51km/h | K110: 61
A111: 7 | B111: Alexandre Melillo | C111: 25 | D111: 3 | E111: 00:01:15.110 | F111: 57,52km/h | K111: 62
A112: 7 | B112: Alexandre Melillo | C112: 25 | D112: 3 | E112: 00:01:16.081 | F112: 56,78km/h | K112: 63
A113: 7 | B113: Alexandre Melillo | C113: 25 | D113: 3 | E113: 00:01:15.106 | F113: 57,52km/h
A114: 7 | B114: Alexandre Melillo | C114: 25 | D114: 3 | E114: 00:01:14.317 | F114: 58,13km/h
A115: 7 | B115: Alexandre Melillo | C115: 25 | D115: 3 | E115: 00:01:16.368 | F115: 56,57km/h
A116: 7 | B116: Alexandre Melillo | C116: 25 | D116: 3 | E116: 00:01:14.848 | F116: 57,72km/h | L116: =_xlfn.STDEV.S(L50:L77) -> 00:00:01.686 | M116: =_xlfn.STDEV.S(M50:M77) -> 00:00:01.819 | N116: 00:00:02.069
A117: 7 | B117: Alexandre Melillo | C117: 25 | D117: 3 | E117: 00:01:15.075 | F117: 57,54km/h | L117: =MAX(L50:L77) -> 00:01:20.807 | M117: =MAX(M50:M77) -> 00:01:21.726 | N117: 00:01:21.114
A118: 7 | B118: Alexandre Melillo | C118: 25 | D118: 3 | E118: 00:01:14.446 | F118: 58,03km/h
A119: 7 | B119: Alexandre Melillo | C119: 25 | D119: 3 | E119: 00:01:14.389 | F119: 58,07km/h
A120: 7 | B120: Alexandre Melillo | C120: 25 | D120: 3 | E120: 00:01:14.395 | F120: 58,07km/h
A121: 7 | B121: Alexandre Melillo | C121: 25 | D121: 3 | E121: 00:01:14.217 | F121: 58,21km/h
A122: 7 | B122: Alexandre Melillo | C122: 25 | D122: 3 | E122: 00:01:14.531 | F122: 57,96km/h
A123: 7 | B123: Alexandre Melillo | C123: 25 | D123: 3 | E123: 00:01:14.602 | F123: 57,91km/h
A124: 7 | B124: Alexandre Melillo | C124: 25 | D124: 3 | E124: 00:01:15.028 | F124: 57,58km/h
A125: 7 | B125: Alexandre Melillo | C125: 25 | D125: 3 | E125: 00:01:17.302 | F125: 55,88km/h
A126: 7 | B126: Rafael Miranda | C126: 25 | D126: 21 | E126: 00:01:20.102 | F126: 53,93km/h
A127: 7 | B127: Rafael Miranda | C127: 25 | D127: 21 | E127: 00:01:18.131 | F127: 55,29km/h
A128: 7 | B128: Rafael Miranda | C128: 25 | D128: 21 | E128: 00:01:16.746 | F128: 56,29km/h
A129: 7 | B129: Rafael Miranda | C129: 25 | D129: 21 | E129: 00:01:17.270 | F129: 55,91km/h
A130: 7 | B130: Rafael Miranda | C130: 25 | D130: 21 | E130: 00:01:16.622 | F130: 56,38km/h
A131: 7 | B131: Rafael Miranda | C131: 25 | D131: 21 | E131: 00:01:15.626 | F131: 57,12km/h
A132: 7 | B132: Rafael Miranda | C132: 25 | D132: 21 | E132: 00:01:14.936 | F132: 57,65km/h
A133: 7 | B133: Rafael Miranda | C133: 25 | D133: 21 | E133: 00:01:14.560 | F133: 57,94km/h
A134: 7 | B134: Rafael Miranda | C134: 25 | D134: 21 | E134: 00:01:14.340 | F134: 58,11km/h
A135: 7 | B135: Rafael Miranda | C135: 25 | D135: 21 | E135: 00:01:14.982 | F135: 57,61km/h
A136: 7 | B136: Rafael Miranda | C136: 25 | D136: 21 | E136: 00:01:16.225 | F136: 56,67km/h
A137: 7 | B137: Rafael Miranda | C137: 25 | D137: 21 | E137: 00:01:16.115 | F137: 56,76km/h
A138: 7 | B138: Rafael Miranda | C138: 25 | D138: 21 | E138: 00:01:14.529 | F138: 57,96km/h
A139: 7 | B139: Rafael Miranda | C139: 25 | D139: 21 | E139: 00:01:14.833 | F139: 57,73km/h
A140: 7 | B140: Rafael Miranda | C140: 25 | D140: 21 | E140: 00:01:15.289 | F140: 57,38km/h
A141: 7 | B141: Rafael Miranda | C141: 25 | D141: 21 | E141: 00:01:14.891 | F141: 57,68km/h
A142: 7 | B142: Rafael Miranda | C142: 25 | D142: 21 | E142: 00:01:14.562 | F142: 57,94km/h
A143: 7 | B143: Rafael Miranda | C143: 25 | D143: 21 | E143: 00:01:14.505 | F143: 57,98km/h
A144: 7 | B144: Rafael Miranda | C144: 25 | D144: 21 | E144: 00:01:14.433 | F144: 58,04km/h
A145: 7 | B145: Rafael Miranda | C145: 25 | D145: 21 | E145: 00:01:15.267 | F145: 57,4km/h
A146: 7 | B146: Rafael Miranda | C146: 25 | D146: 21 | E146: 00:01:14.643 | F146: 57,88km/h
A147: 7 | B147: Rafael Miranda | C147: 25 | D147: 21 | E147: 00:01:15.219 | F147: 57,43km/h
A148: 7 | B148: Rafael Miranda | C148: 25 | D148: 21 | E148: 00:01:14.537 | F148: 57,96km/h
A149: 7 | B149: Rafael Miranda | C149: 25 | D149: 21 | E149: 00:01:14.702 | F149: 57,83km/h
A150: 7 | B150: Rafael Miranda | C150: 25 | D150: 21 | E150: 00:01:17.482 | F150: 55,75km/h
A151: 7 | B151: Saulo Chagas | C151: 25 | D151: 41 | E151: 00:01:21.055 | F151: 53,3km/h
A152: 7 | B152: Saulo Chagas | C152: 25 | D152: 41 | E152: 00:01:18.296 | F152: 55,18km/h
A153: 7 | B153: Saulo Chagas | C153: 25 | D153: 41 | E153: 00:01:16.402 | F153: 56,54km/h
A154: 7 | B154: Saulo Chagas | C154: 25 | D154: 41 | E154: 00:01:16.031 | F154: 56,82km/h
A155: 7 | B155: Saulo Chagas | C155: 25 | D155: 41 | E155: 00:01:15.922 | F155: 56,9km/h
A156: 7 | B156: Saulo Chagas | C156: 25 | D156: 41 | E156: 00:01:15.874 | F156: 56,94km/h
A157: 7 | B157: Saulo Chagas | C157: 25 | D157: 41 | E157: 00:01:15.748 | F157: 57,03km/h
A158: 7 | B158: Saulo Chagas | C158: 25 | D158: 41 | E158: 00:01:16.073 | F158: 56,79km/h
A159: 7 | B159: Saulo Chagas | C159: 25 | D159: 41 | E159: 00:01:15.848 | F159: 56,96km/h
A160: 7 | B160: Saulo Chagas | C160: 25 | D160: 41 | E160: 00:01:15.309 | F160: 57,36km/h
A161: 7 | B161: Saulo Chagas | C161: 25 | D161: 41 | E161: 00:01:16.676 | F161: 56,34km/h
A162: 7 | B162: Saulo Chagas | C162: 25 | D162: 41 | E162: 00:01:15.904 | F162: 56,91km/h
A163: 7 | B163: Saulo Chagas | C163: 25 | D163: 41 | E163: 00:01:15.069 | F163: 57,55km/h
A164: 7 | B164: Saulo Chagas | C164: 25 | D164: 41 | E164: 00:01:15.302 | F164: 57,37km/h
A165: 7 | B165: Saulo Chagas | C165: 25 | D165: 41 | E165: 00:01:15.979 | F165: 56,86km/h
A166: 7 | B166: Saulo Chagas | C166: 25 | D166: 41 | E166: 00:01:15.173 | F166: 57,47km/h
A167: 7 | B167: Saulo Chagas | C167: 25 | D167: 41 | E167: 00:01:15.163 | F167: 57,48km/h
A168: 7 | B168: Saulo Chagas | C168: 25 | D168: 41 | E168: 00:01:15.185 | F168: 57,46km/h
A169: 7 | B169: Saulo Chagas | C169: 25 | D169: 41 | E169: 00:01:14.992 | F169: 57,61km/h
A170: 7 | B170: Saulo Chagas | C170: 25 | D170: 41 | E170: 00:01:15.130 | F170: 57,5km/h
A171: 7 | B171: Saulo Chagas | C171: 25 | D171: 41 | E171: 00:01:15.114 | F171: 57,51km/h
A172: 7 | B172: Saulo Chagas | C172: 25 | D172: 41 | E172: 00:01:15.723 | F172: 57,05km/h
A173: 7 | B173: Saulo Chagas | C173: 25 | D173: 41 | E173: 00:01:15.318 | F173: 57,36km/h
A174: 7 | B174: Saulo Chagas | C174: 25 | D174: 41 | E174: 00:01:15.260 | F174: 57,4km/h
A175: 7 | B175: Saulo Chagas | C175: 25 | D175: 41 | E175: 00:01:15.988 | F175: 56,85km/h
A176: 7 | B176: Felipe Curi | C176: 25 | D176: 27 | E176: 00:01:20.120 | F176: 53,92km/h
A177: 7 | B177: Felipe Curi | C177: 25 | D177: 27 | E177: 00:01:19.030 | F177: 54,66km/h
A178: 7 | B178: Felipe Curi | C178: 25 | D178: 27 | E178: 00:01:16.865 | F178: 56,2km/h
A179: 7 | B179: Felipe Curi | C179: 25 | D179: 27 | E179: 00:01:17.240 | F179: 55,93km/h
A180: 7 | B180: Felipe Curi | C180: 25 | D180: 27 | E180: 00:01:17.142 | F180: 56km/h
A181: 7 | B181: Felipe Curi | C181: 25 | D181: 27 | E181: 00:01:16.614 | F181: 56,39km/h
A182: 7 | B182: Felipe Curi | C182: 25 | D182: 27 | E182: 00:01:16.183 | F182: 56,71km/h
A183: 7 | B183: Felipe Curi | C183: 25 | D183: 27 | E183: 00:01:15.797 | F183: 56,99km/h
A184: 7 | B184: Felipe Curi | C184: 25 | D184: 27 | E184: 00:01:15.793 | F184: 57km/h
A185: 7 | B185: Felipe Curi | C185: 25 | D185: 27 | E185: 00:01:14.608 | F185: 57,9km/h
A186: 7 | B186: Felipe Curi | C186: 25 | D186: 27 | E186: 00:01:15.252 | F186: 57,41km/h
A187: 7 | B187: Felipe Curi | C187: 25 | D187: 27 | E187: 00:01:14.786 | F187: 57,76km/h
A188: 7 | B188: Felipe Curi | C188: 25 | D188: 27 | E188: 00:01:14.669 | F188: 57,86km/h
A189: 7 | B189: Felipe Curi | C189: 25 | D189: 27 | E189: 00:01:15.566 | F189: 57,17km/h
A190: 7 | B190: Felipe Curi | C190: 25 | D190: 27 | E190: 00:01:14.755 | F190: 57,79km/h
A191: 7 | B191: Felipe Curi | C191: 25 | D191: 27 | E191: 00:01:14.707 | F191: 57,83km/h
A192: 7 | B192: Felipe Curi | C192: 25 | D192: 27 | E192: 00:01:14.941 | F192: 57,65km/h
A193: 7 | B193: Felipe Curi | C193: 25 | D193: 27 | E193: 00:01:14.233 | F193: 58,2km/h
A194: 7 | B194: Felipe Curi | C194: 25 | D194: 27 | E194: 00:01:14.437 | F194: 58,04km/h
A195: 7 | B195: Felipe Curi | C195: 25 | D195: 27 | E195: 00:01:14.185 | F195: 58,23km/h
A196: 7 | B196: Felipe Curi | C196: 25 | D196: 27 | E196: 00:01:14.823 | F196: 57,74km/h
A197: 7 | B197: Felipe Curi | C197: 25 | D197: 27 | E197: 00:01:14.880 | F197: 57,69km/h
A198: 7 | B198: Felipe Curi | C198: 25 | D198: 27 | E198: 00:01:14.535 | F198: 57,96km/h
A199: 7 | B199: Felipe Curi | C199: 25 | D199: 27 | E199: 00:01:14.665 | F199: 57,86km/h
A200: 7 | B200: Felipe Curi | C200: 25 | D200: 27 | E200: 00:01:15.730 | F200: 57,04km/h
A201: 7 | B201: Raphael Reis | C201: 25 | D201: 23 | E201: 00:01:21.687 | F201: 52,88km/h
A202: 7 | B202: Raphael Reis | C202: 25 | D202: 23 | E202: 00:01:17.621 | F202: 55,66km/h
A203: 7 | B203: Raphael Reis | C203: 25 | D203: 23 | E203: 00:01:17.447 | F203: 55,78km/h
A204: 7 | B204: Raphael Reis | C204: 25 | D204: 23 | E204: 00:01:15.829 | F204: 56,97km/h
A205: 7 | B205: Raphael Reis | C205: 25 | D205: 23 | E205: 00:01:15.746 | F205: 57,03km/h
A206: 7 | B206: Raphael Reis | C206: 25 | D206: 23 | E206: 00:01:15.571 | F206: 57,16km/h
A207: 7 | B207: Raphael Reis | C207: 25 | D207: 23 | E207: 00:01:15.635 | F207: 57,12km/h
A208: 7 | B208: Raphael Reis | C208: 25 | D208: 23 | E208: 00:01:15.645 | F208: 57,11km/h
A209: 7 | B209: Raphael Reis | C209: 25 | D209: 23 | E209: 00:01:16.412 | F209: 56,54km/h
A210: 7 | B210: Raphael Reis | C210: 25 | D210: 23 | E210: 00:01:16.770 | F210: 56,27km/h
A211: 7 | B211: Raphael Reis | C211: 25 | D211: 23 | E211: 00:01:15.879 | F211: 56,93km/h
A212: 7 | B212: Raphael Reis | C212: 25 | D212: 23 | E212: 00:01:15.881 | F212: 56,93km/h
A213: 7 | B213: Raphael Reis | C213: 25 | D213: 23 | E213: 00:01:15.123 | F213: 57,51km/h
A214: 7 | B214: Raphael Reis | C214: 25 | D214: 23 | E214: 00:01:15.510 | F214: 57,21km/h
A215: 7 | B215: Raphael Reis | C215: 25 | D215: 23 | E215: 00:01:15.290 | F215: 57,38km/h
A216: 7 | B216: Raphael Reis | C216: 25 | D216: 23 | E216: 00:01:15.001 | F216: 57,6km/h
A217: 7 | B217: Raphael Reis | C217: 25 | D217: 23 | E217: 00:01:15.194 | F217: 57,45km/h
A218: 7 | B218: Raphael Reis | C218: 25 | D218: 23 | E218: 00:01:15.248 | F218: 57,41km/h
... 575 more rows

Sheet ETAPA 06
A1: Obs.: 1. Selecione o nome de um Piloto, 2. Com a tecla Ctrl pressionada, Selecione o seu nome e 3. Clique sobre o Gráfico (Habilite a macro) Para as demais comparações Selecione o nome do Piloto e Clique sobre o Gráfico | G1: PILOTO | H1: =L$48 -> Rafael Miranda | I1: =M$48 -> Gui Figueiredo | J1: =A2 -> Fernando Mota | M1: 00:00:01
A2: Fernando Mota | G2: MÉDIA | H2: =AVERAGE(L$49:L$105) -> 00:00:52.985 | I2: =AVERAGE(M$49:M$105) -> 00:00:53.222 | J2: =AVERAGE(N$49:N$105) -> 00:00:52.795 | M2: =M1 -> 00:00:01
A3: Rafael Miranda | G3: MAXIMA | H3: =LARGE(L$49:L$105,1) -> 00:00:56.783 | I3: =LARGE(M$49:M$105,1) -> 00:00:58.107 | J3: =LARGE(N$49:N$105,1) -> 00:00:57.205
A4: Gui Figueiredo | G4: MÍNIMA | H4: =SMALL(L$49:L$105,1) -> 00:00:52.388 | I4: =SMALL(M$49:M$105,1) -> 00:00:52.298 | J4: =SMALL(N$49:N$105,1) -> 00:00:52.171
A5: Léo Oliveira | G5: Desvio Padrão | H5: =_xlfn.STDEV.S(L$50:L$130) -> 00:00:08.754 | I5: =_xlfn.STDEV.S(M$50:M$130) -> 00:00:08.791 | J5: =_xlfn.STDEV.S(N$50:N$130) -> 00:00:08.733
A6: Lucas Rabelo | G6: TEMPO TOTAL | H6: =SUM(L$49:L$105,1) -> 1.020850394 | I6: =SUM(M$49:M$105,1) -> 1.020943762 | J6: =SUM(N$49:N$105,1) -> 1.020775648
A7: Samuel Silva
A8: Anderson Teixeira
A9: Jarbas Reis
A10: Wesley Canuto
A11: Alan Moreira
A12: Diego Rodrigues
A13: Raphael Reis | J13: =SMALL(H4:J4,1)-K13 -> 00:00:51.921 | K13: 00:00:00.250
A14: Christian Guedes | J14: =LARGE(H3:J3,1)+K13 -> 00:00:58.357
A15: Bruno Camargos
A16: Guilherme Alves
A17: Lucio Chequer
A18: Alexandre Melillo
A19: Matheus Azevedo
A20: Renato Martins
A21: Henry Douglas
A22: Frederico Papatella
A23: Jean Paul
A24: Matheus Rocha
A25: Bruno Nosse
A26: Celso Dantas
A27: Saulo Chagas
A28: Levindo Neto
A29: Thiago Santos
A30: Gustavo Barros
A31: PetrÔnio Junior
L48: Rafael Miranda | M48: Gui Figueiredo | N48: Fernando Mota
K49: NÚMERO VOLTAS | L49: Rafael Miranda | M49: Gui Figueiredo | N49: Fernando Mota
A50: ETAPA | B50: PILOTO | C50: NÚMERO VOLTAS | D50: KART | E50: Volta Tm | F50: velocidade Media | K50: 1 | L50: 00:00:56.783 | M50: 00:00:56.924 | N50: 00:00:57.205
A51: 6 | B51: Fernando Mota | C51: 34 | D51: 3 | E51: 00:00:57.205 | F51: 49,65km/h | K51: 2 | L51: 00:00:54.968 | M51: 00:00:58.107 | N51: 00:00:53.957
A52: 6 | B52: Fernando Mota | C52: 34 | D52: 3 | E52: 00:00:53.957 | F52: 52,64km/h | K52: 3 | L52: 00:00:53.828 | M52: 00:00:53.862 | N52: 00:00:53.248
A53: 6 | B53: Fernando Mota | C53: 34 | D53: 3 | E53: 00:00:53.248 | F53: 53,34km/h | K53: 4 | L53: 00:00:53.386 | M53: 00:00:53.273 | N53: 00:00:53.002
A54: 6 | B54: Fernando Mota | C54: 34 | D54: 3 | E54: 00:00:53.002 | F54: 53,59km/h | K54: 5 | L54: 00:00:54.673 | M54: 00:00:53.462 | N54: 00:00:52.808
A55: 6 | B55: Fernando Mota | C55: 34 | D55: 3 | E55: 00:00:52.808 | F55: 53,79km/h | K55: 6 | L55: 00:00:52.764 | M55: 00:00:53.235 | N55: 00:00:52.708
A56: 6 | B56: Fernando Mota | C56: 34 | D56: 3 | E56: 00:00:52.708 | F56: 53,89km/h | K56: 7 | L56: 00:00:52.480 | M56: 00:00:54.705 | N56: 00:00:52.713
A57: 6 | B57: Fernando Mota | C57: 34 | D57: 3 | E57: 00:00:52.713 | F57: 53,88km/h | K57: 8 | L57: 00:00:52.635 | M57: 00:00:53.510 | N57: 00:00:52.555
A58: 6 | B58: Fernando Mota | C58: 34 | D58: 3 | E58: 00:00:52.555 | F58: 54,05km/h | K58: 9 | L58: 00:00:52.660 | M58: 00:00:53.978 | N58: 00:00:52.560
A59: 6 | B59: Fernando Mota | C59: 34 | D59: 3 | E59: 00:00:52.560 | F59: 54,04km/h | K59: 10 | L59: 00:00:52.711 | M59: 00:00:53.555 | N59: 00:00:52.489
A60: 6 | B60: Fernando Mota | C60: 34 | D60: 3 | E60: 00:00:52.489 | F60: 54,11km/h | K60: 11 | L60: 00:00:52.669 | M60: 00:00:52.887 | N60: 00:00:52.415
A61: 6 | B61: Fernando Mota | C61: 34 | D61: 3 | E61: 00:00:52.415 | F61: 54,19km/h | K61: 12 | L61: 00:00:52.871 | M61: 00:00:52.386 | N61: 00:00:52.171
A62: 6 | B62: Fernando Mota | C62: 34 | D62: 3 | E62: 00:00:52.171 | F62: 54,44km/h | K62: 13 | L62: 00:00:52.919 | M62: 00:00:52.685 | N62: 00:00:52.346
A63: 6 | B63: Fernando Mota | C63: 34 | D63: 3 | E63: 00:00:52.346 | F63: 54,26km/h | K63: 14 | L63: 00:00:52.718 | M63: 00:00:52.523 | N63: 00:00:52.411
A64: 6 | B64: Fernando Mota | C64: 34 | D64: 3 | E64: 00:00:52.411 | F64: 54,19km/h | K64: 15 | L64: 00:00:52.452 | M64: 00:00:52.513 | N64: 00:00:52.196
A65: 6 | B65: Fernando Mota | C65: 34 | D65: 3 | E65: 00:00:52.196 | F65: 54,42km/h | K65: 16 | L65: 00:00:52.757 | M65: 00:00:53.217 | N65: 00:00:52.821
A66: 6 | B66: Fernando Mota | C66: 34 | D66: 3 | E66: 00:00:52.821 | F66: 53,77km/h | K66: 17 | L66: 00:00:52.527 | M66: 00:00:52.582 | N66: 00:00:52.300
A67: 6 | B67: Fernando Mota | C67: 34 | D67: 3 | E67: 00:00:52.300 | F67: 54,31km/h | K67: 18 | L67: 00:00:52.537 | M67: 00:00:52.456 | N67: 00:00:52.750
A68: 6 | B68: Fernando Mota | C68: 34 | D68: 3 | E68: 00:00:52.750 | F68: 53,85km/h | K68: 19 | L68: 00:00:52.895 | M68: 00:00:52.647 | N68: 00:00:52.274
A69: 6 | B69: Fernando Mota | C69: 34 | D69: 3 | E69: 00:00:52.274 | F69: 54,34km/h | K69: 20 | L69: 00:00:52.593 | M69: 00:00:52.715 | N69: 00:00:52.208
A70: 6 | B70: Fernando Mota | C70: 34 | D70: 3 | E70: 00:00:52.208 | F70: 54,41km/h | K70: 21 | L70: 00:00:52.937 | M70: 00:00:52.528 | N70: 00:00:52.276
A71: 6 | B71: Fernando Mota | C71: 34 | D71: 3 | E71: 00:00:52.276 | F71: 54,33km/h | K71: 22 | L71: 00:00:52.388 | M71: 00:00:52.526 | N71: 00:00:52.668
A72: 6 | B72: Fernando Mota | C72: 34 | D72: 3 | E72: 00:00:52.668 | F72: 53,93km/h | K72: 23 | L72: 00:00:52.667 | M72: 00:00:52.500 | N72: 00:00:52.961
A73: 6 | B73: Fernando Mota | C73: 34 | D73: 3 | E73: 00:00:52.961 | F73: 53,63km/h | K73: 24 | L73: 00:00:52.411 | M73: 00:00:52.298 | N73: 00:00:52.486
A74: 6 | B74: Fernando Mota | C74: 34 | D74: 3 | E74: 00:00:52.486 | F74: 54,12km/h | K74: 25 | L74: 00:00:52.853 | M74: 00:00:53.076 | N74: 00:00:52.704
A75: 6 | B75: Fernando Mota | C75: 34 | D75: 3 | E75: 00:00:52.704 | F75: 53,89km/h | K75: 26 | L75: 00:00:52.709 | M75: 00:00:52.407 | N75: 00:00:53.766
A76: 6 | B76: Fernando Mota | C76: 34 | D76: 3 | E76: 00:00:53.766 | F76: 52,83km/h | K76: 27 | L76: 00:00:52.446 | M76: 00:00:53.803 | N76: 00:00:52.393
A77: 6 | B77: Fernando Mota | C77: 34 | D77: 3 | E77: 00:00:52.393 | F77: 54,21km/h | K77: 28 | L77: 00:00:53.020 | M77: 00:00:52.725 | N77: 00:00:53.106
A78: 6 | B78: Fernando Mota | C78: 34 | D78: 3 | E78: 00:00:53.106 | F78: 53,49km/h | K78: 29 | L78: 00:00:52.726 | M78: 00:00:52.757 | N78: 00:00:52.813
A79: 6 | B79: Fernando Mota | C79: 34 | D79: 3 | E79: 00:00:52.813 | F79: 53,78km/h | K79: 30 | L79: 00:00:52.506 | M79: 00:00:52.850 | N79: 00:00:52.514
A80: 6 | B80: Fernando Mota | C80: 34 | D80: 3 | E80: 00:00:52.514 | F80: 54,09km/h | K80: 31 | L80: 00:00:52.543 | M80: 00:00:52.534 | N80: 00:00:52.734
A81: 6 | B81: Fernando Mota | C81: 34 | D81: 3 | E81: 00:00:52.734 | F81: 53,86km/h | K81: 32 | L81: 00:00:52.574 | M81: 00:00:52.594 | N81: 00:00:52.615
A82: 6 | B82: Fernando Mota | C82: 34 | D82: 3 | E82: 00:00:52.615 | F82: 53,98km/h | K82: 33 | L82: 00:00:52.963 | M82: 00:00:52.916 | N82: 00:00:52.444
A83: 6 | B83: Fernando Mota | C83: 34 | D83: 3 | E83: 00:00:52.444 | F83: 54,16km/h | K83: 34 | L83: 00:00:52.905 | M83: 00:00:52.805 | N83: 00:00:52.399
A84: 6 | B84: Fernando Mota | C84: 34 | D84: 3 | E84: 00:00:52.399 | F84: 54,21km/h | K84: 35
A85: 6 | B85: Rafael Miranda | C85: 34 | D85: 16 | E85: 00:00:56.783 | F85: 50,02km/h | K85: 36
A86: 6 | B86: Rafael Miranda | C86: 34 | D86: 16 | E86: 00:00:54.968 | F86: 51,67km/h | K86: 37
A87: 6 | B87: Rafael Miranda | C87: 34 | D87: 16 | E87: 00:00:53.828 | F87: 52,77km/h | K87: 38
A88: 6 | B88: Rafael Miranda | C88: 34 | D88: 16 | E88: 00:00:53.386 | F88: 53,2km/h | K88: 39
A89: 6 | B89: Rafael Miranda | C89: 34 | D89: 16 | E89: 00:00:54.673 | F89: 51,95km/h | K89: 40
A90: 6 | B90: Rafael Miranda | C90: 34 | D90: 16 | E90: 00:00:52.764 | F90: 53,83km/h | K90: 41
A91: 6 | B91: Rafael Miranda | C91: 34 | D91: 16 | E91: 00:00:52.480 | F91: 54,12km/h | K91: 42
A92: 6 | B92: Rafael Miranda | C92: 34 | D92: 16 | E92: 00:00:52.635 | F92: 53,96km/h | K92: 43
A93: 6 | B93: Rafael Miranda | C93: 34 | D93: 16 | E93: 00:00:52.660 | F93: 53,94km/h | K93: 44
A94: 6 | B94: Rafael Miranda | C94: 34 | D94: 16 | E94: 00:00:52.711 | F94: 53,89km/h | K94: 45
A95: 6 | B95: Rafael Miranda | C95: 34 | D95: 16 | E95: 00:00:52.669 | F95: 53,93km/h | K95: 46
A96: 6 | B96: Rafael Miranda | C96: 34 | D96: 16 | E96: 00:00:52.871 | F96: 53,72km/h | K96: 47
A97: 6 | B97: Rafael Miranda | C97: 34 | D97: 16 | E97: 00:00:52.919 | F97: 53,67km/h | K97: 48
A98: 6 | B98: Rafael Miranda | C98: 34 | D98: 16 | E98: 00:00:52.718 | F98: 53,88km/h | K98: 49
A99: 6 | B99: Rafael Miranda | C99: 34 | D99: 16 | E99: 00:00:52.452 | F99: 54,15km/h | K99: 50
A100: 6 | B100: Rafael Miranda | C100: 34 | D100: 16 | E100: 00:00:52.757 | F100: 53,84km/h | K100: 51
A101: 6 | B101: Rafael Miranda | C101: 34 | D101: 16 | E101: 00:00:52.527 | F101: 54,08km/h | K101: 52
A102: 6 | B102: Rafael Miranda | C102: 34 | D102: 16 | E102: 00:00:52.537 | F102: 54,06km/h | K102: 53
A103: 6 | B103: Rafael Miranda | C103: 34 | D103: 16 | E103: 00:00:52.895 | F103: 53,7km/h | K103: 54
A104: 6 | B104: Rafael Miranda | C104: 34 | D104: 16 | E104: 00:00:52.593 | F104: 54,01km/h | K104: 55
A105: 6 | B105: Rafael Miranda | C105: 34 | D105: 16 | E105: 00:00:52.937 | F105: 53,66km/h | K105: 56
A106: 6 | B106: Rafael Miranda | C106: 34 | D106: 16 | E106: 00:00:52.388 | F106: 54,22km/h | K106: 57
A107: 6 | B107: Rafael Miranda | C107: 34 | D107: 16 | E107: 00:00:52.667 | F107: 53,93km/h | K107: 58
A108: 6 | B108: Rafael Miranda | C108: 34 | D108: 16 | E108: 00:00:52.411 | F108: 54,19km/h | K108: 59
A109: 6 | B109: Rafael Miranda | C109: 34 | D109: 16 | E109: 00:00:52.853 | F109: 53,74km/h | K109: 60
A110: 6 | B110: Rafael Miranda | C110: 34 | D110: 16 | E110: 00:00:52.709 | F110: 53,89km/h | K110: 61
A111: 6 | B111: Rafael Miranda | C111: 34 | D111: 16 | E111: 00:00:52.446 | F111: 54,16km/h | K111: 62
A112: 6 | B112: Rafael Miranda | C112: 34 | D112: 16 | E112: 00:00:53.020 | F112: 53,57km/h | K112: 63
A113: 6 | B113: Rafael Miranda | C113: 34 | D113: 16 | E113: 00:00:52.726 | F113: 53,87km/h
A114: 6 | B114: Rafael Miranda | C114: 34 | D114: 16 | E114: 00:00:52.506 | F114: 54,1km/h
A115: 6 | B115: Rafael Miranda | C115: 34 | D115: 16 | E115: 00:00:52.543 | F115: 54,06km/h
A116: 6 | B116: Rafael Miranda | C116: 34 | D116: 16 | E116: 00:00:52.574 | F116: 54,03km/h | L116: =_xlfn.STDEV.S(L50:L77) -> 00:00:00.959 | M116: =_xlfn.STDEV.S(M50:M77) -> 00:00:01.333 | N116: 00:00:00.961
A117: 6 | B117: Rafael Miranda | C117: 34 | D117: 16 | E117: 00:00:52.963 | F117: 53,63km/h | L117: =MAX(L50:L77) -> 00:00:56.783 | M117: =MAX(M50:M77) -> 00:00:58.107 | N117: 00:00:57.205
A118: 6 | B118: Rafael Miranda | C118: 34 | D118: 16 | E118: 00:00:52.905 | F118: 53,69km/h
A119: 6 | B119: Gui Figueiredo | C119: 34 | D119: 38 | E119: 00:00:56.924 | F119: 49,9km/h
A120: 6 | B120: Gui Figueiredo | C120: 34 | D120: 38 | E120: 00:00:58.107 | F120: 48,88km/h
A121: 6 | B121: Gui Figueiredo | C121: 34 | D121: 38 | E121: 00:00:53.862 | F121: 52,73km/h
A122: 6 | B122: Gui Figueiredo | C122: 34 | D122: 38 | E122: 00:00:53.273 | F122: 53,32km/h
A123: 6 | B123: Gui Figueiredo | C123: 34 | D123: 38 | E123: 00:00:53.462 | F123: 53,13km/h
A124: 6 | B124: Gui Figueiredo | C124: 34 | D124: 38 | E124: 00:00:53.235 | F124: 53,36km/h
A125: 6 | B125: Gui Figueiredo | C125: 34 | D125: 38 | E125: 00:00:54.705 | F125: 51,92km/h
A126: 6 | B126: Gui Figueiredo | C126: 34 | D126: 38 | E126: 00:00:53.510 | F126: 53,08km/h
A127: 6 | B127: Gui Figueiredo | C127: 34 | D127: 38 | E127: 00:00:53.978 | F127: 52,62km/h
A128: 6 | B128: Gui Figueiredo | C128: 34 | D128: 38 | E128: 00:00:53.555 | F128: 53,04km/h
A129: 6 | B129: Gui Figueiredo | C129: 34 | D129: 38 | E129: 00:00:52.887 | F129: 53,71km/h
A130: 6 | B130: Gui Figueiredo | C130: 34 | D130: 38 | E130: 00:00:52.386 | F130: 54,22km/h
A131: 6 | B131: Gui Figueiredo | C131: 34 | D131: 38 | E131: 00:00:52.685 | F131: 53,91km/h
A132: 6 | B132: Gui Figueiredo | C132: 34 | D132: 38 | E132: 00:00:52.523 | F132: 54,08km/h
A133: 6 | B133: Gui Figueiredo | C133: 34 | D133: 38 | E133: 00:00:52.513 | F133: 54,09km/h
A134: 6 | B134: Gui Figueiredo | C134: 34 | D134: 38 | E134: 00:00:53.217 | F134: 53,37km/h
A135: 6 | B135: Gui Figueiredo | C135: 34 | D135: 38 | E135: 00:00:52.582 | F135: 54,02km/h
A136: 6 | B136: Gui Figueiredo | C136: 34 | D136: 38 | E136: 00:00:52.456 | F136: 54,15km/h
A137: 6 | B137: Gui Figueiredo | C137: 34 | D137: 38 | E137: 00:00:52.647 | F137: 53,95km/h
A138: 6 | B138: Gui Figueiredo | C138: 34 | D138: 38 | E138: 00:00:52.715 | F138: 53,88km/h
A139: 6 | B139: Gui Figueiredo | C139: 34 | D139: 38 | E139: 00:00:52.528 | F139: 54,07km/h
A140: 6 | B140: Gui Figueiredo | C140: 34 | D140: 38 | E140: 00:00:52.526 | F140: 54,08km/h
A141: 6 | B141: Gui Figueiredo | C141: 34 | D141: 38 | E141: 00:00:52.500 | F141: 54,1km/h
A142: 6 | B142: Gui Figueiredo | C142: 34 | D142: 38 | E142: 00:00:52.298 | F142: 54,31km/h
A143: 6 | B143: Gui Figueiredo | C143: 34 | D143: 38 | E143: 00:00:53.076 | F143: 53,52km/h
A144: 6 | B144: Gui Figueiredo | C144: 34 | D144: 38 | E144: 00:00:52.407 | F144: 54,2km/h
A145: 6 | B145: Gui Figueiredo | C145: 34 | D145: 38 | E145: 00:00:53.803 | F145: 52,79km/h
A146: 6 | B146: Gui Figueiredo | C146: 34 | D146: 38 | E146: 00:00:52.725 | F146: 53,87km/h
A147: 6 | B147: Gui Figueiredo | C147: 34 | D147: 38 | E147: 00:00:52.757 | F147: 53,84km/h
A148: 6 | B148: Gui Figueiredo | C148: 34 | D148: 38 | E148: 00:00:52.850 | F148: 53,74km/h
A149: 6 | B149: Gui Figueiredo | C149: 34 | D149: 38 | E149: 00:00:52.534 | F149: 54,07km/h
A150: 6 | B150: Gui Figueiredo | C150: 34 | D150: 38 | E150: 00:00:52.594 | F150: 54,01km/h
A151: 6 | B151: Gui Figueiredo | C151: 34 | D151: 38 | E151: 00:00:52.916 | F151: 53,68km/h
A152: 6 | B152: Gui Figueiredo | C152: 34 | D152: 38 | E152: 00:00:52.805 | F152: 53,79km/h
A153: 6 | B153: Léo Oliveira | C153: 34 | D153: 12 | E153: 00:00:57.776 | F153: 49,16km/h
A154: 6 | B154: Léo Oliveira | C154: 34 | D154: 12 | E154: 00:00:56.769 | F154: 50,03km/h
A155: 6 | B155: Léo Oliveira | C155: 34 | D155: 12 | E155: 00:00:53.909 | F155: 52,69km/h
A156: 6 | B156: Léo Oliveira | C156: 34 | D156: 12 | E156: 00:00:53.439 | F156: 53,15km/h
A157: 6 | B157: Léo Oliveira | C157: 34 | D157: 12 | E157: 00:00:53.571 | F157: 53,02km/h
A158: 6 | B158: Léo Oliveira | C158: 34 | D158: 12 | E158: 00:00:53.014 | F158: 53,58km/h
A159: 6 | B159: Léo Oliveira | C159: 34 | D159: 12 | E159: 00:00:53.352 | F159: 53,24km/h
A160: 6 | B160: Léo Oliveira | C160: 34 | D160: 12 | E160: 00:00:53.932 | F160: 52,67km/h
A161: 6 | B161: Léo Oliveira | C161: 34 | D161: 12 | E161: 00:00:54.194 | F161: 52,41km/h
A162: 6 | B162: Léo Oliveira | C162: 34 | D162: 12 | E162: 00:00:54.307 | F162: 52,3km/h
A163: 6 | B163: Léo Oliveira | C163: 34 | D163: 12 | E163: 00:00:53.049 | F163: 53,54km/h
A164: 6 | B164: Léo Oliveira | C164: 34 | D164: 12 | E164: 00:00:52.965 | F164: 53,63km/h
A165: 6 | B165: Léo Oliveira | C165: 34 | D165: 12 | E165: 00:00:52.990 | F165: 53,6km/h
A166: 6 | B166: Léo Oliveira | C166: 34 | D166: 12 | E166: 00:00:52.921 | F166: 53,67km/h
A167: 6 | B167: Léo Oliveira | C167: 34 | D167: 12 | E167: 00:00:53.151 | F167: 53,44km/h
A168: 6 | B168: Léo Oliveira | C168: 34 | D168: 12 | E168: 00:00:52.946 | F168: 53,65km/h
A169: 6 | B169: Léo Oliveira | C169: 34 | D169: 12 | E169: 00:00:53.079 | F169: 53,51km/h
A170: 6 | B170: Léo Oliveira | C170: 34 | D170: 12 | E170: 00:00:52.801 | F170: 53,79km/h
A171: 6 | B171: Léo Oliveira | C171: 34 | D171: 12 | E171: 00:00:53.622 | F171: 52,97km/h
A172: 6 | B172: Léo Oliveira | C172: 34 | D172: 12 | E172: 00:00:53.389 | F172: 53,2km/h
A173: 6 | B173: Léo Oliveira | C173: 34 | D173: 12 | E173: 00:00:52.484 | F173: 54,12km/h
A174: 6 | B174: Léo Oliveira | C174: 34 | D174: 12 | E174: 00:00:52.212 | F174: 54,4km/h
A175: 6 | B175: Léo Oliveira | C175: 34 | D175: 12 | E175: 00:00:52.758 | F175: 53,84km/h
A176: 6 | B176: Léo Oliveira | C176: 34 | D176: 12 | E176: 00:00:52.774 | F176: 53,82km/h
A177: 6 | B177: Léo Oliveira | C177: 34 | D177: 12 | E177: 00:00:52.621 | F177: 53,98km/h
A178: 6 | B178: Léo Oliveira | C178: 34 | D178: 12 | E178: 00:00:52.662 | F178: 53,94km/h
A179: 6 | B179: Léo Oliveira | C179: 34 | D179: 12 | E179: 00:00:52.961 | F179: 53,63km/h
A180: 6 | B180: Léo Oliveira | C180: 34 | D180: 12 | E180: 00:00:52.705 | F180: 53,89km/h
A181: 6 | B181: Léo Oliveira | C181: 34 | D181: 12 | E181: 00:00:52.674 | F181: 53,92km/h
A182: 6 | B182: Léo Oliveira | C182: 34 | D182: 12 | E182: 00:00:52.824 | F182: 53,77km/h
A183: 6 | B183: Léo Oliveira | C183: 34 | D183: 12 | E183: 00:00:52.882 | F183: 53,71km/h
A184: 6 | B184: Léo Oliveira | C184: 34 | D184: 12 | E184: 00:00:53.586 | F184: 53,01km/h
A185: 6 | B185: Léo Oliveira | C185: 34 | D185: 12 | E185: 00:00:53.071 | F185: 53,52km/h
A186: 6 | B186: Léo Oliveira | C186: 34 | D186: 12 | E186: 00:00:53.199 | F186: 53,39km/h
A187: 6 | B187: Lucas Rabelo | C187: 34 | D187: 27 | E187: 00:00:59.753 | F187: 47,54km/h
A188: 6 | B188: Lucas Rabelo | C188: 34 | D188: 27 | E188: 00:00:59.052 | F188: 48,1km/h
A189: 6 | B189: Lucas Rabelo | C189: 34 | D189: 27 | E189: 00:00:54.415 | F189: 52,2km/h
A190: 6 | B190: Lucas Rabelo | C190: 34 | D190: 27 | E190: 00:00:53.618 | F190: 52,97km/h
A191: 6 | B191: Lucas Rabelo | C191: 34 | D191: 27 | E191: 00:00:53.500 | F191: 53,09km/h
A192: 6 | B192: Lucas Rabelo | C192: 34 | D192: 27 | E192: 00:00:53.726 | F192: 52,87km/h
A193: 6 | B193: Lucas Rabelo | C193: 34 | D193: 27 | E193: 00:00:53.466 | F193: 53,13km/h
A194: 6 | B194: Lucas Rabelo | C194: 34 | D194: 27 | E194: 00:00:54.027 | F194: 52,57km/h
A195: 6 | B195: Lucas Rabelo | C195: 34 | D195: 27 | E195: 00:00:53.885 | F195: 52,71km/h
A196: 6 | B196: Lucas Rabelo | C196: 34 | D196: 27 | E196: 00:00:53.906 | F196: 52,69km/h
A197: 6 | B197: Lucas Rabelo | C197: 34 | D197: 27 | E197: 00:00:53.280 | F197: 53,31km/h
A198: 6 | B198: Lucas Rabelo | C198: 34 | D198: 27 | E198: 00:00:52.714 | F198: 53,88km/h
A199: 6 | B199: Lucas Rabelo | C199: 34 | D199: 27 | E199: 00:00:53.337 | F199: 53,25km/h
A200: 6 | B200: Lucas Rabelo | C200: 34 | D200: 27 | E200: 00:00:52.879 | F200: 53,72km/h
A201: 6 | B201: Lucas Rabelo | C201: 34 | D201: 27 | E201: 00:00:52.934 | F201: 53,66km/h
A202: 6 | B202: Lucas Rabelo | C202: 34 | D202: 27 | E202: 00:00:52.552 | F202: 54,05km/h
A203: 6 | B203: Lucas Rabelo | C203: 34 | D203: 27 | E203: 00:00:52.608 | F203: 53,99km/h
A204: 6 | B204: Lucas Rabelo | C204: 34 | D204: 27 | E204: 00:00:52.644 | F204: 53,95km/h
A205: 6 | B205: Lucas Rabelo | C205: 34 | D205: 27 | E205: 00:00:53.072 | F205: 53,52km/h
A206: 6 | B206: Lucas Rabelo | C206: 34 | D206: 27 | E206: 00:00:52.731 | F206: 53,87km/h
A207: 6 | B207: Lucas Rabelo | C207: 34 | D207: 27 | E207: 00:00:52.563 | F207: 54,04km/h
A208: 6 | B208: Lucas Rabelo | C208: 34 | D208: 27 | E208: 00:00:52.649 | F208: 53,95km/h
A209: 6 | B209: Lucas Rabelo | C209: 34 | D209: 27 | E209: 00:00:52.701 | F209: 53,9km/h
A210: 6 | B210: Lucas Rabelo | C210: 34 | D210: 27 | E210: 00:00:52.957 | F210: 53,64km/h
A211: 6 | B211: Lucas Rabelo | C211: 34 | D211: 27 | E211: 00:00:52.677 | F211: 53,92km/h
A212: 6 | B212: Lucas Rabelo | C212: 34 | D212: 27 | E212: 00:00:52.710 | F212: 53,89km/h
A213: 6 | B213: Lucas Rabelo | C213: 34 | D213: 27 | E213: 00:00:52.795 | F213: 53,8km/h
A214: 6 | B214: Lucas Rabelo | C214: 34 | D214: 27 | E214: 00:00:52.801 | F214: 53,79km/h
A215: 6 | B215: Lucas Rabelo | C215: 34 | D215: 27 | E215: 00:00:52.763 | F215: 53,83km/h
A216: 6 | B216: Lucas Rabelo | C216: 34 | D216: 27 | E216: 00:00:52.870 | F216: 53,72km/h
... 830 more rows

Sheet ETAPA 05
A1: Obs.: 1. Selecione o nome de um Piloto, 2. Com a tecla Ctrl pressionada, Selecione o seu nome e 3. Clique sobre o Gráfico (Habilite a macro) Para as demais comparações Selecione o nome do Piloto e Clique sobre o Gráfico | G1: PILOTO | H1: =L$48 -> Leo Oliveira | I1: =M$48 -> Wesley Canuto | J1: =A2 -> Anderson Teixeira | M1: 00:00:01
A2: Anderson Teixeira | G2: MÉDIA | H2: =AVERAGE(L$49:L$105) -> 00:01:00.614 | I2: =AVERAGE(M$49:M$105) -> 00:01:01.188 | J2: =AVERAGE(N$49:N$105) -> 00:01:00.362 | M2: =M1 -> 00:00:01
A3: Leo Oliveira | G3: MAXIMA | H3: =LARGE(L$49:L$105,1) -> 00:01:04.398 | I3: =LARGE(M$49:M$105,1) -> 00:01:04.614 | J3: =LARGE(N$49:N$105,1) -> 00:01:04.923
A4: Wesley Canuto | G4: MÍNIMA | H4: =SMALL(L$49:L$105,1) -> 00:00:59.878 | I4: =SMALL(M$49:M$105,1) -> 00:01:00.320 | J4: =SMALL(N$49:N$105,1) -> 00:00:59.416
A5: Rafael Miranda | G5: Desvio Padrão | H5: =_xlfn.STDEV.S(L$50:L$130) -> 00:00:10.627 | I5: =_xlfn.STDEV.S(M$50:M$130) -> 00:00:10.740 | J5: =_xlfn.STDEV.S(N$50:N$130) -> 00:00:10.574
A6: Gui Figueiredo | G6: TEMPO TOTAL | H6: =SUM(L$49:L$105,1) -> 1.02104647 | I6: =SUM(M$49:M$105,1) -> 1.021245729 | J6: =SUM(N$49:N$105,1) -> 1.020959178
A7: Christian Guedes
A8: Felipe Curi
A9: Matheus Rocha
A10: Diego Rodrigues
A11: Frederico Papatella
A12: Alexandre Melillo
A13: Petronio Junior | J13: =SMALL(H4:J4,1)-K13 -> 00:00:59.166 | K13: 00:00:00.250
A14: Jarbas Reis | J14: =LARGE(H3:J3,1)+K13 -> 00:01:05.173
A15: Renato Martins
A16: Bruno Nosse
A17: Guilherme Alves
A18: Bruno Camargos
A19: Thiago Santos
A20: Tafarel Henrique
A21: Lucio Chequer
A22: Thiago Azevedo
A23: Celso Dantas
A24: Matheus Azevedo
A25: Jean Paul
A26: Lucas Rabelo
A27: Fernando Mota
A28: Saulo Chagas
A29: Samuel Silva
A30: Thales Almeida
L48: Leo Oliveira | M48: Wesley Canuto | N48: Anderson Teixeira
K49: NÚMERO VOLTAS | L49: Leo Oliveira | M49: Wesley Canuto | N49: Anderson Teixeira
A50: ETAPA | B50: PILOTO | C50: NÚMERO VOLTAS | D50: KART | E50: Volta Tm | F50: velocidade Media | K50: 1 | L50: 00:01:04.398 | M50: 00:01:04.614 | N50: 00:01:04.923
A51: 5 | B51: Anderson Teixeira | C51: 30 | D51: 14 | E51: 00:01:04.923 | F51: 54,29km/h | K51: 2 | L51: 00:01:01.397 | M51: 00:01:02.126 | N51: 00:01:01.995
A52: 5 | B52: Anderson Teixeira | C52: 30 | D52: 14 | E52: 00:01:01.995 | F52: 56,85km/h | K52: 3 | L52: 00:01:01.927 | M52: 00:01:01.186 | N52: 00:01:02.771
A53: 5 | B53: Anderson Teixeira | C53: 30 | D53: 14 | E53: 00:01:02.771 | F53: 56,15km/h | K53: 4 | L53: 00:01:02.190 | M53: 00:01:01.521 | N53: 00:01:02.290
A54: 5 | B54: Anderson Teixeira | C54: 30 | D54: 14 | E54: 00:01:02.290 | F54: 56,58km/h | K54: 5 | L54: 00:01:00.564 | M54: 00:01:01.078 | N54: 00:01:00.367
A55: 5 | B55: Anderson Teixeira | C55: 30 | D55: 14 | E55: 00:01:00.367 | F55: 58,38km/h | K55: 6 | L55: 00:01:01.190 | M55: 00:01:01.026 | N55: 00:01:00.837
A56: 5 | B56: Anderson Teixeira | C56: 30 | D56: 14 | E56: 00:01:00.837 | F56: 57,93km/h | K56: 7 | L56: 00:01:00.789 | M56: 00:01:00.957 | N56: 00:01:00.091
A57: 5 | B57: Anderson Teixeira | C57: 30 | D57: 14 | E57: 00:01:00.091 | F57: 58,65km/h | K57: 8 | L57: 00:01:00.271 | M57: 00:01:01.192 | N57: 00:01:00.649
A58: 5 | B58: Anderson Teixeira | C58: 30 | D58: 14 | E58: 00:01:00.649 | F58: 58,11km/h | K58: 9 | L58: 00:01:00.758 | M58: 00:01:01.515 | N58: 00:00:59.816
A59: 5 | B59: Anderson Teixeira | C59: 30 | D59: 14 | E59: 00:00:59.816 | F59: 58,92km/h | K59: 10 | L59: 00:01:01.115 | M59: 00:01:01.188 | N59: 00:00:59.898
A60: 5 | B60: Anderson Teixeira | C60: 30 | D60: 14 | E60: 00:00:59.898 | F60: 58,84km/h | K60: 11 | L60: 00:01:00.416 | M60: 00:01:01.829 | N60: 00:01:00.178
A61: 5 | B61: Anderson Teixeira | C61: 30 | D61: 14 | E61: 00:01:00.178 | F61: 58,57km/h | K61: 12 | L61: 00:00:59.933 | M61: 00:01:00.755 | N61: 00:01:00.188
A62: 5 | B62: Anderson Teixeira | C62: 30 | D62: 14 | E62: 00:01:00.188 | F62: 58,56km/h | K62: 13 | L62: 00:01:00.049 | M62: 00:01:00.961 | N62: 00:00:59.910
A63: 5 | B63: Anderson Teixeira | C63: 30 | D63: 14 | E63: 00:00:59.910 | F63: 58,83km/h | K63: 14 | L63: 00:01:00.222 | M63: 00:01:00.525 | N63: 00:00:59.775
A64: 5 | B64: Anderson Teixeira | C64: 30 | D64: 14 | E64: 00:00:59.775 | F64: 58,96km/h | K64: 15 | L64: 00:01:00.218 | M64: 00:01:00.770 | N64: 00:00:59.972
A65: 5 | B65: Anderson Teixeira | C65: 30 | D65: 14 | E65: 00:00:59.972 | F65: 58,77km/h | K65: 16 | L65: 00:01:00.073 | M65: 00:01:00.320 | N65: 00:00:59.977
A66: 5 | B66: Anderson Teixeira | C66: 30 | D66: 14 | E66: 00:00:59.977 | F66: 58,76km/h | K66: 17 | L66: 00:00:59.949 | M66: 00:01:00.350 | N66: 00:00:59.660
A67: 5 | B67: Anderson Teixeira | C67: 30 | D67: 14 | E67: 00:00:59.660 | F67: 59,07km/h | K67: 18 | L67: 00:00:59.968 | M67: 00:01:00.755 | N67: 00:00:59.723
A68: 5 | B68: Anderson Teixeira | C68: 30 | D68: 14 | E68: 00:00:59.723 | F68: 59,01km/h | K68: 19 | L68: 00:00:59.878 | M68: 00:01:00.557 | N68: 00:00:59.844
A69: 5 | B69: Anderson Teixeira | C69: 30 | D69: 14 | E69: 00:00:59.844 | F69: 58,89km/h | K69: 20 | L69: 00:01:00.230 | M69: 00:01:00.891 | N69: 00:00:59.681
A70: 5 | B70: Anderson Teixeira | C70: 30 | D70: 14 | E70: 00:00:59.681 | F70: 59,05km/h | K70: 21 | L70: 00:01:00.420 | M70: 00:01:00.960 | N70: 00:00:59.608
A71: 5 | B71: Anderson Teixeira | C71: 30 | D71: 14 | E71: 00:00:59.608 | F71: 59,13km/h | K71: 22 | L71: 00:01:00.336 | M71: 00:01:00.896 | N71: 00:00:59.593
A72: 5 | B72: Anderson Teixeira | C72: 30 | D72: 14 | E72: 00:00:59.593 | F72: 59,14km/h | K72: 23 | L72: 00:01:00.048 | M72: 00:01:01.008 | N72: 00:00:59.991
A73: 5 | B73: Anderson Teixeira | C73: 30 | D73: 14 | E73: 00:00:59.991 | F73: 58,75km/h | K73: 24 | L73: 00:01:00.010 | M73: 00:01:00.821 | N73: 00:00:59.792
A74: 5 | B74: Anderson Teixeira | C74: 30 | D74: 14 | E74: 00:00:59.792 | F74: 58,94km/h | K74: 25 | L74: 00:01:00.263 | M74: 00:01:01.082 | N74: 00:00:59.416
A75: 5 | B75: Anderson Teixeira | C75: 30 | D75: 14 | E75: 00:00:59.416 | F75: 59,32km/h | K75: 26 | L75: 00:01:00.253 | M75: 00:01:00.925 | N75: 00:00:59.651
A76: 5 | B76: Anderson Teixeira | C76: 30 | D76: 14 | E76: 00:00:59.651 | F76: 59,08km/h | K76: 27 | L76: 00:01:00.103 | M76: 00:01:01.332 | N76: 00:00:59.691
A77: 5 | B77: Anderson Teixeira | C77: 30 | D77: 14 | E77: 00:00:59.691 | F77: 59,04km/h | K77: 28 | L77: 00:01:00.144 | M77: 00:01:01.027 | N77: 00:00:59.608
A78: 5 | B78: Anderson Teixeira | C78: 30 | D78: 14 | E78: 00:00:59.608 | F78: 59,13km/h | K78: 29 | L78: 00:01:00.628 | M78: 00:01:01.576 | N78: 00:00:59.997
A79: 5 | B79: Anderson Teixeira | C79: 30 | D79: 14 | E79: 00:00:59.997 | F79: 58,74km/h | K79: 30 | L79: 00:01:00.675 | M79: 00:01:01.888 | N79: 00:01:00.981
A80: 5 | B80: Anderson Teixeira | C80: 30 | D80: 14 | E80: 00:01:00.981 | F80: 57,8km/h | K80: 31
A81: 5 | B81: Leo Oliveira | C81: 30 | D81: 35 | E81: 00:01:04.398 | F81: 54,73km/h | K81: 32
A82: 5 | B82: Leo Oliveira | C82: 30 | D82: 35 | E82: 00:01:01.397 | F82: 57,4km/h | K82: 33
A83: 5 | B83: Leo Oliveira | C83: 30 | D83: 35 | E83: 00:01:01.927 | F83: 56,91km/h | K83: 34
A84: 5 | B84: Leo Oliveira | C84: 30 | D84: 35 | E84: 00:01:02.190 | F84: 56,67km/h | K84: 35
A85: 5 | B85: Leo Oliveira | C85: 30 | D85: 35 | E85: 00:01:00.564 | F85: 58,19km/h | K85: 36
A86: 5 | B86: Leo Oliveira | C86: 30 | D86: 35 | E86: 00:01:01.190 | F86: 57,6km/h | K86: 37
A87: 5 | B87: Leo Oliveira | C87: 30 | D87: 35 | E87: 00:01:00.789 | F87: 57,98km/h | K87: 38
A88: 5 | B88: Leo Oliveira | C88: 30 | D88: 35 | E88: 00:01:00.271 | F88: 58,48km/h | K88: 39
A89: 5 | B89: Leo Oliveira | C89: 30 | D89: 35 | E89: 00:01:00.758 | F89: 58,01km/h | K89: 40
A90: 5 | B90: Leo Oliveira | C90: 30 | D90: 35 | E90: 00:01:01.115 | F90: 57,67km/h | K90: 41
A91: 5 | B91: Leo Oliveira | C91: 30 | D91: 35 | E91: 00:01:00.416 | F91: 58,34km/h | K91: 42
A92: 5 | B92: Leo Oliveira | C92: 30 | D92: 35 | E92: 00:00:59.933 | F92: 58,81km/h | K92: 43
A93: 5 | B93: Leo Oliveira | C93: 30 | D93: 35 | E93: 00:01:00.049 | F93: 58,69km/h | K93: 44
A94: 5 | B94: Leo Oliveira | C94: 30 | D94: 35 | E94: 00:01:00.222 | F94: 58,52km/h | K94: 45
A95: 5 | B95: Leo Oliveira | C95: 30 | D95: 35 | E95: 00:01:00.218 | F95: 58,53km/h | K95: 46
A96: 5 | B96: Leo Oliveira | C96: 30 | D96: 35 | E96: 00:01:00.073 | F96: 58,67km/h | K96: 47
A97: 5 | B97: Leo Oliveira | C97: 30 | D97: 35 | E97: 00:00:59.949 | F97: 58,79km/h | K97: 48
A98: 5 | B98: Leo Oliveira | C98: 30 | D98: 35 | E98: 00:00:59.968 | F98: 58,77km/h | K98: 49
A99: 5 | B99: Leo Oliveira | C99: 30 | D99: 35 | E99: 00:00:59.878 | F99: 58,86km/h | K99: 50
A100: 5 | B100: Leo Oliveira | C100: 30 | D100: 35 | E100: 00:01:00.230 | F100: 58,52km/h | K100: 51
A101: 5 | B101: Leo Oliveira | C101: 30 | D101: 35 | E101: 00:01:00.420 | F101: 58,33km/h | K101: 52
A102: 5 | B102: Leo Oliveira | C102: 30 | D102: 35 | E102: 00:01:00.336 | F102: 58,41km/h | K102: 53
A103: 5 | B103: Leo Oliveira | C103: 30 | D103: 35 | E103: 00:01:00.048 | F103: 58,69km/h | K103: 54
A104: 5 | B104: Leo Oliveira | C104: 30 | D104: 35 | E104: 00:01:00.010 | F104: 58,73km/h | K104: 55
A105: 5 | B105: Leo Oliveira | C105: 30 | D105: 35 | E105: 00:01:00.263 | F105: 58,48km/h | K105: 56
A106: 5 | B106: Leo Oliveira | C106: 30 | D106: 35 | E106: 00:01:00.253 | F106: 58,49km/h | K106: 57
A107: 5 | B107: Leo Oliveira | C107: 30 | D107: 35 | E107: 00:01:00.103 | F107: 58,64km/h | K107: 58
A108: 5 | B108: Leo Oliveira | C108: 30 | D108: 35 | E108: 00:01:00.144 | F108: 58,6km/h | K108: 59
A109: 5 | B109: Leo Oliveira | C109: 30 | D109: 35 | E109: 00:01:00.628 | F109: 58,13km/h | K109: 60
A110: 5 | B110: Leo Oliveira | C110: 30 | D110: 35 | E110: 00:01:00.675 | F110: 58,09km/h | K110: 61
A111: 5 | B111: Wesley Canuto | C111: 30 | D111: 13 | E111: 00:01:04.614 | F111: 54,55km/h | K111: 62
A112: 5 | B112: Wesley Canuto | C112: 30 | D112: 13 | E112: 00:01:02.126 | F112: 56,73km/h | K112: 63
A113: 5 | B113: Wesley Canuto | C113: 30 | D113: 13 | E113: 00:01:01.186 | F113: 57,6km/h
A114: 5 | B114: Wesley Canuto | C114: 30 | D114: 13 | E114: 00:01:01.521 | F114: 57,29km/h
A115: 5 | B115: Wesley Canuto | C115: 30 | D115: 13 | E115: 00:01:01.078 | F115: 57,7km/h
A116: 5 | B116: Wesley Canuto | C116: 30 | D116: 13 | E116: 00:01:01.026 | F116: 57,75km/h | L116: =_xlfn.STDEV.S(L50:L77) -> 00:00:00.951 | M116: =_xlfn.STDEV.S(M50:M77) -> 00:00:00.787 | N116: 00:00:01.224
A117: 5 | B117: Wesley Canuto | C117: 30 | D117: 13 | E117: 00:01:00.957 | F117: 57,82km/h | L117: =MAX(L50:L77) -> 00:01:04.398 | M117: =MAX(M50:M77) -> 00:01:04.614 | N117: 00:01:04.923
A118: 5 | B118: Wesley Canuto | C118: 30 | D118: 13 | E118: 00:01:01.192 | F118: 57,6km/h
A119: 5 | B119: Wesley Canuto | C119: 30 | D119: 13 | E119: 00:01:01.515 | F119: 57,29km/h
A120: 5 | B120: Wesley Canuto | C120: 30 | D120: 13 | E120: 00:01:01.188 | F120: 57,6km/h
A121: 5 | B121: Wesley Canuto | C121: 30 | D121: 13 | E121: 00:01:01.829 | F121: 57km/h
A122: 5 | B122: Wesley Canuto | C122: 30 | D122: 13 | E122: 00:01:00.755 | F122: 58,01km/h
A123: 5 | B123: Wesley Canuto | C123: 30 | D123: 13 | E123: 00:01:00.961 | F123: 57,81km/h
A124: 5 | B124: Wesley Canuto | C124: 30 | D124: 13 | E124: 00:01:00.525 | F124: 58,23km/h
A125: 5 | B125: Wesley Canuto | C125: 30 | D125: 13 | E125: 00:01:00.770 | F125: 58km/h
A126: 5 | B126: Wesley Canuto | C126: 30 | D126: 13 | E126: 00:01:00.320 | F126: 58,43km/h
A127: 5 | B127: Wesley Canuto | C127: 30 | D127: 13 | E127: 00:01:00.350 | F127: 58,4km/h
A128: 5 | B128: Wesley Canuto | C128: 30 | D128: 13 | E128: 00:01:00.755 | F128: 58,01km/h
A129: 5 | B129: Wesley Canuto | C129: 30 | D129: 13 | E129: 00:01:00.557 | F129: 58,2km/h
A130: 5 | B130: Wesley Canuto | C130: 30 | D130: 13 | E130: 00:01:00.891 | F130: 57,88km/h
A131: 5 | B131: Wesley Canuto | C131: 30 | D131: 13 | E131: 00:01:00.960 | F131: 57,81km/h
A132: 5 | B132: Wesley Canuto | C132: 30 | D132: 13 | E132: 00:01:00.896 | F132: 57,88km/h
A133: 5 | B133: Wesley Canuto | C133: 30 | D133: 13 | E133: 00:01:01.008 | F133: 57,77km/h
A134: 5 | B134: Wesley Canuto | C134: 30 | D134: 13 | E134: 00:01:00.821 | F134: 57,95km/h
A135: 5 | B135: Wesley Canuto | C135: 30 | D135: 13 | E135: 00:01:01.082 | F135: 57,7km/h
A136: 5 | B136: Wesley Canuto | C136: 30 | D136: 13 | E136: 00:01:00.925 | F136: 57,85km/h
A137: 5 | B137: Wesley Canuto | C137: 30 | D137: 13 | E137: 00:01:01.332 | F137: 57,46km/h
A138: 5 | B138: Wesley Canuto | C138: 30 | D138: 13 | E138: 00:01:01.027 | F138: 57,75km/h
A139: 5 | B139: Wesley Canuto | C139: 30 | D139: 13 | E139: 00:01:01.576 | F139: 57,24km/h
A140: 5 | B140: Wesley Canuto | C140: 30 | D140: 13 | E140: 00:01:01.888 | F140: 56,95km/h
A141: 5 | B141: Rafael Miranda | C141: 30 | D141: 26 | E141: 00:01:04.895 | F141: 54,31km/h
A142: 5 | B142: Rafael Miranda | C142: 30 | D142: 26 | E142: 00:01:04.447 | F142: 54,69km/h
A143: 5 | B143: Rafael Miranda | C143: 30 | D143: 26 | E143: 00:01:01.893 | F143: 56,94km/h
A144: 5 | B144: Rafael Miranda | C144: 30 | D144: 26 | E144: 00:01:02.520 | F144: 56,37km/h
A145: 5 | B145: Rafael Miranda | C145: 30 | D145: 26 | E145: 00:01:01.309 | F145: 57,49km/h
A146: 5 | B146: Rafael Miranda | C146: 30 | D146: 26 | E146: 00:01:00.642 | F146: 58,12km/h
A147: 5 | B147: Rafael Miranda | C147: 30 | D147: 26 | E147: 00:01:00.514 | F147: 58,24km/h
A148: 5 | B148: Rafael Miranda | C148: 30 | D148: 26 | E148: 00:01:00.836 | F148: 57,93km/h
A149: 5 | B149: Rafael Miranda | C149: 30 | D149: 26 | E149: 00:01:00.926 | F149: 57,85km/h
A150: 5 | B150: Rafael Miranda | C150: 30 | D150: 26 | E150: 00:01:00.577 | F150: 58,18km/h
A151: 5 | B151: Rafael Miranda | C151: 30 | D151: 26 | E151: 00:01:00.506 | F151: 58,25km/h
A152: 5 | B152: Rafael Miranda | C152: 30 | D152: 26 | E152: 00:01:01.627 | F152: 57,19km/h
A153: 5 | B153: Rafael Miranda | C153: 30 | D153: 26 | E153: 00:01:00.770 | F153: 58km/h
A154: 5 | B154: Rafael Miranda | C154: 30 | D154: 26 | E154: 00:01:01.074 | F154: 57,71km/h
A155: 5 | B155: Rafael Miranda | C155: 30 | D155: 26 | E155: 00:01:01.436 | F155: 57,37km/h
A156: 5 | B156: Rafael Miranda | C156: 30 | D156: 26 | E156: 00:01:01.355 | F156: 57,44km/h
A157: 5 | B157: Rafael Miranda | C157: 30 | D157: 26 | E157: 00:01:00.570 | F157: 58,19km/h
A158: 5 | B158: Rafael Miranda | C158: 30 | D158: 26 | E158: 00:01:01.261 | F158: 57,53km/h
A159: 5 | B159: Rafael Miranda | C159: 30 | D159: 26 | E159: 00:01:00.640 | F159: 58,12km/h
A160: 5 | B160: Rafael Miranda | C160: 30 | D160: 26 | E160: 00:01:01.328 | F160: 57,47km/h
A161: 5 | B161: Rafael Miranda | C161: 30 | D161: 26 | E161: 00:01:01.685 | F161: 57,14km/h
A162: 5 | B162: Rafael Miranda | C162: 30 | D162: 26 | E162: 00:01:00.564 | F162: 58,19km/h
A163: 5 | B163: Rafael Miranda | C163: 30 | D163: 26 | E163: 00:01:01.019 | F163: 57,76km/h
A164: 5 | B164: Rafael Miranda | C164: 30 | D164: 26 | E164: 00:01:00.617 | F164: 58,14km/h
A165: 5 | B165: Rafael Miranda | C165: 30 | D165: 26 | E165: 00:01:01.210 | F165: 57,58km/h
A166: 5 | B166: Rafael Miranda | C166: 30 | D166: 26 | E166: 00:01:00.615 | F166: 58,14km/h
A167: 5 | B167: Rafael Miranda | C167: 30 | D167: 26 | E167: 00:01:01.666 | F167: 57,15km/h
A168: 5 | B168: Rafael Miranda | C168: 30 | D168: 26 | E168: 00:01:01.100 | F168: 57,68km/h
A169: 5 | B169: Rafael Miranda | C169: 30 | D169: 26 | E169: 00:01:00.934 | F169: 57,84km/h
A170: 5 | B170: Rafael Miranda | C170: 30 | D170: 26 | E170: 00:01:01.175 | F170: 57,61km/h
A171: 5 | B171: Gui Figueiredo | C171: 30 | D171: 3 | E171: 00:01:04.555 | F171: 54,6km/h
A172: 5 | B172: Gui Figueiredo | C172: 30 | D172: 3 | E172: 00:01:03.059 | F172: 55,89km/h
A173: 5 | B173: Gui Figueiredo | C173: 30 | D173: 3 | E173: 00:01:01.947 | F173: 56,89km/h
A174: 5 | B174: Gui Figueiredo | C174: 30 | D174: 3 | E174: 00:01:02.599 | F174: 56,3km/h
A175: 5 | B175: Gui Figueiredo | C175: 30 | D175: 3 | E175: 00:01:01.132 | F175: 57,65km/h
A176: 5 | B176: Gui Figueiredo | C176: 30 | D176: 3 | E176: 00:01:00.729 | F176: 58,03km/h
A177: 5 | B177: Gui Figueiredo | C177: 30 | D177: 3 | E177: 00:01:00.443 | F177: 58,31km/h
A178: 5 | B178: Gui Figueiredo | C178: 30 | D178: 3 | E178: 00:01:01.025 | F178: 57,75km/h
A179: 5 | B179: Gui Figueiredo | C179: 30 | D179: 3 | E179: 00:01:00.735 | F179: 58,03km/h
A180: 5 | B180: Gui Figueiredo | C180: 30 | D180: 3 | E180: 00:01:01.132 | F180: 57,65km/h
A181: 5 | B181: Gui Figueiredo | C181: 30 | D181: 3 | E181: 00:01:00.693 | F181: 58,07km/h
A182: 5 | B182: Gui Figueiredo | C182: 30 | D182: 3 | E182: 00:01:01.076 | F182: 57,71km/h
A183: 5 | B183: Gui Figueiredo | C183: 30 | D183: 3 | E183: 00:01:00.658 | F183: 58,1km/h
A184: 5 | B184: Gui Figueiredo | C184: 30 | D184: 3 | E184: 00:01:01.152 | F184: 57,63km/h
A185: 5 | B185: Gui Figueiredo | C185: 30 | D185: 3 | E185: 00:01:01.293 | F185: 57,5km/h
A186: 5 | B186: Gui Figueiredo | C186: 30 | D186: 3 | E186: 00:01:00.934 | F186: 57,84km/h
A187: 5 | B187: Gui Figueiredo | C187: 30 | D187: 3 | E187: 00:01:01.320 | F187: 57,48km/h
A188: 5 | B188: Gui Figueiredo | C188: 30 | D188: 3 | E188: 00:01:02.094 | F188: 56,76km/h
A189: 5 | B189: Gui Figueiredo | C189: 30 | D189: 3 | E189: 00:01:00.693 | F189: 58,07km/h
A190: 5 | B190: Gui Figueiredo | C190: 30 | D190: 3 | E190: 00:01:01.445 | F190: 57,36km/h
A191: 5 | B191: Gui Figueiredo | C191: 30 | D191: 3 | E191: 00:01:01.087 | F191: 57,69km/h
A192: 5 | B192: Gui Figueiredo | C192: 30 | D192: 3 | E192: 00:01:00.568 | F192: 58,19km/h
A193: 5 | B193: Gui Figueiredo | C193: 30 | D193: 3 | E193: 00:01:01.019 | F193: 57,76km/h
A194: 5 | B194: Gui Figueiredo | C194: 30 | D194: 3 | E194: 00:01:00.582 | F194: 58,18km/h
A195: 5 | B195: Gui Figueiredo | C195: 30 | D195: 3 | E195: 00:01:01.245 | F195: 57,55km/h
A196: 5 | B196: Gui Figueiredo | C196: 30 | D196: 3 | E196: 00:01:00.614 | F196: 58,14km/h
A197: 5 | B197: Gui Figueiredo | C197: 30 | D197: 3 | E197: 00:01:01.496 | F197: 57,31km/h
A198: 5 | B198: Gui Figueiredo | C198: 30 | D198: 3 | E198: 00:01:01.274 | F198: 57,52km/h
A199: 5 | B199: Gui Figueiredo | C199: 30 | D199: 3 | E199: 00:01:00.931 | F199: 57,84km/h
A200: 5 | B200: Gui Figueiredo | C200: 30 | D200: 3 | E200: 00:01:01.883 | F200: 56,95km/h
A201: 5 | B201: Christian Guedes | C201: 30 | D201: 33 | E201: 00:01:04.398 | F201: 54,73km/h
A202: 5 | B202: Christian Guedes | C202: 30 | D202: 33 | E202: 00:01:09.722 | F202: 50,55km/h
A203: 5 | B203: Christian Guedes | C203: 30 | D203: 33 | E203: 00:01:01.147 | F203: 57,64km/h
A204: 5 | B204: Christian Guedes | C204: 30 | D204: 33 | E204: 00:01:01.684 | F204: 57,14km/h
A205: 5 | B205: Christian Guedes | C205: 30 | D205: 33 | E205: 00:01:01.348 | F205: 57,45km/h
A206: 5 | B206: Christian Guedes | C206: 30 | D206: 33 | E206: 00:01:02.979 | F206: 55,96km/h
A207: 5 | B207: Christian Guedes | C207: 30 | D207: 33 | E207: 00:01:01.319 | F207: 57,48km/h
A208: 5 | B208: Christian Guedes | C208: 30 | D208: 33 | E208: 00:01:02.612 | F208: 56,29km/h
A209: 5 | B209: Christian Guedes | C209: 30 | D209: 33 | E209: 00:01:00.597 | F209: 58,16km/h
A210: 5 | B210: Christian Guedes | C210: 30 | D210: 33 | E210: 00:01:00.505 | F210: 58,25km/h
A211: 5 | B211: Christian Guedes | C211: 30 | D211: 33 | E211: 00:01:00.379 | F211: 58,37km/h
A212: 5 | B212: Christian Guedes | C212: 30 | D212: 33 | E212: 00:01:00.561 | F212: 58,2km/h
A213: 5 | B213: Christian Guedes | C213: 30 | D213: 33 | E213: 00:01:00.282 | F213: 58,47km/h
A214: 5 | B214: Christian Guedes | C214: 30 | D214: 33 | E214: 00:01:00.175 | F214: 58,57km/h
A215: 5 | B215: Christian Guedes | C215: 30 | D215: 33 | E215: 00:01:01.270 | F215: 57,52km/h
A216: 5 | B216: Christian Guedes | C216: 30 | D216: 33 | E216: 00:01:01.575 | F216: 57,24km/h
A217: 5 | B217: Christian Guedes | C217: 30 | D217: 33 | E217: 00:01:00.225 | F217: 58,52km/h
... 657 more rows

Sheet ETAPA 04
A1: Obs.: 1. Selecione o nome de um Piloto, 2. Com a tecla Ctrl pressionada, Selecione o seu nome e 3. Clique sobre o Gráfico (Habilite a macro) Para as demais comparações Selecione o nome do Piloto e Clique sobre o Gráfico | G1: PILOTO | H1: =L$48 -> Leonardo Oliveira | I1: =M$48 -> Lucas Rabelo | J1: =A2 -> Rafael Miranda | M1: 00:00:01
A2: Rafael Miranda | G2: MÉDIA | H2: =AVERAGE(L$49:L$105) -> 00:01:00.439 | I2: =AVERAGE(M$49:M$105) -> 00:01:00.717 | J2: =AVERAGE(N$49:N$105) -> 00:01:00.477 | M2: =M1 -> 00:00:01
A3: Leonardo Oliveira | G3: MAXIMA | H3: =LARGE(L$49:L$105,1) -> 00:01:03.708 | I3: =LARGE(M$49:M$105,1) -> 00:01:04.678 | J3: =LARGE(N$49:N$105,1) -> 00:01:06.424
A4: Lucas Rabelo | G4: MÍNIMA | H4: =SMALL(L$49:L$105,1) -> 00:00:59.657 | I4: =SMALL(M$49:M$105,1) -> 00:00:59.673 | J4: =SMALL(N$49:N$105,1) -> 00:00:59.634
A5: Raphael Reis | G5: Desvio Padrão | H5: =_xlfn.STDEV.S(L$50:L$130) -> 00:00:10.422 | I5: =_xlfn.STDEV.S(M$50:M$130) -> 00:00:10.467 | J5: =_xlfn.STDEV.S(N$50:N$130) -> 00:00:10.446
A6: Henry Douglas | G6: TEMPO TOTAL | H6: =SUM(L$49:L$105,1) -> 1.021685382 | I6: =SUM(M$49:M$105,1) -> 1.021785035 | J6: =SUM(N$49:N$105,1) -> 1.02169875
A7: Tafarel Henrique
A8: PetrÔnio Junior
A9: Guilherme Alves
A10: Thales Almeida
A11: Marcus Silva
A12: Frederico Papatella
A13: Guilherme Camarano | J13: =SMALL(H4:J4,1)-K13 -> 00:00:59.384 | K13: 00:00:00.250
A14: Bruno Nosse | J14: =LARGE(H3:J3,1)+K13 -> 00:01:06.674
A15: Anderson Teixeira
A16: Samuel Silva
A17: Felipe Curi
A18: Wesley Canuto
A19: Christian Guedes
A20: Gustavo Barros
A21: Alexandre Melillo
A22: Lucio Santos
A23: Saulo Chagas
A24: Matheus Azevedo
A25: Jean Paul
A26: Luiz Azevedo
A27: Matheus Rocha
A28: Alan Moreira
A29: Thiago Azevedo
A30: Renato Martins
A31: Celso Dantas
A32: Jarbas Reis
A33: Bruno Camargos
A34: Guilherme Figueiredo
L48: Leonardo Oliveira | M48: Lucas Rabelo | N48: Rafael Miranda
K49: NÚMERO VOLTAS | L49: Leonardo Oliveira | M49: Lucas Rabelo | N49: Rafael Miranda
A50: ETAPA | B50: PILOTO | C50: NÚMERO VOLTAS | D50: KART | E50: Volta Tm | F50: velocidade Media | K50: 1 | L50: 00:01:03.040 | M50: 00:01:04.678 | N50: 00:01:06.424
A51: 4 | B51: Rafael Miranda | C51: 31 | D51: 31 | E51: 00:01:06.424 | F51: 53,44km/h | K51: 2 | L51: 00:01:03.708 | M51: 00:01:03.274 | N51: 00:01:03.670
A52: 4 | B52: Rafael Miranda | C52: 31 | D52: 31 | E52: 00:01:03.670 | F52: 55,75km/h | K52: 3 | L52: 00:01:01.587 | M52: 00:01:02.328 | N52: 00:01:01.576
A53: 4 | B53: Rafael Miranda | C53: 31 | D53: 31 | E53: 00:01:01.576 | F53: 57,65km/h | K53: 4 | L53: 00:01:02.007 | M53: 00:01:02.999 | N53: 00:01:02.093
A54: 4 | B54: Rafael Miranda | C54: 31 | D54: 31 | E54: 00:01:02.093 | F54: 57,17km/h | K54: 5 | L54: 00:01:00.806 | M54: 00:01:01.314 | N54: 00:01:00.121
A55: 4 | B55: Rafael Miranda | C55: 31 | D55: 31 | E55: 00:01:00.121 | F55: 59,04km/h | K55: 6 | L55: 00:01:00.243 | M55: 00:01:00.170 | N55: 00:00:59.634
A56: 4 | B56: Rafael Miranda | C56: 31 | D56: 31 | E56: 00:00:59.634 | F56: 59,52km/h | K56: 7 | L56: 00:01:00.051 | M56: 00:00:59.874 | N56: 00:01:00.799
A57: 4 | B57: Rafael Miranda | C57: 31 | D57: 31 | E57: 00:01:00.799 | F57: 58,38km/h | K57: 8 | L57: 00:01:00.140 | M57: 00:01:00.487 | N57: 00:01:00.078
A58: 4 | B58: Rafael Miranda | C58: 31 | D58: 31 | E58: 00:01:00.078 | F58: 59,08km/h | K58: 9 | L58: 00:01:00.356 | M58: 00:01:01.073 | N58: 00:01:00.679
A59: 4 | B59: Rafael Miranda | C59: 31 | D59: 31 | E59: 00:01:00.679 | F59: 58,5km/h | K59: 10 | L59: 00:01:01.090 | M59: 00:01:00.847 | N59: 00:01:00.002
A60: 4 | B60: Rafael Miranda | C60: 31 | D60: 31 | E60: 00:01:00.002 | F60: 59,16km/h | K60: 11 | L60: 00:00:59.903 | M60: 00:01:01.165 | N60: 00:00:59.638
A61: 4 | B61: Rafael Miranda | C61: 31 | D61: 31 | E61: 00:00:59.638 | F61: 59,52km/h | K61: 12 | L61: 00:00:59.939 | M61: 00:01:00.123 | N61: 00:00:59.857
A62: 4 | B62: Rafael Miranda | C62: 31 | D62: 31 | E62: 00:00:59.857 | F62: 59,3km/h | K62: 13 | L62: 00:01:00.072 | M62: 00:01:00.583 | N62: 00:01:00.222
A63: 4 | B63: Rafael Miranda | C63: 31 | D63: 31 | E63: 00:01:00.222 | F63: 58,94km/h | K63: 14 | L63: 00:01:00.125 | M63: 00:01:00.232 | N63: 00:01:00.129
A64: 4 | B64: Rafael Miranda | C64: 31 | D64: 31 | E64: 00:01:00.129 | F64: 59,03km/h | K64: 15 | L64: 00:00:59.853 | M64: 00:01:00.209 | N64: 00:01:00.136
A65: 4 | B65: Rafael Miranda | C65: 31 | D65: 31 | E65: 00:01:00.136 | F65: 59,03km/h | K65: 16 | L65: 00:00:59.882 | M65: 00:01:00.471 | N65: 00:01:00.041
A66: 4 | B66: Rafael Miranda | C66: 31 | D66: 31 | E66: 00:01:00.041 | F66: 59,12km/h | K66: 17 | L66: 00:01:00.031 | M66: 00:00:59.923 | N66: 00:01:00.150
A67: 4 | B67: Rafael Miranda | C67: 31 | D67: 31 | E67: 00:01:00.150 | F67: 59,01km/h | K67: 18 | L67: 00:00:59.828 | M67: 00:01:00.050 | N67: 00:00:59.800
A68: 4 | B68: Rafael Miranda | C68: 31 | D68: 31 | E68: 00:00:59.800 | F68: 59,36km/h | K68: 19 | L68: 00:00:59.657 | M68: 00:01:00.309 | N68: 00:00:59.936
A69: 4 | B69: Rafael Miranda | C69: 31 | D69: 31 | E69: 00:00:59.936 | F69: 59,22km/h | K69: 20 | L69: 00:00:59.887 | M69: 00:01:00.236 | N69: 00:01:00.139
A70: 4 | B70: Rafael Miranda | C70: 31 | D70: 31 | E70: 00:01:00.139 | F70: 59,02km/h | K70: 21 | L70: 00:00:59.914 | M70: 00:01:00.045 | N70: 00:00:59.867
A71: 4 | B71: Rafael Miranda | C71: 31 | D71: 31 | E71: 00:00:59.867 | F71: 59,29km/h | K71: 22 | L71: 00:00:59.974 | M71: 00:00:59.995 | N71: 00:01:00.105
A72: 4 | B72: Rafael Miranda | C72: 31 | D72: 31 | E72: 00:01:00.105 | F72: 59,06km/h | K72: 23 | L72: 00:00:59.858 | M72: 00:01:01.701 | N72: 00:00:59.646
A73: 4 | B73: Rafael Miranda | C73: 31 | D73: 31 | E73: 00:00:59.646 | F73: 59,51km/h | K73: 24 | L73: 00:01:00 | M73: 00:01:00.308 | N73: 00:00:59.969
A74: 4 | B74: Rafael Miranda | C74: 31 | D74: 31 | E74: 00:00:59.969 | F74: 59,19km/h | K74: 25 | L74: 00:01:01.089 | M74: 00:00:59.946 | N74: 00:00:59.790
A75: 4 | B75: Rafael Miranda | C75: 31 | D75: 31 | E75: 00:00:59.790 | F75: 59,37km/h | K75: 26 | L75: 00:01:00.091 | M75: 00:00:59.792 | N75: 00:00:59.958
A76: 4 | B76: Rafael Miranda | C76: 31 | D76: 31 | E76: 00:00:59.958 | F76: 59,2km/h | K76: 27 | L76: 00:01:00.127 | M76: 00:01:00.397 | N76: 00:00:59.889
A77: 4 | B77: Rafael Miranda | C77: 31 | D77: 31 | E77: 00:00:59.889 | F77: 59,27km/h | K77: 28 | L77: 00:00:59.924 | M77: 00:00:59.903 | N77: 00:01:00.150
A78: 4 | B78: Rafael Miranda | C78: 31 | D78: 31 | E78: 00:01:00.150 | F78: 59,01km/h | K78: 29 | L78: 00:01:00.234 | M78: 00:00:59.916 | N78: 00:01:00.033
A79: 4 | B79: Rafael Miranda | C79: 31 | D79: 31 | E79: 00:01:00.033 | F79: 59,13km/h | K79: 30 | L79: 00:01:00.251 | M79: 00:00:59.673 | N79: 00:01:00.019
A80: 4 | B80: Rafael Miranda | C80: 31 | D80: 31 | E80: 00:01:00.019 | F80: 59,14km/h | K80: 31 | L80: 00:00:59.950 | M80: 00:01:00.206 | N80: 00:01:00.222
A81: 4 | B81: Rafael Miranda | C81: 31 | D81: 31 | E81: 00:01:00.222 | F81: 58,94km/h | K81: 32
A82: 4 | B82: Leonardo Oliveira | C82: 31 | D82: 38 | E82: 00:01:03.040 | F82: 56,31km/h | K82: 33
A83: 4 | B83: Leonardo Oliveira | C83: 31 | D83: 38 | E83: 00:01:03.708 | F83: 55,72km/h | K83: 34
A84: 4 | B84: Leonardo Oliveira | C84: 31 | D84: 38 | E84: 00:01:01.587 | F84: 57,64km/h | K84: 35
A85: 4 | B85: Leonardo Oliveira | C85: 31 | D85: 38 | E85: 00:01:02.007 | F85: 57,25km/h | K85: 36
A86: 4 | B86: Leonardo Oliveira | C86: 31 | D86: 38 | E86: 00:01:00.806 | F86: 58,38km/h | K86: 37
A87: 4 | B87: Leonardo Oliveira | C87: 31 | D87: 38 | E87: 00:01:00.243 | F87: 58,92km/h | K87: 38
A88: 4 | B88: Leonardo Oliveira | C88: 31 | D88: 38 | E88: 00:01:00.051 | F88: 59,11km/h | K88: 39
A89: 4 | B89: Leonardo Oliveira | C89: 31 | D89: 38 | E89: 00:01:00.140 | F89: 59,02km/h | K89: 40
A90: 4 | B90: Leonardo Oliveira | C90: 31 | D90: 38 | E90: 00:01:00.356 | F90: 58,81km/h | K90: 41
A91: 4 | B91: Leonardo Oliveira | C91: 31 | D91: 38 | E91: 00:01:01.090 | F91: 58,1km/h | K91: 42
A92: 4 | B92: Leonardo Oliveira | C92: 31 | D92: 38 | E92: 00:00:59.903 | F92: 59,26km/h | K92: 43
A93: 4 | B93: Leonardo Oliveira | C93: 31 | D93: 38 | E93: 00:00:59.939 | F93: 59,22km/h | K93: 44
A94: 4 | B94: Leonardo Oliveira | C94: 31 | D94: 38 | E94: 00:01:00.072 | F94: 59,09km/h | K94: 45
A95: 4 | B95: Leonardo Oliveira | C95: 31 | D95: 38 | E95: 00:01:00.125 | F95: 59,04km/h | K95: 46
A96: 4 | B96: Leonardo Oliveira | C96: 31 | D96: 38 | E96: 00:00:59.853 | F96: 59,31km/h | K96: 47
A97: 4 | B97: Leonardo Oliveira | C97: 31 | D97: 38 | E97: 00:00:59.882 | F97: 59,28km/h | K97: 48
A98: 4 | B98: Leonardo Oliveira | C98: 31 | D98: 38 | E98: 00:01:00.031 | F98: 59,13km/h | K98: 49
A99: 4 | B99: Leonardo Oliveira | C99: 31 | D99: 38 | E99: 00:00:59.828 | F99: 59,33km/h | K99: 50
A100: 4 | B100: Leonardo Oliveira | C100: 31 | D100: 38 | E100: 00:00:59.657 | F100: 59,5km/h | K100: 51
A101: 4 | B101: Leonardo Oliveira | C101: 31 | D101: 38 | E101: 00:00:59.887 | F101: 59,27km/h | K101: 52
A102: 4 | B102: Leonardo Oliveira | C102: 31 | D102: 38 | E102: 00:00:59.914 | F102: 59,24km/h | K102: 53
A103: 4 | B103: Leonardo Oliveira | C103: 31 | D103: 38 | E103: 00:00:59.974 | F103: 59,19km/h | K103: 54
A104: 4 | B104: Leonardo Oliveira | C104: 31 | D104: 38 | E104: 00:00:59.858 | F104: 59,3km/h | K104: 55
A105: 4 | B105: Leonardo Oliveira | C105: 31 | D105: 38 | E105: 00:01:00 | F105: 59,16km/h | K105: 56
A106: 4 | B106: Leonardo Oliveira | C106: 31 | D106: 38 | E106: 00:01:01.089 | F106: 58,11km/h | K106: 57
A107: 4 | B107: Leonardo Oliveira | C107: 31 | D107: 38 | E107: 00:01:00.091 | F107: 59,07km/h | K107: 58
A108: 4 | B108: Leonardo Oliveira | C108: 31 | D108: 38 | E108: 00:01:00.127 | F108: 59,04km/h | K108: 59
A109: 4 | B109: Leonardo Oliveira | C109: 31 | D109: 38 | E109: 00:00:59.924 | F109: 59,24km/h | K109: 60
A110: 4 | B110: Leonardo Oliveira | C110: 31 | D110: 38 | E110: 00:01:00.234 | F110: 58,93km/h | K110: 61
A111: 4 | B111: Leonardo Oliveira | C111: 31 | D111: 38 | E111: 00:01:00.251 | F111: 58,91km/h | K111: 62
A112: 4 | B112: Leonardo Oliveira | C112: 31 | D112: 38 | E112: 00:00:59.950 | F112: 59,21km/h | K112: 63
A113: 4 | B113: Lucas Rabelo | C113: 31 | D113: 14 | E113: 00:01:04.678 | F113: 54,88km/h
A114: 4 | B114: Lucas Rabelo | C114: 31 | D114: 14 | E114: 00:01:03.274 | F114: 56,1km/h
A115: 4 | B115: Lucas Rabelo | C115: 31 | D115: 14 | E115: 00:01:02.328 | F115: 56,95km/h
A116: 4 | B116: Lucas Rabelo | C116: 31 | D116: 14 | E116: 00:01:02.999 | F116: 56,34km/h | L116: =_xlfn.STDEV.S(L50:L77) -> 00:00:00.997 | M116: =_xlfn.STDEV.S(M50:M77) -> 00:00:01.191 | N116: 00:00:01.439
A117: 4 | B117: Lucas Rabelo | C117: 31 | D117: 14 | E117: 00:01:01.314 | F117: 57,89km/h | L117: =MAX(L50:L77) -> 00:01:03.708 | M117: =MAX(M50:M77) -> 00:01:04.678 | N117: 00:01:06.424
A118: 4 | B118: Lucas Rabelo | C118: 31 | D118: 14 | E118: 00:01:00.170 | F118: 58,99km/h
A119: 4 | B119: Lucas Rabelo | C119: 31 | D119: 14 | E119: 00:00:59.874 | F119: 59,28km/h
A120: 4 | B120: Lucas Rabelo | C120: 31 | D120: 14 | E120: 00:01:00.487 | F120: 58,68km/h
A121: 4 | B121: Lucas Rabelo | C121: 31 | D121: 14 | E121: 00:01:01.073 | F121: 58,12km/h
A122: 4 | B122: Lucas Rabelo | C122: 31 | D122: 14 | E122: 00:01:00.847 | F122: 58,34km/h
A123: 4 | B123: Lucas Rabelo | C123: 31 | D123: 14 | E123: 00:01:01.165 | F123: 58,03km/h
A124: 4 | B124: Lucas Rabelo | C124: 31 | D124: 14 | E124: 00:01:00.123 | F124: 59,04km/h
A125: 4 | B125: Lucas Rabelo | C125: 31 | D125: 14 | E125: 00:01:00.583 | F125: 58,59km/h
A126: 4 | B126: Lucas Rabelo | C126: 31 | D126: 14 | E126: 00:01:00.232 | F126: 58,93km/h
A127: 4 | B127: Lucas Rabelo | C127: 31 | D127: 14 | E127: 00:01:00.209 | F127: 58,95km/h
A128: 4 | B128: Lucas Rabelo | C128: 31 | D128: 14 | E128: 00:01:00.471 | F128: 58,7km/h
A129: 4 | B129: Lucas Rabelo | C129: 31 | D129: 14 | E129: 00:00:59.923 | F129: 59,24km/h
A130: 4 | B130: Lucas Rabelo | C130: 31 | D130: 14 | E130: 00:01:00.050 | F130: 59,11km/h
A131: 4 | B131: Lucas Rabelo | C131: 31 | D131: 14 | E131: 00:01:00.309 | F131: 58,86km/h
A132: 4 | B132: Lucas Rabelo | C132: 31 | D132: 14 | E132: 00:01:00.236 | F132: 58,93km/h
A133: 4 | B133: Lucas Rabelo | C133: 31 | D133: 14 | E133: 00:01:00.045 | F133: 59,12km/h
A134: 4 | B134: Lucas Rabelo | C134: 31 | D134: 14 | E134: 00:00:59.995 | F134: 59,16km/h
A135: 4 | B135: Lucas Rabelo | C135: 31 | D135: 14 | E135: 00:01:01.701 | F135: 57,53km/h
A136: 4 | B136: Lucas Rabelo | C136: 31 | D136: 14 | E136: 00:01:00.308 | F136: 58,86km/h
A137: 4 | B137: Lucas Rabelo | C137: 31 | D137: 14 | E137: 00:00:59.946 | F137: 59,21km/h
A138: 4 | B138: Lucas Rabelo | C138: 31 | D138: 14 | E138: 00:00:59.792 | F138: 59,37km/h
A139: 4 | B139: Lucas Rabelo | C139: 31 | D139: 14 | E139: 00:01:00.397 | F139: 58,77km/h
A140: 4 | B140: Lucas Rabelo | C140: 31 | D140: 14 | E140: 00:00:59.903 | F140: 59,26km/h
A141: 4 | B141: Lucas Rabelo | C141: 31 | D141: 14 | E141: 00:00:59.916 | F141: 59,24km/h
A142: 4 | B142: Lucas Rabelo | C142: 31 | D142: 14 | E142: 00:00:59.673 | F142: 59,48km/h
A143: 4 | B143: Lucas Rabelo | C143: 31 | D143: 14 | E143: 00:01:00.206 | F143: 58,96km/h
A144: 4 | B144: Raphael Reis | C144: 31 | D144: 9 | E144: 00:01:04.802 | F144: 54,78km/h
A145: 4 | B145: Raphael Reis | C145: 31 | D145: 9 | E145: 00:01:03.254 | F145: 56,12km/h
A146: 4 | B146: Raphael Reis | C146: 31 | D146: 9 | E146: 00:01:01.179 | F146: 58,02km/h
A147: 4 | B147: Raphael Reis | C147: 31 | D147: 9 | E147: 00:01:03.906 | F147: 55,54km/h
A148: 4 | B148: Raphael Reis | C148: 31 | D148: 9 | E148: 00:01:01.177 | F148: 58,02km/h
A149: 4 | B149: Raphael Reis | C149: 31 | D149: 9 | E149: 00:01:01.084 | F149: 58,11km/h
A150: 4 | B150: Raphael Reis | C150: 31 | D150: 9 | E150: 00:01:00.204 | F150: 58,96km/h
A151: 4 | B151: Raphael Reis | C151: 31 | D151: 9 | E151: 00:01:00.462 | F151: 58,71km/h
A152: 4 | B152: Raphael Reis | C152: 31 | D152: 9 | E152: 00:01:01.952 | F152: 57,3km/h
A153: 4 | B153: Raphael Reis | C153: 31 | D153: 9 | E153: 00:01:00.818 | F153: 58,36km/h
A154: 4 | B154: Raphael Reis | C154: 31 | D154: 9 | E154: 00:01:01.058 | F154: 58,13km/h
A155: 4 | B155: Raphael Reis | C155: 31 | D155: 9 | E155: 00:00:59.939 | F155: 59,22km/h
A156: 4 | B156: Raphael Reis | C156: 31 | D156: 9 | E156: 00:01:00.796 | F156: 58,39km/h
A157: 4 | B157: Raphael Reis | C157: 31 | D157: 9 | E157: 00:00:59.968 | F157: 59,19km/h
A158: 4 | B158: Raphael Reis | C158: 31 | D158: 9 | E158: 00:01:00.241 | F158: 58,92km/h
A159: 4 | B159: Raphael Reis | C159: 31 | D159: 9 | E159: 00:01:00.561 | F159: 58,61km/h
A160: 4 | B160: Raphael Reis | C160: 31 | D160: 9 | E160: 00:01:00.017 | F160: 59,14km/h
A161: 4 | B161: Raphael Reis | C161: 31 | D161: 9 | E161: 00:00:59.741 | F161: 59,42km/h
A162: 4 | B162: Raphael Reis | C162: 31 | D162: 9 | E162: 00:01:01.061 | F162: 58,13km/h
A163: 4 | B163: Raphael Reis | C163: 31 | D163: 9 | E163: 00:00:59.994 | F163: 59,17km/h
A164: 4 | B164: Raphael Reis | C164: 31 | D164: 9 | E164: 00:00:59.799 | F164: 59,36km/h
A165: 4 | B165: Raphael Reis | C165: 31 | D165: 9 | E165: 00:00:59.796 | F165: 59,36km/h
A166: 4 | B166: Raphael Reis | C166: 31 | D166: 9 | E166: 00:01:00.990 | F166: 58,2km/h
A167: 4 | B167: Raphael Reis | C167: 31 | D167: 9 | E167: 00:01:00.983 | F167: 58,21km/h
A168: 4 | B168: Raphael Reis | C168: 31 | D168: 9 | E168: 00:00:59.974 | F168: 59,19km/h
A169: 4 | B169: Raphael Reis | C169: 31 | D169: 9 | E169: 00:00:59.922 | F169: 59,24km/h
A170: 4 | B170: Raphael Reis | C170: 31 | D170: 9 | E170: 00:01:00.320 | F170: 58,85km/h
A171: 4 | B171: Raphael Reis | C171: 31 | D171: 9 | E171: 00:01:00.071 | F171: 59,09km/h
A172: 4 | B172: Raphael Reis | C172: 31 | D172: 9 | E172: 00:01:00.174 | F172: 58,99km/h
A173: 4 | B173: Raphael Reis | C173: 31 | D173: 9 | E173: 00:01:00.533 | F173: 58,64km/h
A174: 4 | B174: Raphael Reis | C174: 31 | D174: 9 | E174: 00:01:00.383 | F174: 58,78km/h
A175: 4 | B175: Henry Douglas | C175: 31 | D175: 34 | E175: 00:01:04.716 | F175: 54,85km/h
A176: 4 | B176: Henry Douglas | C176: 31 | D176: 34 | E176: 00:01:01.972 | F176: 57,28km/h
A177: 4 | B177: Henry Douglas | C177: 31 | D177: 34 | E177: 00:01:01.774 | F177: 57,46km/h
A178: 4 | B178: Henry Douglas | C178: 31 | D178: 34 | E178: 00:01:01.661 | F178: 57,57km/h
A179: 4 | B179: Henry Douglas | C179: 31 | D179: 34 | E179: 00:01:01.479 | F179: 57,74km/h
A180: 4 | B180: Henry Douglas | C180: 31 | D180: 34 | E180: 00:01:01.244 | F180: 57,96km/h
A181: 4 | B181: Henry Douglas | C181: 31 | D181: 34 | E181: 00:01:01.172 | F181: 58,03km/h
A182: 4 | B182: Henry Douglas | C182: 31 | D182: 34 | E182: 00:01:01.386 | F182: 57,82km/h
A183: 4 | B183: Henry Douglas | C183: 31 | D183: 34 | E183: 00:01:01.097 | F183: 58,1km/h
A184: 4 | B184: Henry Douglas | C184: 31 | D184: 34 | E184: 00:01:00.877 | F184: 58,31km/h
A185: 4 | B185: Henry Douglas | C185: 31 | D185: 34 | E185: 00:01:00.863 | F185: 58,32km/h
A186: 4 | B186: Henry Douglas | C186: 31 | D186: 34 | E186: 00:01:00.748 | F186: 58,43km/h
A187: 4 | B187: Henry Douglas | C187: 31 | D187: 34 | E187: 00:01:00.755 | F187: 58,42km/h
A188: 4 | B188: Henry Douglas | C188: 31 | D188: 34 | E188: 00:01:00.478 | F188: 58,69km/h
A189: 4 | B189: Henry Douglas | C189: 31 | D189: 34 | E189: 00:01:00.738 | F189: 58,44km/h
A190: 4 | B190: Henry Douglas | C190: 31 | D190: 34 | E190: 00:01:00.928 | F190: 58,26km/h
A191: 4 | B191: Henry Douglas | C191: 31 | D191: 34 | E191: 00:01:00.864 | F191: 58,32km/h
A192: 4 | B192: Henry Douglas | C192: 31 | D192: 34 | E192: 00:01:00.195 | F192: 58,97km/h
A193: 4 | B193: Henry Douglas | C193: 31 | D193: 34 | E193: 00:01:01.645 | F193: 57,58km/h
A194: 4 | B194: Henry Douglas | C194: 31 | D194: 34 | E194: 00:01:00.897 | F194: 58,29km/h
A195: 4 | B195: Henry Douglas | C195: 31 | D195: 34 | E195: 00:01:00.817 | F195: 58,37km/h
A196: 4 | B196: Henry Douglas | C196: 31 | D196: 34 | E196: 00:01:00.973 | F196: 58,22km/h
A197: 4 | B197: Henry Douglas | C197: 31 | D197: 34 | E197: 00:01:01.357 | F197: 57,85km/h
A198: 4 | B198: Henry Douglas | C198: 31 | D198: 34 | E198: 00:01:02.021 | F198: 57,23km/h
A199: 4 | B199: Henry Douglas | C199: 31 | D199: 34 | E199: 00:01:00.211 | F199: 58,95km/h
A200: 4 | B200: Henry Douglas | C200: 31 | D200: 34 | E200: 00:01:00.922 | F200: 58,26km/h
A201: 4 | B201: Henry Douglas | C201: 31 | D201: 34 | E201: 00:01:00.767 | F201: 58,41km/h
A202: 4 | B202: Henry Douglas | C202: 31 | D202: 34 | E202: 00:01:01.121 | F202: 58,07km/h
A203: 4 | B203: Henry Douglas | C203: 31 | D203: 34 | E203: 00:01:00.762 | F203: 58,42km/h
A204: 4 | B204: Henry Douglas | C204: 31 | D204: 34 | E204: 00:01:00.493 | F204: 58,68km/h
A205: 4 | B205: Henry Douglas | C205: 31 | D205: 34 | E205: 00:01:01.027 | F205: 58,16km/h
A206: 4 | B206: Tafarel Henrique | C206: 31 | D206: 15 | E206: 00:01:06.715 | F206: 53,21km/h
A207: 4 | B207: Tafarel Henrique | C207: 31 | D207: 15 | E207: 00:01:02.771 | F207: 56,55km/h
A208: 4 | B208: Tafarel Henrique | C208: 31 | D208: 15 | E208: 00:01:02.257 | F208: 57,02km/h
A209: 4 | B209: Tafarel Henrique | C209: 31 | D209: 15 | E209: 00:01:00.885 | F209: 58,3km/h
A210: 4 | B210: Tafarel Henrique | C210: 31 | D210: 15 | E210: 00:01:01.016 | F210: 58,17km/h
A211: 4 | B211: Tafarel Henrique | C211: 31 | D211: 15 | E211: 00:01:01.342 | F211: 57,87km/h
A212: 4 | B212: Tafarel Henrique | C212: 31 | D212: 15 | E212: 00:01:00.862 | F212: 58,32km/h
A213: 4 | B213: Tafarel Henrique | C213: 31 | D213: 15 | E213: 00:01:00.607 | F213: 58,57km/h
... 854 more rows

Sheet ETAPA 03
A1: Obs.: 1. Selecione o nome de um Piloto, 2. Com a tecla Ctrl pressionada, Selecione o seu nome e 3. Clique sobre o Gráfico (Habilite a macro) Para as demais comparações Selecione o nome do Piloto e Clique sobre o Gráfico | G1: PILOTO | H1: =L$48 -> Matheus Rocha | I1: =M$48 -> Aparecido Arantes | J1: =A2 -> Anderson Teixeira | M1: 00:00:01
A2: Anderson Teixeira | G2: MÉDIA | H2: =AVERAGE(L$49:L$105) -> 00:01:05.865 | I2: =AVERAGE(M$49:M$105) -> 00:01:06.584 | J2: =AVERAGE(N$49:N$105) -> 00:01:04.413 | M2: =M1 -> 00:00:01
A3: Rafael Miranda | G3: MAXIMA | H3: =LARGE(L$49:L$105,1) -> 00:01:09.220 | I3: =LARGE(M$49:M$105,1) -> 00:01:10.952 | J3: =LARGE(N$49:N$105,1) -> 00:01:10.411
A4: Leonardo Oliveira | G4: MÍNIMA | H4: =SMALL(L$49:L$105,1) -> 00:01:04.765 | I4: =SMALL(M$49:M$105,1) -> 00:01:05.304 | J4: =SMALL(N$49:N$105,1) -> 00:01:03.694
A5: PetrÔnio Junior | G5: Desvio Padrão | H5: =_xlfn.STDEV.S(L$50:L$130) -> 00:00:11.909 | I5: =_xlfn.STDEV.S(M$50:M$130) -> 00:00:12.049 | J5: =_xlfn.STDEV.S(N$50:N$130) -> 00:00:11.680
A6: Bruno Nosse | G6: TEMPO TOTAL | H6: =SUM(L$49:L$105,1) -> 1.021345046 | I6: =SUM(M$49:M$105,1) -> 1.021578067 | J6: =SUM(N$49:N$105,1) -> 1.020874456
A7: Felipe Curi
A8: Alexandre Melillo
A9: Guilherme Figueiredo
A10: Diego Rodrigues
A11: Samuel Silva
A12: Matheus Rocha
A13: Jarbas Reis | J13: =SMALL(H4:J4,1)-K13 -> 00:01:03.444 | K13: 00:00:00.250
A14: Christian Guedes | J14: =LARGE(H3:J3,1)+K13 -> 00:01:11.202
A15: Gustavo Barros
A16: Saulo Chagas
A17: Alan Moreira
A18: Raphael Reis
A19: Luiz Azevedo
A20: Wesley Canuto
A21: Aparecido Arantes
A22: Lucio Santos
A23: Thales Almeida
A24: Henry Douglas
A25: Guilherme Alves
A26: Bruno Camargos
A27: Thiago Santos
A28: Jean Paul
A29: Lucas Rabelo
A30: Frederico Papatella
A31: Edmárcio Júnior
A32: Matheus Azevedo
A33: Tafarel Henrique
A34: Renato Martins
A35: Thiago Azevedo
A36: Celso Dantas
A37: Levindo Neto
A38: Guilherme Camarano
L48: Matheus Rocha | M48: Aparecido Arantes | N48: Anderson Teixeira
K49: NÚMERO VOLTAS | L49: Matheus Rocha | M49: Aparecido Arantes | N49: Anderson Teixeira
A50: ETAPA | B50: PILOTO | C50: NÚMERO VOLTAS | D50: KART | E50: Volta Tm | F50: velocidade Media | K50: 1 | L50: 00:01:09.220 | M50: 00:01:10.952 | N50: 00:01:10.411
A51: 3 | B51: Anderson Teixeira | C51: 28 | D51: 24 | E51: 00:01:10.411 | F51: 53,68km/h | K51: 2 | L51: 00:01:09.124 | M51: 00:01:07.789 | N51: 00:01:06.069
A52: 3 | B52: Anderson Teixeira | C52: 28 | D52: 24 | E52: 00:01:06.069 | F52: 57,21km/h | K52: 3 | L52: 00:01:06.592 | M52: 00:01:05.863 | N52: 00:01:04.912
A53: 3 | B53: Anderson Teixeira | C53: 28 | D53: 24 | E53: 00:01:04.912 | F53: 58,23km/h | K53: 4 | L53: 00:01:06.712 | M53: 00:01:06.329 | N53: 00:01:05.621
A54: 3 | B54: Anderson Teixeira | C54: 28 | D54: 24 | E54: 00:01:05.621 | F54: 57,6km/h | K54: 5 | L54: 00:01:06.106 | M54: 00:01:09.015 | N54: 00:01:04.057
A55: 3 | B55: Anderson Teixeira | C55: 28 | D55: 24 | E55: 00:01:04.057 | F55: 59,01km/h | K55: 6 | L55: 00:01:05.376 | M55: 00:01:06.102 | N55: 00:01:04.382
A56: 3 | B56: Anderson Teixeira | C56: 28 | D56: 24 | E56: 00:01:04.382 | F56: 58,71km/h | K56: 7 | L56: 00:01:05.569 | M56: 00:01:06.198 | N56: 00:01:04.095
A57: 3 | B57: Anderson Teixeira | C57: 28 | D57: 24 | E57: 00:01:04.095 | F57: 58,97km/h | K57: 8 | L57: 00:01:06.612 | M57: 00:01:05.695 | N57: 00:01:04.069
A58: 3 | B58: Anderson Teixeira | C58: 28 | D58: 24 | E58: 00:01:04.069 | F58: 59km/h | K58: 9 | L58: 00:01:06.359 | M58: 00:01:07.015 | N58: 00:01:03.858
A59: 3 | B59: Anderson Teixeira | C59: 28 | D59: 24 | E59: 00:01:03.858 | F59: 59,19km/h | K59: 10 | L59: 00:01:04.924 | M59: 00:01:06.868 | N59: 00:01:03.855
A60: 3 | B60: Anderson Teixeira | C60: 28 | D60: 24 | E60: 00:01:03.855 | F60: 59,2km/h | K60: 11 | L60: 00:01:05.235 | M60: 00:01:05.599 | N60: 00:01:04.261
A61: 3 | B61: Anderson Teixeira | C61: 28 | D61: 24 | E61: 00:01:04.261 | F61: 58,82km/h | K61: 12 | L61: 00:01:05.191 | M61: 00:01:06.748 | N61: 00:01:04.075
A62: 3 | B62: Anderson Teixeira | C62: 28 | D62: 24 | E62: 00:01:04.075 | F62: 58,99km/h | K62: 13 | L62: 00:01:05.566 | M62: 00:01:06.083 | N62: 00:01:03.801
A63: 3 | B63: Anderson Teixeira | C63: 28 | D63: 24 | E63: 00:01:03.801 | F63: 59,25km/h | K63: 14 | L63: 00:01:04.765 | M63: 00:01:05.861 | N63: 00:01:04.137
A64: 3 | B64: Anderson Teixeira | C64: 28 | D64: 24 | E64: 00:01:04.137 | F64: 58,94km/h | K64: 15 | L64: 00:01:05.891 | M64: 00:01:07.759 | N64: 00:01:03.916
A65: 3 | B65: Anderson Teixeira | C65: 28 | D65: 24 | E65: 00:01:03.916 | F65: 59,14km/h | K65: 16 | L65: 00:01:05.212 | M65: 00:01:06.191 | N65: 00:01:04.025
A66: 3 | B66: Anderson Teixeira | C66: 28 | D66: 24 | E66: 00:01:04.025 | F66: 59,04km/h | K66: 17 | L66: 00:01:05.357 | M66: 00:01:06.660 | N66: 00:01:04.347
A67: 3 | B67: Anderson Teixeira | C67: 28 | D67: 24 | E67: 00:01:04.347 | F67: 58,74km/h | K67: 18 | L67: 00:01:05.309 | M67: 00:01:06.001 | N67: 00:01:03.838
A68: 3 | B68: Anderson Teixeira | C68: 28 | D68: 24 | E68: 00:01:03.838 | F68: 59,21km/h | K68: 19 | L68: 00:01:05.217 | M68: 00:01:06.980 | N68: 00:01:03.900
A69: 3 | B69: Anderson Teixeira | C69: 28 | D69: 24 | E69: 00:01:03.900 | F69: 59,15km/h | K69: 20 | L69: 00:01:04.865 | M69: 00:01:05.751 | N69: 00:01:03.833
A70: 3 | B70: Anderson Teixeira | C70: 28 | D70: 24 | E70: 00:01:03.833 | F70: 59,22km/h | K70: 21 | L70: 00:01:05.073 | M70: 00:01:05.304 | N70: 00:01:04.260
A71: 3 | B71: Anderson Teixeira | C71: 28 | D71: 24 | E71: 00:01:04.260 | F71: 58,82km/h | K71: 22 | L71: 00:01:06.835 | M71: 00:01:05.660 | N71: 00:01:04.540
A72: 3 | B72: Anderson Teixeira | C72: 28 | D72: 24 | E72: 00:01:04.540 | F72: 58,57km/h | K72: 23 | L72: 00:01:06.086 | M72: 00:01:05.906 | N72: 00:01:03.815
A73: 3 | B73: Anderson Teixeira | C73: 28 | D73: 24 | E73: 00:01:03.815 | F73: 59,23km/h | K73: 24 | L73: 00:01:05.772 | M73: 00:01:05.745 | N73: 00:01:03.931
A74: 3 | B74: Anderson Teixeira | C74: 28 | D74: 24 | E74: 00:01:03.931 | F74: 59,13km/h | K74: 25 | L74: 00:01:05.189 | M74: 00:01:07.015 | N74: 00:01:03.872
A75: 3 | B75: Anderson Teixeira | C75: 28 | D75: 24 | E75: 00:01:03.872 | F75: 59,18km/h | K75: 26 | L75: 00:01:05.230 | M75: 00:01:07.012 | N75: 00:01:03.694
A76: 3 | B76: Anderson Teixeira | C76: 28 | D76: 24 | E76: 00:01:03.694 | F76: 59,35km/h | K76: 27 | L76: 00:01:05.207 | M76: 00:01:05.781 | N76: 00:01:04.029
A77: 3 | B77: Anderson Teixeira | C77: 28 | D77: 24 | E77: 00:01:04.029 | F77: 59,04km/h | K77: 28 | L77: 00:01:05.618 | M77: 00:01:06.463 | N77: 00:01:03.950
A78: 3 | B78: Anderson Teixeira | C78: 28 | D78: 24 | E78: 00:01:03.950 | F78: 59,11km/h | K78: 29
A79: 3 | B79: Rafael Miranda | C79: 28 | D79: 8 | E79: 00:01:09.475 | F79: 54,41km/h | K79: 30
A80: 3 | B80: Rafael Miranda | C80: 28 | D80: 8 | E80: 00:01:06.579 | F80: 56,77km/h | K80: 31
A81: 3 | B81: Rafael Miranda | C81: 28 | D81: 8 | E81: 00:01:05.149 | F81: 58,02km/h | K81: 32
A82: 3 | B82: Rafael Miranda | C82: 28 | D82: 8 | E82: 00:01:05.160 | F82: 58,01km/h | K82: 33
A83: 3 | B83: Rafael Miranda | C83: 28 | D83: 8 | E83: 00:01:04.910 | F83: 58,23km/h | K83: 34
A84: 3 | B84: Rafael Miranda | C84: 28 | D84: 8 | E84: 00:01:04.735 | F84: 58,39km/h | K84: 35
A85: 3 | B85: Rafael Miranda | C85: 28 | D85: 8 | E85: 00:01:04.725 | F85: 58,4km/h | K85: 36
A86: 3 | B86: Rafael Miranda | C86: 28 | D86: 8 | E86: 00:01:04.908 | F86: 58,24km/h | K86: 37
A87: 3 | B87: Rafael Miranda | C87: 28 | D87: 8 | E87: 00:01:04.638 | F87: 58,48km/h | K87: 38
A88: 3 | B88: Rafael Miranda | C88: 28 | D88: 8 | E88: 00:01:04.758 | F88: 58,37km/h | K88: 39
A89: 3 | B89: Rafael Miranda | C89: 28 | D89: 8 | E89: 00:01:04.555 | F89: 58,55km/h | K89: 40
A90: 3 | B90: Rafael Miranda | C90: 28 | D90: 8 | E90: 00:01:04.645 | F90: 58,47km/h | K90: 41
A91: 3 | B91: Rafael Miranda | C91: 28 | D91: 8 | E91: 00:01:04.207 | F91: 58,87km/h | K91: 42
A92: 3 | B92: Rafael Miranda | C92: 28 | D92: 8 | E92: 00:01:04.384 | F92: 58,71km/h | K92: 43
A93: 3 | B93: Rafael Miranda | C93: 28 | D93: 8 | E93: 00:01:04.269 | F93: 58,82km/h | K93: 44
A94: 3 | B94: Rafael Miranda | C94: 28 | D94: 8 | E94: 00:01:04.642 | F94: 58,48km/h | K94: 45
A95: 3 | B95: Rafael Miranda | C95: 28 | D95: 8 | E95: 00:01:04.805 | F95: 58,33km/h | K95: 46
A96: 3 | B96: Rafael Miranda | C96: 28 | D96: 8 | E96: 00:01:04.483 | F96: 58,62km/h | K96: 47
A97: 3 | B97: Rafael Miranda | C97: 28 | D97: 8 | E97: 00:01:04.515 | F97: 58,59km/h | K97: 48
A98: 3 | B98: Rafael Miranda | C98: 28 | D98: 8 | E98: 00:01:04.502 | F98: 58,6km/h | K98: 49
A99: 3 | B99: Rafael Miranda | C99: 28 | D99: 8 | E99: 00:01:04.525 | F99: 58,58km/h | K99: 50
A100: 3 | B100: Rafael Miranda | C100: 28 | D100: 8 | E100: 00:01:04.305 | F100: 58,78km/h | K100: 51
A101: 3 | B101: Rafael Miranda | C101: 28 | D101: 8 | E101: 00:01:04.325 | F101: 58,76km/h | K101: 52
A102: 3 | B102: Rafael Miranda | C102: 28 | D102: 8 | E102: 00:01:04.129 | F102: 58,94km/h | K102: 53
A103: 3 | B103: Rafael Miranda | C103: 28 | D103: 8 | E103: 00:01:04.442 | F103: 58,66km/h | K103: 54
A104: 3 | B104: Rafael Miranda | C104: 28 | D104: 8 | E104: 00:01:04.388 | F104: 58,71km/h | K104: 55
A105: 3 | B105: Rafael Miranda | C105: 28 | D105: 8 | E105: 00:01:04.335 | F105: 58,75km/h | K105: 56
A106: 3 | B106: Rafael Miranda | C106: 28 | D106: 8 | E106: 00:01:04.609 | F106: 58,51km/h | K106: 57
A107: 3 | B107: Leonardo Oliveira | C107: 28 | D107: 3 | E107: 00:01:08.322 | F107: 55,33km/h | K107: 58
A108: 3 | B108: Leonardo Oliveira | C108: 28 | D108: 3 | E108: 00:01:08.048 | F108: 55,55km/h | K108: 59
A109: 3 | B109: Leonardo Oliveira | C109: 28 | D109: 3 | E109: 00:01:05.928 | F109: 57,34km/h | K109: 60
A110: 3 | B110: Leonardo Oliveira | C110: 28 | D110: 3 | E110: 00:01:06.932 | F110: 56,48km/h | K110: 61
A111: 3 | B111: Leonardo Oliveira | C111: 28 | D111: 3 | E111: 00:01:04.661 | F111: 58,46km/h | K111: 62
A112: 3 | B112: Leonardo Oliveira | C112: 28 | D112: 3 | E112: 00:01:04.524 | F112: 58,58km/h | K112: 63
A113: 3 | B113: Leonardo Oliveira | C113: 28 | D113: 3 | E113: 00:01:04.513 | F113: 58,59km/h
A114: 3 | B114: Leonardo Oliveira | C114: 28 | D114: 3 | E114: 00:01:04.522 | F114: 58,58km/h
A115: 3 | B115: Leonardo Oliveira | C115: 28 | D115: 3 | E115: 00:01:04.249 | F115: 58,83km/h
A116: 3 | B116: Leonardo Oliveira | C116: 28 | D116: 3 | E116: 00:01:04.111 | F116: 58,96km/h | L116: =_xlfn.STDEV.S(L50:L77) -> 00:00:01.101 | M116: =_xlfn.STDEV.S(M50:M77) -> 00:00:01.181 | N116: 00:00:01.293
A117: 3 | B117: Leonardo Oliveira | C117: 28 | D117: 3 | E117: 00:01:04.521 | F117: 58,59km/h | L117: =MAX(L50:L77) -> 00:01:09.220 | M117: =MAX(M50:M77) -> 00:01:10.952 | N117: 00:01:10.411
A118: 3 | B118: Leonardo Oliveira | C118: 28 | D118: 3 | E118: 00:01:04.279 | F118: 58,81km/h
A119: 3 | B119: Leonardo Oliveira | C119: 28 | D119: 3 | E119: 00:01:04.287 | F119: 58,8km/h
A120: 3 | B120: Leonardo Oliveira | C120: 28 | D120: 3 | E120: 00:01:04.172 | F120: 58,9km/h
A121: 3 | B121: Leonardo Oliveira | C121: 28 | D121: 3 | E121: 00:01:04.231 | F121: 58,85km/h
A122: 3 | B122: Leonardo Oliveira | C122: 28 | D122: 3 | E122: 00:01:04.216 | F122: 58,86km/h
A123: 3 | B123: Leonardo Oliveira | C123: 28 | D123: 3 | E123: 00:01:04.061 | F123: 59,01km/h
A124: 3 | B124: Leonardo Oliveira | C124: 28 | D124: 3 | E124: 00:01:04.549 | F124: 58,56km/h
A125: 3 | B125: Leonardo Oliveira | C125: 28 | D125: 3 | E125: 00:01:04.132 | F125: 58,94km/h
A126: 3 | B126: Leonardo Oliveira | C126: 28 | D126: 3 | E126: 00:01:03.935 | F126: 59,12km/h
A127: 3 | B127: Leonardo Oliveira | C127: 28 | D127: 3 | E127: 00:01:03.825 | F127: 59,22km/h
A128: 3 | B128: Leonardo Oliveira | C128: 28 | D128: 3 | E128: 00:01:04.323 | F128: 58,77km/h
A129: 3 | B129: Leonardo Oliveira | C129: 28 | D129: 3 | E129: 00:01:04.104 | F129: 58,97km/h
A130: 3 | B130: Leonardo Oliveira | C130: 28 | D130: 3 | E130: 00:01:04.150 | F130: 58,92km/h
A131: 3 | B131: Leonardo Oliveira | C131: 28 | D131: 3 | E131: 00:01:04.520 | F131: 58,59km/h
A132: 3 | B132: Leonardo Oliveira | C132: 28 | D132: 3 | E132: 00:01:04.743 | F132: 58,38km/h
A133: 3 | B133: Leonardo Oliveira | C133: 28 | D133: 3 | E133: 00:01:04.276 | F133: 58,81km/h
A134: 3 | B134: Leonardo Oliveira | C134: 28 | D134: 3 | E134: 00:01:04.213 | F134: 58,87km/h
A135: 3 | B135: PetrÔnio Junior | C135: 28 | D135: 42 | E135: 00:01:10.248 | F135: 53,81km/h
A136: 3 | B136: PetrÔnio Junior | C136: 28 | D136: 42 | E136: 00:01:06.791 | F136: 56,59km/h
A137: 3 | B137: PetrÔnio Junior | C137: 28 | D137: 42 | E137: 00:01:05.427 | F137: 57,77km/h
A138: 3 | B138: PetrÔnio Junior | C138: 28 | D138: 42 | E138: 00:01:05.048 | F138: 58,11km/h
A139: 3 | B139: PetrÔnio Junior | C139: 28 | D139: 42 | E139: 00:01:05.618 | F139: 57,61km/h
A140: 3 | B140: PetrÔnio Junior | C140: 28 | D140: 42 | E140: 00:01:05.423 | F140: 57,78km/h
A141: 3 | B141: PetrÔnio Junior | C141: 28 | D141: 42 | E141: 00:01:04.585 | F141: 58,53km/h
A142: 3 | B142: PetrÔnio Junior | C142: 28 | D142: 42 | E142: 00:01:04.842 | F142: 58,3km/h
A143: 3 | B143: PetrÔnio Junior | C143: 28 | D143: 42 | E143: 00:01:04.687 | F143: 58,44km/h
A144: 3 | B144: PetrÔnio Junior | C144: 28 | D144: 42 | E144: 00:01:04.826 | F144: 58,31km/h
A145: 3 | B145: PetrÔnio Junior | C145: 28 | D145: 42 | E145: 00:01:04.675 | F145: 58,45km/h
A146: 3 | B146: PetrÔnio Junior | C146: 28 | D146: 42 | E146: 00:01:04.663 | F146: 58,46km/h
A147: 3 | B147: PetrÔnio Junior | C147: 28 | D147: 42 | E147: 00:01:04.557 | F147: 58,55km/h
A148: 3 | B148: PetrÔnio Junior | C148: 28 | D148: 42 | E148: 00:01:04.788 | F148: 58,34km/h
A149: 3 | B149: PetrÔnio Junior | C149: 28 | D149: 42 | E149: 00:01:04.747 | F149: 58,38km/h
A150: 3 | B150: PetrÔnio Junior | C150: 28 | D150: 42 | E150: 00:01:04.541 | F150: 58,57km/h
A151: 3 | B151: PetrÔnio Junior | C151: 28 | D151: 42 | E151: 00:01:04.825 | F151: 58,31km/h
A152: 3 | B152: PetrÔnio Junior | C152: 28 | D152: 42 | E152: 00:01:04.630 | F152: 58,49km/h
A153: 3 | B153: PetrÔnio Junior | C153: 28 | D153: 42 | E153: 00:01:04.503 | F153: 58,6km/h
A154: 3 | B154: PetrÔnio Junior | C154: 28 | D154: 42 | E154: 00:01:05.369 | F154: 57,83km/h
A155: 3 | B155: PetrÔnio Junior | C155: 28 | D155: 42 | E155: 00:01:05.015 | F155: 58,14km/h
A156: 3 | B156: PetrÔnio Junior | C156: 28 | D156: 42 | E156: 00:01:04.890 | F156: 58,25km/h
A157: 3 | B157: PetrÔnio Junior | C157: 28 | D157: 42 | E157: 00:01:04.293 | F157: 58,79km/h
A158: 3 | B158: PetrÔnio Junior | C158: 28 | D158: 42 | E158: 00:01:04.585 | F158: 58,53km/h
A159: 3 | B159: PetrÔnio Junior | C159: 28 | D159: 42 | E159: 00:01:04.525 | F159: 58,58km/h
A160: 3 | B160: PetrÔnio Junior | C160: 28 | D160: 42 | E160: 00:01:04.484 | F160: 58,62km/h
A161: 3 | B161: PetrÔnio Junior | C161: 28 | D161: 42 | E161: 00:01:04.652 | F161: 58,47km/h
A162: 3 | B162: PetrÔnio Junior | C162: 28 | D162: 42 | E162: 00:01:04.518 | F162: 58,59km/h
A163: 3 | B163: Bruno Nosse | C163: 28 | D163: 31 | E163: 00:01:09.664 | F163: 54,26km/h
A164: 3 | B164: Bruno Nosse | C164: 28 | D164: 31 | E164: 00:01:07.675 | F164: 55,86km/h
A165: 3 | B165: Bruno Nosse | C165: 28 | D165: 31 | E165: 00:01:07.010 | F165: 56,41km/h
A166: 3 | B166: Bruno Nosse | C166: 28 | D166: 31 | E166: 00:01:07.397 | F166: 56,09km/h
A167: 3 | B167: Bruno Nosse | C167: 28 | D167: 31 | E167: 00:01:04.790 | F167: 58,34km/h
A168: 3 | B168: Bruno Nosse | C168: 28 | D168: 31 | E168: 00:01:04.605 | F168: 58,51km/h
A169: 3 | B169: Bruno Nosse | C169: 28 | D169: 31 | E169: 00:01:04.492 | F169: 58,61km/h
A170: 3 | B170: Bruno Nosse | C170: 28 | D170: 31 | E170: 00:01:05.168 | F170: 58km/h
A171: 3 | B171: Bruno Nosse | C171: 28 | D171: 31 | E171: 00:01:04.814 | F171: 58,32km/h
A172: 3 | B172: Bruno Nosse | C172: 28 | D172: 31 | E172: 00:01:04.139 | F172: 58,93km/h
A173: 3 | B173: Bruno Nosse | C173: 28 | D173: 31 | E173: 00:01:04.542 | F173: 58,57km/h
A174: 3 | B174: Bruno Nosse | C174: 28 | D174: 31 | E174: 00:01:05.212 | F174: 57,96km/h
A175: 3 | B175: Bruno Nosse | C175: 28 | D175: 31 | E175: 00:01:05.371 | F175: 57,82km/h
A176: 3 | B176: Bruno Nosse | C176: 28 | D176: 31 | E176: 00:01:04.564 | F176: 58,55km/h
A177: 3 | B177: Bruno Nosse | C177: 28 | D177: 31 | E177: 00:01:04.450 | F177: 58,65km/h
A178: 3 | B178: Bruno Nosse | C178: 28 | D178: 31 | E178: 00:01:04.391 | F178: 58,7km/h
A179: 3 | B179: Bruno Nosse | C179: 28 | D179: 31 | E179: 00:01:04.344 | F179: 58,75km/h
A180: 3 | B180: Bruno Nosse | C180: 28 | D180: 31 | E180: 00:01:04.411 | F180: 58,69km/h
A181: 3 | B181: Bruno Nosse | C181: 28 | D181: 31 | E181: 00:01:04.482 | F181: 58,62km/h
A182: 3 | B182: Bruno Nosse | C182: 28 | D182: 31 | E182: 00:01:04.362 | F182: 58,73km/h
A183: 3 | B183: Bruno Nosse | C183: 28 | D183: 31 | E183: 00:01:05.080 | F183: 58,08km/h
A184: 3 | B184: Bruno Nosse | C184: 28 | D184: 31 | E184: 00:01:04.965 | F184: 58,19km/h
A185: 3 | B185: Bruno Nosse | C185: 28 | D185: 31 | E185: 00:01:04.896 | F185: 58,25km/h
A186: 3 | B186: Bruno Nosse | C186: 28 | D186: 31 | E186: 00:01:04.866 | F186: 58,27km/h
A187: 3 | B187: Bruno Nosse | C187: 28 | D187: 31 | E187: 00:01:05.150 | F187: 58,02km/h
A188: 3 | B188: Bruno Nosse | C188: 28 | D188: 31 | E188: 00:01:04.800 | F188: 58,33km/h
A189: 3 | B189: Bruno Nosse | C189: 28 | D189: 31 | E189: 00:01:04.866 | F189: 58,27km/h
A190: 3 | B190: Bruno Nosse | C190: 28 | D190: 31 | E190: 00:01:04.760 | F190: 58,37km/h
A191: 3 | B191: Felipe Curi | C191: 28 | D191: 7 | E191: 00:01:10.099 | F191: 53,92km/h
A192: 3 | B192: Felipe Curi | C192: 28 | D192: 7 | E192: 00:01:06.657 | F192: 56,71km/h
A193: 3 | B193: Felipe Curi | C193: 28 | D193: 7 | E193: 00:01:06.239 | F193: 57,07km/h
A194: 3 | B194: Felipe Curi | C194: 28 | D194: 7 | E194: 00:01:06.730 | F194: 56,65km/h
A195: 3 | B195: Felipe Curi | C195: 28 | D195: 7 | E195: 00:01:07.663 | F195: 55,87km/h
A196: 3 | B196: Felipe Curi | C196: 28 | D196: 7 | E196: 00:01:05.016 | F196: 58,14km/h
A197: 3 | B197: Felipe Curi | C197: 28 | D197: 7 | E197: 00:01:05.923 | F197: 57,34km/h
A198: 3 | B198: Felipe Curi | C198: 28 | D198: 7 | E198: 00:01:04.955 | F198: 58,19km/h
A199: 3 | B199: Felipe Curi | C199: 28 | D199: 7 | E199: 00:01:05.275 | F199: 57,91km/h
A200: 3 | B200: Felipe Curi | C200: 28 | D200: 7 | E200: 00:01:04.822 | F200: 58,31km/h
A201: 3 | B201: Felipe Curi | C201: 28 | D201: 7 | E201: 00:01:05.240 | F201: 57,94km/h
A202: 3 | B202: Felipe Curi | C202: 28 | D202: 7 | E202: 00:01:05.336 | F202: 57,85km/h
A203: 3 | B203: Felipe Curi | C203: 28 | D203: 7 | E203: 00:01:05.770 | F203: 57,47km/h
A204: 3 | B204: Felipe Curi | C204: 28 | D204: 7 | E204: 00:01:04.822 | F204: 58,31km/h
A205: 3 | B205: Felipe Curi | C205: 28 | D205: 7 | E205: 00:01:04.526 | F205: 58,58km/h
A206: 3 | B206: Felipe Curi | C206: 28 | D206: 7 | E206: 00:01:04.952 | F206: 58,2km/h
A207: 3 | B207: Felipe Curi | C207: 28 | D207: 7 | E207: 00:01:04.984 | F207: 58,17km/h
A208: 3 | B208: Felipe Curi | C208: 28 | D208: 7 | E208: 00:01:05.102 | F208: 58,06km/h
A209: 3 | B209: Felipe Curi | C209: 28 | D209: 7 | E209: 00:01:05.368 | F209: 57,83km/h
... 888 more rows

Sheet ETAPA 02
A1: Obs.: 1. Selecione o nome de um Piloto, 2. Com a tecla Ctrl pressionada, Selecione o seu nome e 3. Clique sobre o Gráfico (Habilite a macro) Para as demais comparações Selecione o nome do Piloto e Clique sobre o Gráfico | G1: PILOTO | H1: =L$48 -> Guilherme Figueiredo | I1: =M$48 -> Lucas Rabelo | J1: =A2 -> Guilherme Figueiredo | M1: 00:00:01
A2: Guilherme Figueiredo | G2: MÉDIA | H2: =AVERAGE(L$49:L$105) -> 00:01:04.877 | I2: =AVERAGE(M$49:M$105) -> 00:01:05.281 | J2: =AVERAGE(N$49:N$105) -> 00:01:04.877 | M2: =M1 -> 00:00:01
A3: Alexandre Melillo | G3: MAXIMA | H3: =LARGE(L$49:L$105,1) -> 00:01:09.584 | I3: =LARGE(M$49:M$105,1) -> 00:01:09.779 | J3: =LARGE(N$49:N$105,1) -> 00:01:09.584
A4: Lucas Rabelo | G4: MÍNIMA | H4: =SMALL(L$49:L$105,1) -> 00:01:03.604 | I4: =SMALL(M$49:M$105,1) -> 00:01:04.269 | J4: =SMALL(N$49:N$105,1) -> 00:01:03.604
A5: Christian Guedes | G5: Desvio Padrão | H5: =_xlfn.STDEV.S(L$50:L$130) -> 00:00:11.717 | I5: =_xlfn.STDEV.S(M$50:M$130) -> 00:00:11.823 | J5: =_xlfn.STDEV.S(N$50:N$130) -> 00:00:11.717
A6: Luiz Azevedo | G6: TEMPO TOTAL | H6: =SUM(L$49:L$105,1) -> 1.021024977 | I6: =SUM(M$49:M$105,1) -> 1.02115588 | J6: =SUM(N$49:N$105,1) -> 1.021024977
A7: PetrÔnio Junior
A8: Diego Rodrigues
A9: Jarbas Reis
A10: Guilherme Camarano
A11: Bruno Nosse
A12: Jean Paul
A13: Guilherme Alves | J13: =SMALL(H4:J4,1)-K13 -> 00:01:03.354 | K13: 00:00:00.250
A14: Raphael Reis | J14: =LARGE(H3:J3,1)+K13 -> 00:01:10.029
A15: Thales Almeida
A16: Matheus Rocha
A17: Felipe Curi
A18: Aparecido Arantes
A19: Anderson Teixeira
A20: Wesley Canuto
A21: Tafarel Henrique
A22: Bruno Camargos
A23: Thiago Santos
A24: Matheus Azevedo
A25: Thiago Azevedo
A26: Lucio Santos
A27: Celso Dantas
A28: Renato Martins
A29: Luciano Robervine
A30: Henry Douglas
A31: Samuel Silva
A32: Edmárcio Júnior
A33: Alan Moreira
A34: MARIO ANDRE MAZZUCO
A35: Levindo Neto
A36: Rafael Miranda
A37: DIEGO LOPES
A38: Márcio Tadeu
L48: Guilherme Figueiredo | M48: Lucas Rabelo | N48: Guilherme Figueiredo
K49: NÚMERO VOLTAS | L49: Guilherme Figueiredo | M49: Lucas Rabelo | N49: Guilherme Figueiredo
A50: ETAPA | B50: PILOTO | C50: NÚMERO VOLTAS | D50: KART | E50: Volta Tm | F50: velocidade Media | K50: 1 | L50: 00:01:09.001 | M50: 00:01:09.779 | N50: 00:01:09.001
A51: 2 | B51: Guilherme Figueiredo | C51: 28 | D51: 36 | E51: 00:01:09.001 | F51: 56,45km/h | K51: 2 | L51: 00:01:09.584 | M51: 00:01:07.335 | N51: 00:01:09.584
A52: 2 | B52: Guilherme Figueiredo | C52: 28 | D52: 36 | E52: 00:01:09.584 | F52: 55,98km/h | K52: 3 | L52: 00:01:07.247 | M52: 00:01:05.965 | N52: 00:01:07.247
A53: 2 | B53: Guilherme Figueiredo | C53: 28 | D53: 36 | E53: 00:01:07.247 | F53: 57,92km/h | K53: 4 | L53: 00:01:07.297 | M53: 00:01:06.130 | N53: 00:01:07.297
A54: 2 | B54: Guilherme Figueiredo | C54: 28 | D54: 36 | E54: 00:01:07.297 | F54: 57,88km/h | K54: 5 | L54: 00:01:05.144 | M54: 00:01:05.480 | N54: 00:01:05.144
A55: 2 | B55: Guilherme Figueiredo | C55: 28 | D55: 36 | E55: 00:01:05.144 | F55: 59,79km/h | K55: 6 | L55: 00:01:06.572 | M55: 00:01:05.081 | N55: 00:01:06.572
A56: 2 | B56: Guilherme Figueiredo | C56: 28 | D56: 36 | E56: 00:01:06.572 | F56: 58,51km/h | K56: 7 | L56: 00:01:04.325 | M56: 00:01:04.951 | N56: 00:01:04.325
A57: 2 | B57: Guilherme Figueiredo | C57: 28 | D57: 36 | E57: 00:01:04.325 | F57: 60,55km/h | K57: 8 | L57: 00:01:03.999 | M57: 00:01:05.139 | N57: 00:01:03.999
A58: 2 | B58: Guilherme Figueiredo | C58: 28 | D58: 36 | E58: 00:01:03.999 | F58: 60,86km/h | K58: 9 | L58: 00:01:05.387 | M58: 00:01:05.076 | N58: 00:01:05.387
A59: 2 | B59: Guilherme Figueiredo | C59: 28 | D59: 36 | E59: 00:01:05.387 | F59: 59,57km/h | K59: 10 | L59: 00:01:04.177 | M59: 00:01:05.527 | N59: 00:01:04.177
A60: 2 | B60: Guilherme Figueiredo | C60: 28 | D60: 36 | E60: 00:01:04.177 | F60: 60,69km/h | K60: 11 | L60: 00:01:04.713 | M60: 00:01:05.045 | N60: 00:01:04.713
A61: 2 | B61: Guilherme Figueiredo | C61: 28 | D61: 36 | E61: 00:01:04.713 | F61: 60,19km/h | K61: 12 | L61: 00:01:03.811 | M61: 00:01:05.098 | N61: 00:01:03.811
A62: 2 | B62: Guilherme Figueiredo | C62: 28 | D62: 36 | E62: 00:01:03.811 | F62: 61,04km/h | K62: 13 | L62: 00:01:04.164 | M62: 00:01:05.472 | N62: 00:01:04.164
A63: 2 | B63: Guilherme Figueiredo | C63: 28 | D63: 36 | E63: 00:01:04.164 | F63: 60,71km/h | K63: 14 | L63: 00:01:04.077 | M63: 00:01:05.146 | N63: 00:01:04.077
A64: 2 | B64: Guilherme Figueiredo | C64: 28 | D64: 36 | E64: 00:01:04.077 | F64: 60,79km/h | K64: 15 | L64: 00:01:03.957 | M64: 00:01:04.807 | N64: 00:01:03.957
A65: 2 | B65: Guilherme Figueiredo | C65: 28 | D65: 36 | E65: 00:01:03.957 | F65: 60,9km/h | K65: 16 | L65: 00:01:03.660 | M65: 00:01:04.815 | N65: 00:01:03.660
A66: 2 | B66: Guilherme Figueiredo | C66: 28 | D66: 36 | E66: 00:01:03.660 | F66: 61,19km/h | K66: 17 | L66: 00:01:04.456 | M66: 00:01:05.338 | N66: 00:01:04.456
A67: 2 | B67: Guilherme Figueiredo | C67: 28 | D67: 36 | E67: 00:01:04.456 | F67: 60,43km/h | K67: 18 | L67: 00:01:04.131 | M67: 00:01:04.521 | N67: 00:01:04.131
A68: 2 | B68: Guilherme Figueiredo | C68: 28 | D68: 36 | E68: 00:01:04.131 | F68: 60,74km/h | K68: 19 | L68: 00:01:04.012 | M68: 00:01:04.643 | N68: 00:01:04.012
A69: 2 | B69: Guilherme Figueiredo | C69: 28 | D69: 36 | E69: 00:01:04.012 | F69: 60,85km/h | K69: 20 | L69: 00:01:04.155 | M69: 00:01:04.269 | N69: 00:01:04.155
A70: 2 | B70: Guilherme Figueiredo | C70: 28 | D70: 36 | E70: 00:01:04.155 | F70: 60,72km/h | K70: 21 | L70: 00:01:03.604 | M70: 00:01:04.561 | N70: 00:01:03.604
A71: 2 | B71: Guilherme Figueiredo | C71: 28 | D71: 36 | E71: 00:01:03.604 | F71: 61,24km/h | K71: 22 | L71: 00:01:04.482 | M71: 00:01:04.713 | N71: 00:01:04.482
A72: 2 | B72: Guilherme Figueiredo | C72: 28 | D72: 36 | E72: 00:01:04.482 | F72: 60,41km/h | K72: 23 | L72: 00:01:03.724 | M72: 00:01:06.002 | N72: 00:01:03.724
A73: 2 | B73: Guilherme Figueiredo | C73: 28 | D73: 36 | E73: 00:01:03.724 | F73: 61,13km/h | K73: 24 | L73: 00:01:04.226 | M73: 00:01:04.401 | N73: 00:01:04.226
A74: 2 | B74: Guilherme Figueiredo | C74: 28 | D74: 36 | E74: 00:01:04.226 | F74: 60,65km/h | K74: 25 | L74: 00:01:03.697 | M74: 00:01:04.562 | N74: 00:01:03.697
A75: 2 | B75: Guilherme Figueiredo | C75: 28 | D75: 36 | E75: 00:01:03.697 | F75: 61,15km/h | K75: 26 | L75: 00:01:03.632 | M75: 00:01:04.599 | N75: 00:01:03.632
A76: 2 | B76: Guilherme Figueiredo | C76: 28 | D76: 36 | E76: 00:01:03.632 | F76: 61,21km/h | K76: 27 | L76: 00:01:04.598 | M76: 00:01:04.620 | N76: 00:01:04.598
A77: 2 | B77: Guilherme Figueiredo | C77: 28 | D77: 36 | E77: 00:01:04.598 | F77: 60,3km/h | K77: 28 | L77: 00:01:04.726 | M77: 00:01:04.793 | N77: 00:01:04.726
A78: 2 | B78: Guilherme Figueiredo | C78: 28 | D78: 36 | E78: 00:01:04.726 | F78: 60,18km/h | K78: 29
A79: 2 | B79: Alexandre Melillo | C79: 28 | D79: 8 | E79: 00:01:11.602 | F79: 54,4km/h | K79: 30
A80: 2 | B80: Alexandre Melillo | C80: 28 | D80: 8 | E80: 00:01:08.470 | F80: 56,89km/h | K80: 31
A81: 2 | B81: Alexandre Melillo | C81: 28 | D81: 8 | E81: 00:01:07.058 | F81: 58,09km/h | K81: 32
A82: 2 | B82: Alexandre Melillo | C82: 28 | D82: 8 | E82: 00:01:07.146 | F82: 58,01km/h | K82: 33
A83: 2 | B83: Alexandre Melillo | C83: 28 | D83: 8 | E83: 00:01:05.625 | F83: 59,36km/h | K83: 34
A84: 2 | B84: Alexandre Melillo | C84: 28 | D84: 8 | E84: 00:01:07.762 | F84: 57,48km/h | K84: 35
A85: 2 | B85: Alexandre Melillo | C85: 28 | D85: 8 | E85: 00:01:04.920 | F85: 60km/h | K85: 36
A86: 2 | B86: Alexandre Melillo | C86: 28 | D86: 8 | E86: 00:01:05.064 | F86: 59,87km/h | K86: 37
A87: 2 | B87: Alexandre Melillo | C87: 28 | D87: 8 | E87: 00:01:04.680 | F87: 60,22km/h | K87: 38
A88: 2 | B88: Alexandre Melillo | C88: 28 | D88: 8 | E88: 00:01:04.537 | F88: 60,36km/h | K88: 39
A89: 2 | B89: Alexandre Melillo | C89: 28 | D89: 8 | E89: 00:01:04.704 | F89: 60,2km/h | K89: 40
A90: 2 | B90: Alexandre Melillo | C90: 28 | D90: 8 | E90: 00:01:04.221 | F90: 60,65km/h | K90: 41
A91: 2 | B91: Alexandre Melillo | C91: 28 | D91: 8 | E91: 00:01:04.561 | F91: 60,33km/h | K91: 42
A92: 2 | B92: Alexandre Melillo | C92: 28 | D92: 8 | E92: 00:01:03.690 | F92: 61,16km/h | K92: 43
A93: 2 | B93: Alexandre Melillo | C93: 28 | D93: 8 | E93: 00:01:04.349 | F93: 60,53km/h | K93: 44
A94: 2 | B94: Alexandre Melillo | C94: 28 | D94: 8 | E94: 00:01:04.142 | F94: 60,73km/h | K94: 45
A95: 2 | B95: Alexandre Melillo | C95: 28 | D95: 8 | E95: 00:01:04.107 | F95: 60,76km/h | K95: 46
A96: 2 | B96: Alexandre Melillo | C96: 28 | D96: 8 | E96: 00:01:03.965 | F96: 60,9km/h | K96: 47
A97: 2 | B97: Alexandre Melillo | C97: 28 | D97: 8 | E97: 00:01:03.716 | F97: 61,13km/h | K97: 48
A98: 2 | B98: Alexandre Melillo | C98: 28 | D98: 8 | E98: 00:01:04.397 | F98: 60,49km/h | K98: 49
A99: 2 | B99: Alexandre Melillo | C99: 28 | D99: 8 | E99: 00:01:03.867 | F99: 60,99km/h | K99: 50
A100: 2 | B100: Alexandre Melillo | C100: 28 | D100: 8 | E100: 00:01:03.990 | F100: 60,87km/h | K100: 51
A101: 2 | B101: Alexandre Melillo | C101: 28 | D101: 8 | E101: 00:01:05.273 | F101: 59,68km/h | K101: 52
A102: 2 | B102: Alexandre Melillo | C102: 28 | D102: 8 | E102: 00:01:04.282 | F102: 60,6km/h | K102: 53
A103: 2 | B103: Alexandre Melillo | C103: 28 | D103: 8 | E103: 00:01:03.970 | F103: 60,89km/h | K103: 54
A104: 2 | B104: Alexandre Melillo | C104: 28 | D104: 8 | E104: 00:01:04.123 | F104: 60,75km/h | K104: 55
A105: 2 | B105: Alexandre Melillo | C105: 28 | D105: 8 | E105: 00:01:03.888 | F105: 60,97km/h | K105: 56
A106: 2 | B106: Alexandre Melillo | C106: 28 | D106: 8 | E106: 00:01:04.665 | F106: 60,24km/h | K106: 57
A107: 2 | B107: Lucas Rabelo | C107: 28 | D107: 5 | E107: 00:01:09.779 | F107: 55,82km/h | K107: 58
A108: 2 | B108: Lucas Rabelo | C108: 28 | D108: 5 | E108: 00:01:07.335 | F108: 57,85km/h | K108: 59
A109: 2 | B109: Lucas Rabelo | C109: 28 | D109: 5 | E109: 00:01:05.965 | F109: 59,05km/h | K109: 60
A110: 2 | B110: Lucas Rabelo | C110: 28 | D110: 5 | E110: 00:01:06.130 | F110: 58,9km/h | K110: 61
A111: 2 | B111: Lucas Rabelo | C111: 28 | D111: 5 | E111: 00:01:05.480 | F111: 59,49km/h | K111: 62
A112: 2 | B112: Lucas Rabelo | C112: 28 | D112: 5 | E112: 00:01:05.081 | F112: 59,85km/h | K112: 63
A113: 2 | B113: Lucas Rabelo | C113: 28 | D113: 5 | E113: 00:01:04.951 | F113: 59,97km/h
A114: 2 | B114: Lucas Rabelo | C114: 28 | D114: 5 | E114: 00:01:05.139 | F114: 59,8km/h
A115: 2 | B115: Lucas Rabelo | C115: 28 | D115: 5 | E115: 00:01:05.076 | F115: 59,86km/h
A116: 2 | B116: Lucas Rabelo | C116: 28 | D116: 5 | E116: 00:01:05.527 | F116: 59,44km/h | L116: =_xlfn.STDEV.S(L50:L77) -> 00:00:01.594 | M116: =_xlfn.STDEV.S(M50:M77) -> 00:00:01.094 | N116: 00:00:01.594
A117: 2 | B117: Lucas Rabelo | C117: 28 | D117: 5 | E117: 00:01:05.045 | F117: 59,88km/h | L117: =MAX(L50:L77) -> 00:01:09.584 | M117: =MAX(M50:M77) -> 00:01:09.779 | N117: 00:01:09.584
A118: 2 | B118: Lucas Rabelo | C118: 28 | D118: 5 | E118: 00:01:05.098 | F118: 59,84km/h
A119: 2 | B119: Lucas Rabelo | C119: 28 | D119: 5 | E119: 00:01:05.472 | F119: 59,49km/h
A120: 2 | B120: Lucas Rabelo | C120: 28 | D120: 5 | E120: 00:01:05.146 | F120: 59,79km/h
A121: 2 | B121: Lucas Rabelo | C121: 28 | D121: 5 | E121: 00:01:04.807 | F121: 60,1km/h
A122: 2 | B122: Lucas Rabelo | C122: 28 | D122: 5 | E122: 00:01:04.815 | F122: 60,1km/h
A123: 2 | B123: Lucas Rabelo | C123: 28 | D123: 5 | E123: 00:01:05.338 | F123: 59,62km/h
A124: 2 | B124: Lucas Rabelo | C124: 28 | D124: 5 | E124: 00:01:04.521 | F124: 60,37km/h
A125: 2 | B125: Lucas Rabelo | C125: 28 | D125: 5 | E125: 00:01:04.643 | F125: 60,26km/h
A126: 2 | B126: Lucas Rabelo | C126: 28 | D126: 5 | E126: 00:01:04.269 | F126: 60,61km/h
A127: 2 | B127: Lucas Rabelo | C127: 28 | D127: 5 | E127: 00:01:04.561 | F127: 60,33km/h
A128: 2 | B128: Lucas Rabelo | C128: 28 | D128: 5 | E128: 00:01:04.713 | F128: 60,19km/h
A129: 2 | B129: Lucas Rabelo | C129: 28 | D129: 5 | E129: 00:01:06.002 | F129: 59,02km/h
A130: 2 | B130: Lucas Rabelo | C130: 28 | D130: 5 | E130: 00:01:04.401 | F130: 60,48km/h
A131: 2 | B131: Lucas Rabelo | C131: 28 | D131: 5 | E131: 00:01:04.562 | F131: 60,33km/h
A132: 2 | B132: Lucas Rabelo | C132: 28 | D132: 5 | E132: 00:01:04.599 | F132: 60,3km/h
A133: 2 | B133: Lucas Rabelo | C133: 28 | D133: 5 | E133: 00:01:04.620 | F133: 60,28km/h
A134: 2 | B134: Lucas Rabelo | C134: 28 | D134: 5 | E134: 00:01:04.793 | F134: 60,12km/h
A135: 2 | B135: Christian Guedes | C135: 28 | D135: 16 | E135: 00:01:07.754 | F135: 57,49km/h
A136: 2 | B136: Christian Guedes | C136: 28 | D136: 16 | E136: 00:01:18.529 | F136: 49,6km/h
A137: 2 | B137: Christian Guedes | C137: 28 | D137: 16 | E137: 00:01:04.764 | F137: 60,14km/h
A138: 2 | B138: Christian Guedes | C138: 28 | D138: 16 | E138: 00:01:05.443 | F138: 59,52km/h
A139: 2 | B139: Christian Guedes | C139: 28 | D139: 16 | E139: 00:01:04.678 | F139: 60,22km/h
A140: 2 | B140: Christian Guedes | C140: 28 | D140: 16 | E140: 00:01:04.672 | F140: 60,23km/h
A141: 2 | B141: Christian Guedes | C141: 28 | D141: 16 | E141: 00:01:07.104 | F141: 58,05km/h
A142: 2 | B142: Christian Guedes | C142: 28 | D142: 16 | E142: 00:01:04.875 | F142: 60,04km/h
A143: 2 | B143: Christian Guedes | C143: 28 | D143: 16 | E143: 00:01:03.634 | F143: 61,21km/h
A144: 2 | B144: Christian Guedes | C144: 28 | D144: 16 | E144: 00:01:08.398 | F144: 56,95km/h
A145: 2 | B145: Christian Guedes | C145: 28 | D145: 16 | E145: 00:01:03.786 | F145: 61,07km/h
A146: 2 | B146: Christian Guedes | C146: 28 | D146: 16 | E146: 00:01:05.013 | F146: 59,91km/h
A147: 2 | B147: Christian Guedes | C147: 28 | D147: 16 | E147: 00:01:04.998 | F147: 59,93km/h
A148: 2 | B148: Christian Guedes | C148: 28 | D148: 16 | E148: 00:01:05.868 | F148: 59,14km/h
A149: 2 | B149: Christian Guedes | C149: 28 | D149: 16 | E149: 00:01:03.850 | F149: 61,01km/h
A150: 2 | B150: Christian Guedes | C150: 28 | D150: 16 | E150: 00:01:03.579 | F150: 61,27km/h
A151: 2 | B151: Christian Guedes | C151: 28 | D151: 16 | E151: 00:01:03.357 | F151: 61,48km/h
A152: 2 | B152: Christian Guedes | C152: 28 | D152: 16 | E152: 00:01:03.295 | F152: 61,54km/h
A153: 2 | B153: Christian Guedes | C153: 28 | D153: 16 | E153: 00:01:03.706 | F153: 61,14km/h
A154: 2 | B154: Christian Guedes | C154: 28 | D154: 16 | E154: 00:01:02.980 | F154: 61,85km/h
A155: 2 | B155: Christian Guedes | C155: 28 | D155: 16 | E155: 00:01:03.458 | F155: 61,38km/h
A156: 2 | B156: Christian Guedes | C156: 28 | D156: 16 | E156: 00:01:03.308 | F156: 61,53km/h
A157: 2 | B157: Christian Guedes | C157: 28 | D157: 16 | E157: 00:01:04.390 | F157: 60,49km/h
A158: 2 | B158: Christian Guedes | C158: 28 | D158: 16 | E158: 00:01:03.326 | F158: 61,51km/h
A159: 2 | B159: Christian Guedes | C159: 28 | D159: 16 | E159: 00:01:03.632 | F159: 61,21km/h
A160: 2 | B160: Christian Guedes | C160: 28 | D160: 16 | E160: 00:01:06.562 | F160: 58,52km/h
A161: 2 | B161: Christian Guedes | C161: 28 | D161: 16 | E161: 00:01:04.809 | F161: 60,1km/h
A162: 2 | B162: Christian Guedes | C162: 28 | D162: 16 | E162: 00:01:04.046 | F162: 60,82km/h
A163: 2 | B163: Luiz Azevedo | C163: 28 | D163: 31 | E163: 00:01:10.992 | F163: 54,87km/h
A164: 2 | B164: Luiz Azevedo | C164: 28 | D164: 31 | E164: 00:01:32.909 | F164: 41,92km/h
A165: 2 | B165: Luiz Azevedo | C165: 28 | D165: 31 | E165: 00:01:05.456 | F165: 59,51km/h
A166: 2 | B166: Luiz Azevedo | C166: 28 | D166: 31 | E166: 00:01:04.893 | F166: 60,02km/h
A167: 2 | B167: Luiz Azevedo | C167: 28 | D167: 31 | E167: 00:01:04.725 | F167: 60,18km/h
A168: 2 | B168: Luiz Azevedo | C168: 28 | D168: 31 | E168: 00:01:04.252 | F168: 60,62km/h
A169: 2 | B169: Luiz Azevedo | C169: 28 | D169: 31 | E169: 00:01:04.942 | F169: 59,98km/h
A170: 2 | B170: Luiz Azevedo | C170: 28 | D170: 31 | E170: 00:01:04.706 | F170: 60,2km/h
A171: 2 | B171: Luiz Azevedo | C171: 28 | D171: 31 | E171: 00:01:04.341 | F171: 60,54km/h
A172: 2 | B172: Luiz Azevedo | C172: 28 | D172: 31 | E172: 00:01:04.078 | F172: 60,79km/h
A173: 2 | B173: Luiz Azevedo | C173: 28 | D173: 31 | E173: 00:01:05.019 | F173: 59,91km/h
A174: 2 | B174: Luiz Azevedo | C174: 28 | D174: 31 | E174: 00:01:03.829 | F174: 61,03km/h
A175: 2 | B175: Luiz Azevedo | C175: 28 | D175: 31 | E175: 00:01:03.748 | F175: 61,1km/h
A176: 2 | B176: Luiz Azevedo | C176: 28 | D176: 31 | E176: 00:01:04.188 | F176: 60,68km/h
A177: 2 | B177: Luiz Azevedo | C177: 28 | D177: 31 | E177: 00:01:04.350 | F177: 60,53km/h
A178: 2 | B178: Luiz Azevedo | C178: 28 | D178: 31 | E178: 00:01:04.307 | F178: 60,57km/h
A179: 2 | B179: Luiz Azevedo | C179: 28 | D179: 31 | E179: 00:01:04.342 | F179: 60,54km/h
A180: 2 | B180: Luiz Azevedo | C180: 28 | D180: 31 | E180: 00:01:03.765 | F180: 61,09km/h
A181: 2 | B181: Luiz Azevedo | C181: 28 | D181: 31 | E181: 00:01:03.540 | F181: 61,3km/h
A182: 2 | B182: Luiz Azevedo | C182: 28 | D182: 31 | E182: 00:01:03.579 | F182: 61,27km/h
A183: 2 | B183: Luiz Azevedo | C183: 28 | D183: 31 | E183: 00:01:03.529 | F183: 61,31km/h
A184: 2 | B184: Luiz Azevedo | C184: 28 | D184: 31 | E184: 00:01:04.651 | F184: 60,25km/h
A185: 2 | B185: Luiz Azevedo | C185: 28 | D185: 31 | E185: 00:01:03.472 | F185: 61,37km/h
A186: 2 | B186: Luiz Azevedo | C186: 28 | D186: 31 | E186: 00:01:03.435 | F186: 61,4km/h
A187: 2 | B187: Luiz Azevedo | C187: 28 | D187: 31 | E187: 00:01:04.005 | F187: 60,86km/h
A188: 2 | B188: Luiz Azevedo | C188: 28 | D188: 31 | E188: 00:01:05.331 | F188: 59,62km/h
A189: 2 | B189: Luiz Azevedo | C189: 28 | D189: 31 | E189: 00:01:03.991 | F189: 60,87km/h
A190: 2 | B190: Luiz Azevedo | C190: 28 | D190: 31 | E190: 00:01:03.725 | F190: 61,13km/h
A191: 2 | B191: PetrÔnio Junior | C191: 28 | D191: 9 | E191: 00:01:09.082 | F191: 56,39km/h
A192: 2 | B192: PetrÔnio Junior | C192: 28 | D192: 9 | E192: 00:01:06.412 | F192: 58,65km/h
A193: 2 | B193: PetrÔnio Junior | C193: 28 | D193: 9 | E193: 00:01:07.559 | F193: 57,66km/h
A194: 2 | B194: PetrÔnio Junior | C194: 28 | D194: 9 | E194: 00:01:06.750 | F194: 58,36km/h
A195: 2 | B195: PetrÔnio Junior | C195: 28 | D195: 9 | E195: 00:01:05.785 | F195: 59,21km/h
A196: 2 | B196: PetrÔnio Junior | C196: 28 | D196: 9 | E196: 00:01:06.124 | F196: 58,91km/h
A197: 2 | B197: PetrÔnio Junior | C197: 28 | D197: 9 | E197: 00:01:05.382 | F197: 59,58km/h
A198: 2 | B198: PetrÔnio Junior | C198: 28 | D198: 9 | E198: 00:01:04.889 | F198: 60,03km/h
A199: 2 | B199: PetrÔnio Junior | C199: 28 | D199: 9 | E199: 00:01:05.543 | F199: 59,43km/h
A200: 2 | B200: PetrÔnio Junior | C200: 28 | D200: 9 | E200: 00:01:05.320 | F200: 59,63km/h
A201: 2 | B201: PetrÔnio Junior | C201: 28 | D201: 9 | E201: 00:01:04.181 | F201: 60,69km/h
A202: 2 | B202: PetrÔnio Junior | C202: 28 | D202: 9 | E202: 00:01:05.056 | F202: 59,87km/h
A203: 2 | B203: PetrÔnio Junior | C203: 28 | D203: 9 | E203: 00:01:04.916 | F203: 60km/h
A204: 2 | B204: PetrÔnio Junior | C204: 28 | D204: 9 | E204: 00:01:05.445 | F204: 59,52km/h
A205: 2 | B205: PetrÔnio Junior | C205: 28 | D205: 9 | E205: 00:01:04.706 | F205: 60,2km/h
A206: 2 | B206: PetrÔnio Junior | C206: 28 | D206: 9 | E206: 00:01:04.389 | F206: 60,49km/h
A207: 2 | B207: PetrÔnio Junior | C207: 28 | D207: 9 | E207: 00:01:04.350 | F207: 60,53km/h
A208: 2 | B208: PetrÔnio Junior | C208: 28 | D208: 9 | E208: 00:01:04.406 | F208: 60,48km/h
A209: 2 | B209: PetrÔnio Junior | C209: 28 | D209: 9 | E209: 00:01:04.369 | F209: 60,51km/h
... 847 more rows

Sheet ETAPA 01
A1: Obs.: 1. Selecione o nome de um Piloto, 2. Com a tecla Ctrl pressionada, Selecione o seu nome e 3. Clique sobre o Gráfico (Habilite a macro) Para as demais comparações Selecione o nome do Piloto e Clique sobre o Gráfico | G1: PILOTO | H1: =L$48 -> Saulo Chagas | I1: =M$48 -> Guilherme Alves | J1: =A2 -> Leonardo Oliveira | M1: 00:00:01
A2: Leonardo Oliveira | G2: MÉDIA | H2: =AVERAGE(L$49:L$105) -> 00:01:16.288 | I2: =AVERAGE(M$49:M$105) -> 00:01:16.327 | J2: =AVERAGE(N$49:N$105) -> 00:01:16.252 | M2: =M1 -> 00:00:01
A3: Saulo Chagas | G3: MAXIMA | H3: =LARGE(L$49:L$105,1) -> 00:01:28.172 | I3: =LARGE(M$49:M$105,1) -> 00:01:29.362 | J3: =LARGE(N$49:N$105,1) -> 00:01:28.274
A4: Guilherme Alves | G4: MÍNIMA | H4: =SMALL(L$49:L$105,1) -> 00:01:14.424 | I4: =SMALL(M$49:M$105,1) -> 00:01:14.478 | J4: =SMALL(N$49:N$105,1) -> 00:01:14.209
A5: Pedro Fialho | G5: Desvio Padrão | H5: =_xlfn.STDEV.S(L$50:L$130) -> 00:00:16.191 | I5: =_xlfn.STDEV.S(M$50:M$130) -> 00:00:16.248 | J5: =_xlfn.STDEV.S(N$50:N$130) -> 00:00:16.189
A6: Christian Guedes | G6: TEMPO TOTAL | H6: =SUM(L$49:L$105,1) -> 1.017659201 | I6: =SUM(M$49:M$105,1) -> 1.017668229 | J6: =SUM(N$49:N$105,1) -> 1.017650903
A7: Marcus Silva
A8: Diego Rodrigues
A9: Lucio Santos
A10: Guilherme Figueiredo
A11: Bruno Nosse
A12: Fernando Mota
A13: Jean Paul | J13: =SMALL(H4:J4,1)-K13 -> 00:01:13.959 | K13: 00:00:00.250
A14: Samuel Silva | J14: =LARGE(H3:J3,1)+K13 -> 00:01:29.612
A15: Raphael Reis
A16: Alexandre Melillo
A17: Matheus Rocha
A18: Anderson Teixeira
A19: Lucas Rabelo
A20: Jarbas Reis
A21: Wesley Canuto
A22: Luiz Azevedo
A23: Thales Almeida
A24: Rafael Miranda
A25: Edmárcio Júnior
A26: Frederico Papatella
A27: Pedro Avelar
A28: Alan Moreira
A29: Tafarel Henrique
A30: Felipe Curi
A31: Matheus Azevedo
A32: Luciano Robervine
A33: Celso Dantas
A34: Bruno Camargos
A35: Renato Martins
A36: Thiago Azevedo
A37: Thiago Santos
A38: Guilherme Camarano
A39: Levindo Neto
A40: Gustavo Barros
L48: Saulo Chagas | M48: Guilherme Alves | N48: Leonardo Oliveira
K49: NÚMERO VOLTAS | L49: Saulo Chagas | M49: Guilherme Alves | N49: Leonardo Oliveira
A50: ETAPA | B50: PILOTO | C50: NÚMERO VOLTAS | D50: KART | E50: Volta Tm | F50: velocidade Media | K50: 1 | L50: 00:01:28.172 | M50: 00:01:29.362 | N50: 00:01:28.274
A51: 1 | B51: Leonardo Oliveira | C51: 20 | D51: 12 | E51: 00:01:28.274 | F51: 48,94km/h | K51: 2 | L51: 00:01:22.158 | M51: 00:01:21.460 | N51: 00:01:22.183
A52: 1 | B52: Leonardo Oliveira | C52: 20 | D52: 12 | E52: 00:01:22.183 | F52: 52,57km/h | K52: 3 | L52: 00:01:18.500 | M52: 00:01:18.416 | N52: 00:01:18.413
A53: 1 | B53: Leonardo Oliveira | C53: 20 | D53: 12 | E53: 00:01:18.413 | F53: 55,09km/h | K53: 4 | L53: 00:01:16.477 | M53: 00:01:17.048 | N53: 00:01:16.105
A54: 1 | B54: Leonardo Oliveira | C54: 20 | D54: 12 | E54: 00:01:16.105 | F54: 56,76km/h | K54: 5 | L54: 00:01:15.693 | M54: 00:01:15.832 | N54: 00:01:15
A55: 1 | B55: Leonardo Oliveira | C55: 20 | D55: 12 | E55: 00:01:15 | F55: 57,6km/h | K55: 6 | L55: 00:01:15.051 | M55: 00:01:15.362 | N55: 00:01:14.878
A56: 1 | B56: Leonardo Oliveira | C56: 20 | D56: 12 | E56: 00:01:14.878 | F56: 57,69km/h | K56: 7 | L56: 00:01:15.047 | M56: 00:01:14.941 | N56: 00:01:14.978
A57: 1 | B57: Leonardo Oliveira | C57: 20 | D57: 12 | E57: 00:01:14.978 | F57: 57,62km/h | K57: 8 | L57: 00:01:15.024 | M57: 00:01:14.780 | N57: 00:01:15.322
A58: 1 | B58: Leonardo Oliveira | C58: 20 | D58: 12 | E58: 00:01:15.322 | F58: 57,35km/h | K58: 9 | L58: 00:01:14.575 | M58: 00:01:14.478 | N58: 00:01:14.569
A59: 1 | B59: Leonardo Oliveira | C59: 20 | D59: 12 | E59: 00:01:14.569 | F59: 57,93km/h | K59: 10 | L59: 00:01:14.424 | M59: 00:01:14.618 | N59: 00:01:14.499
A60: 1 | B60: Leonardo Oliveira | C60: 20 | D60: 12 | E60: 00:01:14.499 | F60: 57,99km/h | K60: 11 | L60: 00:01:14.976 | M60: 00:01:14.790 | N60: 00:01:14.540
A61: 1 | B61: Leonardo Oliveira | C61: 20 | D61: 12 | E61: 00:01:14.540 | F61: 57,96km/h | K61: 12 | L61: 00:01:14.610 | M61: 00:01:14.560 | N61: 00:01:14.218
A62: 1 | B62: Leonardo Oliveira | C62: 20 | D62: 12 | E62: 00:01:14.218 | F62: 58,21km/h | K62: 13 | L62: 00:01:14.907 | M62: 00:01:14.973 | N62: 00:01:14.650
A63: 1 | B63: Leonardo Oliveira | C63: 20 | D63: 12 | E63: 00:01:14.650 | F63: 57,87km/h | K63: 14 | L63: 00:01:15.513 | M63: 00:01:15.360 | N63: 00:01:15.599
A64: 1 | B64: Leonardo Oliveira | C64: 20 | D64: 12 | E64: 00:01:15.599 | F64: 57,14km/h | K64: 15 | L64: 00:01:15.130 | M64: 00:01:15.207 | N64: 00:01:14.808
A65: 1 | B65: Leonardo Oliveira | C65: 20 | D65: 12 | E65: 00:01:14.808 | F65: 57,75km/h | K65: 16 | L65: 00:01:14.876 | M65: 00:01:14.807 | N65: 00:01:14.601
A66: 1 | B66: Leonardo Oliveira | C66: 20 | D66: 12 | E66: 00:01:14.601 | F66: 57,91km/h | K66: 17 | L66: 00:01:14.863 | M66: 00:01:15.974 | N66: 00:01:15.389
A67: 1 | B67: Leonardo Oliveira | C67: 20 | D67: 12 | E67: 00:01:15.389 | F67: 57,3km/h | K67: 18 | L67: 00:01:14.584 | M67: 00:01:14.693 | N67: 00:01:14.209
A68: 1 | B68: Leonardo Oliveira | C68: 20 | D68: 12 | E68: 00:01:14.209 | F68: 58,21km/h | K68: 19 | L68: 00:01:14.508 | M68: 00:01:14.557 | N68: 00:01:15.640
A69: 1 | B69: Leonardo Oliveira | C69: 20 | D69: 12 | E69: 00:01:15.640 | F69: 57,11km/h | K69: 20 | L69: 00:01:16.667 | M69: 00:01:15.317 | N69: 00:01:17.163
A70: 1 | B70: Leonardo Oliveira | C70: 20 | D70: 12 | E70: 00:01:17.163 | F70: 55,99km/h | K70: 21
A71: 1 | B71: Saulo Chagas | C71: 20 | D71: 19 | E71: 00:01:28.172 | F71: 49km/h | K71: 22
A72: 1 | B72: Saulo Chagas | C72: 20 | D72: 19 | E72: 00:01:22.158 | F72: 52,58km/h | K72: 23
A73: 1 | B73: Saulo Chagas | C73: 20 | D73: 19 | E73: 00:01:18.500 | F73: 55,03km/h | K73: 24
A74: 1 | B74: Saulo Chagas | C74: 20 | D74: 19 | E74: 00:01:16.477 | F74: 56,49km/h | K74: 25
A75: 1 | B75: Saulo Chagas | C75: 20 | D75: 19 | E75: 00:01:15.693 | F75: 57,07km/h | K75: 26
A76: 1 | B76: Saulo Chagas | C76: 20 | D76: 19 | E76: 00:01:15.051 | F76: 57,56km/h | K76: 27
A77: 1 | B77: Saulo Chagas | C77: 20 | D77: 19 | E77: 00:01:15.047 | F77: 57,56km/h | K77: 28
A78: 1 | B78: Saulo Chagas | C78: 20 | D78: 19 | E78: 00:01:15.024 | F78: 57,58km/h | K78: 29
A79: 1 | B79: Saulo Chagas | C79: 20 | D79: 19 | E79: 00:01:14.575 | F79: 57,93km/h | K79: 30
A80: 1 | B80: Saulo Chagas | C80: 20 | D80: 19 | E80: 00:01:14.424 | F80: 58,05km/h | K80: 31
A81: 1 | B81: Saulo Chagas | C81: 20 | D81: 19 | E81: 00:01:14.976 | F81: 57,62km/h | K81: 32
A82: 1 | B82: Saulo Chagas | C82: 20 | D82: 19 | E82: 00:01:14.610 | F82: 57,9km/h | K82: 33
A83: 1 | B83: Saulo Chagas | C83: 20 | D83: 19 | E83: 00:01:14.907 | F83: 57,67km/h | K83: 34
A84: 1 | B84: Saulo Chagas | C84: 20 | D84: 19 | E84: 00:01:15.513 | F84: 57,21km/h | K84: 35
A85: 1 | B85: Saulo Chagas | C85: 20 | D85: 19 | E85: 00:01:15.130 | F85: 57,5km/h | K85: 36
A86: 1 | B86: Saulo Chagas | C86: 20 | D86: 19 | E86: 00:01:14.876 | F86: 57,7km/h | K86: 37
A87: 1 | B87: Saulo Chagas | C87: 20 | D87: 19 | E87: 00:01:14.863 | F87: 57,71km/h | K87: 38
A88: 1 | B88: Saulo Chagas | C88: 20 | D88: 19 | E88: 00:01:14.584 | F88: 57,92km/h | K88: 39
A89: 1 | B89: Saulo Chagas | C89: 20 | D89: 19 | E89: 00:01:14.508 | F89: 57,98km/h | K89: 40
A90: 1 | B90: Saulo Chagas | C90: 20 | D90: 19 | E90: 00:01:16.667 | F90: 56,35km/h | K90: 41
A91: 1 | B91: Guilherme Alves | C91: 20 | D91: 31 | E91: 00:01:29.362 | F91: 48,34km/h | K91: 42
A92: 1 | B92: Guilherme Alves | C92: 20 | D92: 31 | E92: 00:01:21.460 | F92: 53,03km/h | K92: 43
A93: 1 | B93: Guilherme Alves | C93: 20 | D93: 31 | E93: 00:01:18.416 | F93: 55,09km/h | K93: 44
A94: 1 | B94: Guilherme Alves | C94: 20 | D94: 31 | E94: 00:01:17.048 | F94: 56,07km/h | K94: 45
A95: 1 | B95: Guilherme Alves | C95: 20 | D95: 31 | E95: 00:01:15.832 | F95: 56,97km/h | K95: 46
A96: 1 | B96: Guilherme Alves | C96: 20 | D96: 31 | E96: 00:01:15.362 | F96: 57,32km/h | K96: 47
A97: 1 | B97: Guilherme Alves | C97: 20 | D97: 31 | E97: 00:01:14.941 | F97: 57,65km/h | K97: 48
A98: 1 | B98: Guilherme Alves | C98: 20 | D98: 31 | E98: 00:01:14.780 | F98: 57,77km/h | K98: 49
A99: 1 | B99: Guilherme Alves | C99: 20 | D99: 31 | E99: 00:01:14.478 | F99: 58km/h | K99: 50
A100: 1 | B100: Guilherme Alves | C100: 20 | D100: 31 | E100: 00:01:14.618 | F100: 57,89km/h | K100: 51
A101: 1 | B101: Guilherme Alves | C101: 20 | D101: 31 | E101: 00:01:14.790 | F101: 57,76km/h | K101: 52
A102: 1 | B102: Guilherme Alves | C102: 20 | D102: 31 | E102: 00:01:14.560 | F102: 57,94km/h | K102: 53
A103: 1 | B103: Guilherme Alves | C103: 20 | D103: 31 | E103: 00:01:14.973 | F103: 57,62km/h | K103: 54
A104: 1 | B104: Guilherme Alves | C104: 20 | D104: 31 | E104: 00:01:15.360 | F104: 57,32km/h | K104: 55
A105: 1 | B105: Guilherme Alves | C105: 20 | D105: 31 | E105: 00:01:15.207 | F105: 57,44km/h | K105: 56
A106: 1 | B106: Guilherme Alves | C106: 20 | D106: 31 | E106: 00:01:14.807 | F106: 57,75km/h | K106: 57
A107: 1 | B107: Guilherme Alves | C107: 20 | D107: 31 | E107: 00:01:15.974 | F107: 56,86km/h | K107: 58
A108: 1 | B108: Guilherme Alves | C108: 20 | D108: 31 | E108: 00:01:14.693 | F108: 57,84km/h | K108: 59
A109: 1 | B109: Guilherme Alves | C109: 20 | D109: 31 | E109: 00:01:14.557 | F109: 57,94km/h | K109: 60
A110: 1 | B110: Guilherme Alves | C110: 20 | D110: 31 | E110: 00:01:15.317 | F110: 57,36km/h | K110: 61
A111: 1 | B111: Pedro Fialho | C111: 20 | D111: 11 | E111: 00:01:28.884 | F111: 48,6km/h | K111: 62
A112: 1 | B112: Pedro Fialho | C112: 20 | D112: 11 | E112: 00:01:21.274 | F112: 53,15km/h | K112: 63
A113: 1 | B113: Pedro Fialho | C113: 20 | D113: 11 | E113: 00:01:18.393 | F113: 55,11km/h
A114: 1 | B114: Pedro Fialho | C114: 20 | D114: 11 | E114: 00:01:16.660 | F114: 56,35km/h
A115: 1 | B115: Pedro Fialho | C115: 20 | D115: 11 | E115: 00:01:15.690 | F115: 57,07km/h
A116: 1 | B116: Pedro Fialho | C116: 20 | D116: 11 | E116: 00:01:15.434 | F116: 57,27km/h | L116: =_xlfn.STDEV.S(L50:L77) -> 00:00:03.330 | M116: =_xlfn.STDEV.S(M50:M77) -> 00:00:03.492 | N116: 00:00:03.381
A117: 1 | B117: Pedro Fialho | C117: 20 | D117: 11 | E117: 00:01:14.910 | F117: 57,67km/h | L117: =MAX(L50:L77) -> 00:01:28.172 | M117: =MAX(M50:M77) -> 00:01:29.362 | N117: 00:01:28.274
A118: 1 | B118: Pedro Fialho | C118: 20 | D118: 11 | E118: 00:01:14.846 | F118: 57,72km/h
A119: 1 | B119: Pedro Fialho | C119: 20 | D119: 11 | E119: 00:01:14.535 | F119: 57,96km/h
A120: 1 | B120: Pedro Fialho | C120: 20 | D120: 11 | E120: 00:01:14.440 | F120: 58,03km/h
A121: 1 | B121: Pedro Fialho | C121: 20 | D121: 11 | E121: 00:01:14.911 | F121: 57,67km/h
A122: 1 | B122: Pedro Fialho | C122: 20 | D122: 11 | E122: 00:01:14.585 | F122: 57,92km/h
A123: 1 | B123: Pedro Fialho | C123: 20 | D123: 11 | E123: 00:01:14.916 | F123: 57,66km/h
A124: 1 | B124: Pedro Fialho | C124: 20 | D124: 11 | E124: 00:01:15.103 | F124: 57,52km/h
A125: 1 | B125: Pedro Fialho | C125: 20 | D125: 11 | E125: 00:01:15.476 | F125: 57,24km/h
A126: 1 | B126: Pedro Fialho | C126: 20 | D126: 11 | E126: 00:01:14.793 | F126: 57,76km/h
A127: 1 | B127: Pedro Fialho | C127: 20 | D127: 11 | E127: 00:01:15.158 | F127: 57,48km/h
A128: 1 | B128: Pedro Fialho | C128: 20 | D128: 11 | E128: 00:01:14.624 | F128: 57,89km/h
A129: 1 | B129: Pedro Fialho | C129: 20 | D129: 11 | E129: 00:01:14.519 | F129: 57,97km/h
A130: 1 | B130: Pedro Fialho | C130: 20 | D130: 11 | E130: 00:01:18.023 | F130: 55,37km/h
A131: 1 | B131: Christian Guedes | C131: 20 | D131: 30 | E131: 00:01:28.494 | F131: 48,82km/h
A132: 1 | B132: Christian Guedes | C132: 20 | D132: 30 | E132: 00:01:22.281 | F132: 52,5km/h
A133: 1 | B133: Christian Guedes | C133: 20 | D133: 30 | E133: 00:01:18.184 | F133: 55,25km/h
A134: 1 | B134: Christian Guedes | C134: 20 | D134: 30 | E134: 00:01:15.633 | F134: 57,12km/h
A135: 1 | B135: Christian Guedes | C135: 20 | D135: 30 | E135: 00:01:15.437 | F135: 57,27km/h
A136: 1 | B136: Christian Guedes | C136: 20 | D136: 30 | E136: 00:01:15.133 | F136: 57,5km/h
A137: 1 | B137: Christian Guedes | C137: 20 | D137: 30 | E137: 00:01:14.891 | F137: 57,68km/h
A138: 1 | B138: Christian Guedes | C138: 20 | D138: 30 | E138: 00:01:15.476 | F138: 57,24km/h
A139: 1 | B139: Christian Guedes | C139: 20 | D139: 30 | E139: 00:01:14.787 | F139: 57,76km/h
A140: 1 | B140: Christian Guedes | C140: 20 | D140: 30 | E140: 00:01:14.504 | F140: 57,98km/h
A141: 1 | B141: Christian Guedes | C141: 20 | D141: 30 | E141: 00:01:14.562 | F141: 57,94km/h
A142: 1 | B142: Christian Guedes | C142: 20 | D142: 30 | E142: 00:01:14.211 | F142: 58,21km/h
A143: 1 | B143: Christian Guedes | C143: 20 | D143: 30 | E143: 00:01:14.626 | F143: 57,89km/h
A144: 1 | B144: Christian Guedes | C144: 20 | D144: 30 | E144: 00:01:15.203 | F144: 57,44km/h
A145: 1 | B145: Christian Guedes | C145: 20 | D145: 30 | E145: 00:01:14.830 | F145: 57,73km/h
A146: 1 | B146: Christian Guedes | C146: 20 | D146: 30 | E146: 00:01:14.713 | F146: 57,82km/h
A147: 1 | B147: Christian Guedes | C147: 20 | D147: 30 | E147: 00:01:15.267 | F147: 57,4km/h
A148: 1 | B148: Christian Guedes | C148: 20 | D148: 30 | E148: 00:01:14.363 | F148: 58,09km/h
A149: 1 | B149: Christian Guedes | C149: 20 | D149: 30 | E149: 00:01:15.876 | F149: 56,93km/h
A150: 1 | B150: Christian Guedes | C150: 20 | D150: 30 | E150: 00:01:24.843 | F150: 50,92km/h
A151: 1 | B151: Marcus Silva | C151: 20 | D151: 6 | E151: 00:01:34.503 | F151: 45,71km/h
A152: 1 | B152: Marcus Silva | C152: 20 | D152: 6 | E152: 00:01:18.237 | F152: 55,22km/h
A153: 1 | B153: Marcus Silva | C153: 20 | D153: 6 | E153: 00:01:16.342 | F153: 56,59km/h
A154: 1 | B154: Marcus Silva | C154: 20 | D154: 6 | E154: 00:01:15.759 | F154: 57,02km/h
A155: 1 | B155: Marcus Silva | C155: 20 | D155: 6 | E155: 00:01:15.386 | F155: 57,31km/h
A156: 1 | B156: Marcus Silva | C156: 20 | D156: 6 | E156: 00:01:15.216 | F156: 57,43km/h
A157: 1 | B157: Marcus Silva | C157: 20 | D157: 6 | E157: 00:01:15.319 | F157: 57,36km/h
A158: 1 | B158: Marcus Silva | C158: 20 | D158: 6 | E158: 00:01:14.928 | F158: 57,66km/h
A159: 1 | B159: Marcus Silva | C159: 20 | D159: 6 | E159: 00:01:14.263 | F159: 58,17km/h
A160: 1 | B160: Marcus Silva | C160: 20 | D160: 6 | E160: 00:01:14.485 | F160: 58km/h
A161: 1 | B161: Marcus Silva | C161: 20 | D161: 6 | E161: 00:01:15.669 | F161: 57,09km/h
A162: 1 | B162: Marcus Silva | C162: 20 | D162: 6 | E162: 00:01:14.711 | F162: 57,82km/h
A163: 1 | B163: Marcus Silva | C163: 20 | D163: 6 | E163: 00:01:14.444 | F163: 58,03km/h
A164: 1 | B164: Marcus Silva | C164: 20 | D164: 6 | E164: 00:01:14.653 | F164: 57,87km/h
A165: 1 | B165: Marcus Silva | C165: 20 | D165: 6 | E165: 00:01:14.394 | F165: 58,07km/h
A166: 1 | B166: Marcus Silva | C166: 20 | D166: 6 | E166: 00:01:14.480 | F166: 58km/h
A167: 1 | B167: Marcus Silva | C167: 20 | D167: 6 | E167: 00:01:14.357 | F167: 58,1km/h
A168: 1 | B168: Marcus Silva | C168: 20 | D168: 6 | E168: 00:01:14.241 | F168: 58,19km/h
A169: 1 | B169: Marcus Silva | C169: 20 | D169: 6 | E169: 00:01:14.375 | F169: 58,08km/h
A170: 1 | B170: Marcus Silva | C170: 20 | D170: 6 | E170: 00:01:14.570 | F170: 57,93km/h
A171: 1 | B171: Diego Rodrigues | C171: 20 | D171: 5 | E171: 00:01:31.911 | F171: 47km/h
A172: 1 | B172: Diego Rodrigues | C172: 20 | D172: 5 | E172: 00:01:20.772 | F172: 53,48km/h
A173: 1 | B173: Diego Rodrigues | C173: 20 | D173: 5 | E173: 00:01:18.477 | F173: 55,05km/h
A174: 1 | B174: Diego Rodrigues | C174: 20 | D174: 5 | E174: 00:01:16.266 | F174: 56,64km/h
A175: 1 | B175: Diego Rodrigues | C175: 20 | D175: 5 | E175: 00:01:16.101 | F175: 56,77km/h
A176: 1 | B176: Diego Rodrigues | C176: 20 | D176: 5 | E176: 00:01:16.294 | F176: 56,62km/h
A177: 1 | B177: Diego Rodrigues | C177: 20 | D177: 5 | E177: 00:01:15.749 | F177: 57,03km/h
A178: 1 | B178: Diego Rodrigues | C178: 20 | D178: 5 | E178: 00:01:15.218 | F178: 57,43km/h
A179: 1 | B179: Diego Rodrigues | C179: 20 | D179: 5 | E179: 00:01:15.350 | F179: 57,33km/h
A180: 1 | B180: Diego Rodrigues | C180: 20 | D180: 5 | E180: 00:01:15.029 | F180: 57,58km/h
A181: 1 | B181: Diego Rodrigues | C181: 20 | D181: 5 | E181: 00:01:15.600 | F181: 57,14km/h
A182: 1 | B182: Diego Rodrigues | C182: 20 | D182: 5 | E182: 00:01:15.994 | F182: 56,85km/h
A183: 1 | B183: Diego Rodrigues | C183: 20 | D183: 5 | E183: 00:01:15.420 | F183: 57,28km/h
A184: 1 | B184: Diego Rodrigues | C184: 20 | D184: 5 | E184: 00:01:15.803 | F184: 56,99km/h
A185: 1 | B185: Diego Rodrigues | C185: 20 | D185: 5 | E185: 00:01:15.328 | F185: 57,35km/h
A186: 1 | B186: Diego Rodrigues | C186: 20 | D186: 5 | E186: 00:01:15.448 | F186: 57,26km/h
A187: 1 | B187: Diego Rodrigues | C187: 20 | D187: 5 | E187: 00:01:15.237 | F187: 57,42km/h
A188: 1 | B188: Diego Rodrigues | C188: 20 | D188: 5 | E188: 00:01:14.947 | F188: 57,64km/h
A189: 1 | B189: Diego Rodrigues | C189: 20 | D189: 5 | E189: 00:01:14.832 | F189: 57,73km/h
A190: 1 | B190: Diego Rodrigues | C190: 20 | D190: 5 | E190: 00:01:15.180 | F190: 57,46km/h
A191: 1 | B191: Lucio Santos | C191: 20 | D191: 22 | E191: 00:01:32.583 | F191: 46,66km/h
A192: 1 | B192: Lucio Santos | C192: 20 | D192: 22 | E192: 00:01:22.274 | F192: 52,51km/h
A193: 1 | B193: Lucio Santos | C193: 20 | D193: 22 | E193: 00:01:17.954 | F193: 55,42km/h
A194: 1 | B194: Lucio Santos | C194: 20 | D194: 22 | E194: 00:01:16.290 | F194: 56,63km/h
A195: 1 | B195: Lucio Santos | C195: 20 | D195: 22 | E195: 00:01:16.992 | F195: 56,11km/h
A196: 1 | B196: Lucio Santos | C196: 20 | D196: 22 | E196: 00:01:15.789 | F196: 57km/h
A197: 1 | B197: Lucio Santos | C197: 20 | D197: 22 | E197: 00:01:15.569 | F197: 57,17km/h
A198: 1 | B198: Lucio Santos | C198: 20 | D198: 22 | E198: 00:01:15.164 | F198: 57,47km/h
A199: 1 | B199: Lucio Santos | C199: 20 | D199: 22 | E199: 00:01:15.590 | F199: 57,15km/h
A200: 1 | B200: Lucio Santos | C200: 20 | D200: 22 | E200: 00:01:15.031 | F200: 57,58km/h
A201: 1 | B201: Lucio Santos | C201: 20 | D201: 22 | E201: 00:01:16.152 | F201: 56,73km/h
A202: 1 | B202: Lucio Santos | C202: 20 | D202: 22 | E202: 00:01:15.585 | F202: 57,15km/h
A203: 1 | B203: Lucio Santos | C203: 20 | D203: 22 | E203: 00:01:14.876 | F203: 57,7km/h
A204: 1 | B204: Lucio Santos | C204: 20 | D204: 22 | E204: 00:01:15.405 | F204: 57,29km/h
A205: 1 | B205: Lucio Santos | C205: 20 | D205: 22 | E205: 00:01:16.119 | F205: 56,75km/h
A206: 1 | B206: Lucio Santos | C206: 20 | D206: 22 | E206: 00:01:16.055 | F206: 56,8km/h
A207: 1 | B207: Lucio Santos | C207: 20 | D207: 22 | E207: 00:01:16.017 | F207: 56,83km/h
... 675 more rows
